Workbook

Sheet HC All
A1: Date of Award | B1: Credit Year | C1: Status | D1: Project Name | E1: Project Address | F1: City | G1: ZIP | H1: Lat | I1: Long | J1: Project County | K1: Credit Type | L1: Owners | M1: Type of Construction | N1: Population | O1: No. of Units | P1: No. of Buildings | Q1: Credit Amount (10 yr amt) | R1: Housing Credit Equity | S1: Tax Exempt Bonds Issued | T1: Tax Exempt Perm Loan Amount | U1: Rate | V1: Term | W1: Placed in Service (earliest date) | X1: 1st Year Credit Period per 8609 | Y1: Date Used to Calc Comp Period | Z1: End YR 15 (Dec 31) | AA1: Ext Yrs | AB1: End of Comp (Dec 31). | AC1: Owner 1 | AD1: Owner 2 | AE1: Owner Adress | AF1: City | AG1: ST | AH1: Zip | AI1: Email | AJ1: Phone | AK1: Chief Elected Official | AL1: Organization | AM1: Address | AN1: City | AO1: ST | AP1: Zip | AQ1: Targeting Summary | AR1: Email | AS1: Phone | AT1: Market Need # of Units | AU1: Total # of units | AV1: Unit Type: SRO | AW1: Eff (0-bdrn) | AX1: 1-Bdrm | AY1: 2-Bdrm | AZ1: 3-Bdrm | BA1: 4-Bdrm | BB1: 5-Bdrm | BC1: Rowhouse | BD1: Mkt | BE1: Mgr | BF1: Min Set Aside | BG1: 0.2 | BH1: 0.3 | BI1: 0.4 | BJ1: 0.5 | BK1: 0.6 | BL1: 0.7 | BM1: 0.8 | BN1: mkt | BO1: mgr 60% | BP1: total | BQ1: Ave Inc | BR1: Total Project Costs | BS1: Jobs per $1 million | BT1: Wages Pd per $1 million
A3: April mtg | B3: 2025 | C3: Active | D3: Aspen Village 4% | E3: 3010 11th Ave S | F3: Great Falls | G3: 59405 | H3: 47.491388 | I3: -111.255574 | J3: Cascade | K3: 0.04 | L3: For-Profit | M3: Acq/Rehab | N3: Family | O3: 60 | P3: 3 | Q3: 7523630 | R3: 6319217 | S3: 11984655 | U3: 0.0605 | V3: 40 | AC3: Aspen Village Housing Partners, LP | AD3: Gavin Taylor | AE3: 2607 2nd Ave, Suite 300 | AF3: Seattle | AG3: WA | AH3: 98121 | AI3: gavin.taylor@vitus.com | AJ3: (253) 886-2906 | AK3: Cory Reeves Mayor | AL3: City of Great Falls | AM3: PO Box 5021 | AN3: Great Falls | AO3: MT | AP3: 59403 | AQ3: 60 | AS3: (406) 455-8451 | AY3: 27 | AZ3: 30 | BA3: 3 | BF3: 40-60 | BK3: 60 | BP3: =SUM(BG3:BO3) -> 60 | BQ3: =((BH3*BH$1)+(BI3*BI$1)+(BJ3*BJ$1)+(BK3*BK$1)+(BL3*BL$1)+(BM3*BM$1))/SUM(BH3:BM3) -> 0.6 | BR3: 18158568 | BS3: =VLOOKUP(M3,#REF!,2,TRUE)*(BR3/1000000) ->  | BT3: =VLOOKUP(M3,#REF!,3,TRUE)*(BR3/1000000) -> 
A4: 2024-10-22 | B4: 2025 | C4: Active | D4: Skyview | E4: TBD Jackson St | F4: Billings | G4: 59101 | H4: 45.7556 | I4: -108.51479 | J4: Yellowstone | K4: 0.09 | L4: For-Profit | M4: New Const | N4: Family | O4: 26 | P4: 10 | Q4: 4702040 | R4: 3925811 | S4: 0 | T4: 0 | U4: 0 | AC4: Echo Development | AD4: Gene Leuwer | AE4: 1625 E 6th Ave | AF4: Helena | AG4: MT | AH4: 59601 | AI4: gleuwer1139@msn.com | AJ4: 4064595332 | AK4: Bill Cole Mayor | AL4: City of Billings | AM4: PO Box 1178 | AN4: Billings | AO4: MT | AP4: 59105 | AQ4: 40/50/60/80 | AR4: coleb@billingsmt.gov | AS4: 4066578296 | AT4: 10425 | AU4: =SUM(AV4:BE4) -> 26 | AX4: 5 | AY4: 8 | AZ4: 13 | BF4: Ave Inc | BI4: 6 | BJ4: 6 | BK4: 5 | BM4: 9 | BP4: 26 | BQ4: =((BH4*BH$1)+(BI4*BI$1)+(BJ4*BJ$1)+(BK4*BK$1)+(BL4*BL$1)+(BM4*BM$1))/SUM(BH4:BM4) -> 0.6 | BR4: 9074050 | BS4: =VLOOKUP(M4,#REF!,2,TRUE)*(BR4/1000000) ->  | BT4: =VLOOKUP(M4,#REF!,3,TRUE)*(BR4/1000000) -> 
A5: 2024-10-22 | B5: 2025 | C5: Active | D5: LB Lofts 9% | E5: 201 Sioux Ln | F5: Billings | G5: 59105 | H5: 45.82461 | I5: -108.48148 | J5: Yellowstone | K5: 0.09 | L5: Non-Profit | M5: New Const | N5: Family | O5: 22 | P5: 4 | Q5: 6500000 | R5: 5524448 | AC5: Homeword / HA Billings | AD5: Heather McMilin | AE5: 1535 Liberty ln STE 116A | AF5: Missoula | AG5: MT | AH5: 59801 | AI5: heather@homeword.org | AJ5: 4065324663 | AK5: Bill Cole Mayor | AL5: City of Billings | AM5: PO Box 1178 | AN5: Billings | AO5: MT | AP5: 59105 | AQ5: 40/50/60 | AR5: coleb@billingsmt.gov | AS5: 4066578296 | AT5: 1254 | AU5: 22 | AY5: =17+5 -> 22 | BF5: 40-60 | BJ5: 17 | BK5: 5 | BP5: 22 | BQ5: 0.5227272727 | BR5: 6414158 | BS5: =VLOOKUP(M5,#REF!,2,TRUE)*(BR5/1000000) ->  | BT5: =VLOOKUP(M5,#REF!,3,TRUE)*(BR5/1000000) -> 
A6: Bd Clsing | B6: 2025 | C6: Active | D6: LB Lofts 4% | E6: 313 S 8th Ave | F6: Laurel | G6: 59044 | H6: 45.66468 | I6: -108.78151 | J6: Yellowstone | K6: 0.04 | L6: Non-Profit | M6: New Const | N6: Senior | O6: 109 | P6: 24 | Q6: 11761520 | R6: 10231498 | S6: 18500000 | T6: 8500000 | U6: 0.0668 | V6: 35 | AC6: Homeword / HA Billings | AD6: Heather McMilin | AE6: 1535 Liberty ln STE 116A | AF6: Missoula | AG6: MT | AH6: 59801 | AI6: heather@homeword.org | AJ6: 4065324663 | AK6: Dave Waggoner Mayor | AL6: City of Laurel | AM6: 115 West 1st Ave | AN6: Laurel | AO6: MT | AP6: 59044 | AQ6: 40/50/60 | AR6: citymayor@laurel.mt.gov | AS6: 4066288456 | AT6: 1254 | AU6: 109 | AX6: 29 | AY6: =34+33+3+8 -> 78 | BE6: 2 | BF6: 40-60 | BI6: 3 | BJ6: =29+34+8 -> 71 | BK6: 33 | BO6: 2 | BP6: 109 | BQ6: 0.5280373832 | BR6: 30573048 | BS6: =VLOOKUP(M6,#REF!,2,TRUE)*(BR6/1000000) ->  | BT6: =VLOOKUP(M6,#REF!,3,TRUE)*(BR6/1000000) -> 
A7: 2024-10-22 | B7: 2025 | C7: Active | D7: Opportunity Place | E7: 901 S. Third St. W. | F7: Missoula | G7: 59801 | H7: 46.86663 | I7: -114.0101 | J7: Missoula | K7: 0.09 | L7: Non-Profit | M7: New Const | N7: Family | O7: 24 | P7: 1 | Q7: 6500000 | R7: 5362500 | S7: 0 | T7: 0 | U7: 0 | V7: 0 | AC7: 42-44 Developers | AD7: Mike Bouchee | AE7: 2550 Triple Creek Drive | AF7: Missoula | AG7: MT | AH7: 59804 | AI7: mike@boucheedevelopment.com | AJ7: 4062141618 | AK7: Andrea Davis Mayor | AL7: City of Missoula | AM7: 435 Ryman St | AN7: Missoula | AO7: MT | AP7: 59801 | AQ7: 40/50/60/70/80 | AR7: staffm@ci.missoua.mt.us | AS7: 406-552-6001 | AT7: 2194 | AU7: 24 | AX7: 9 | AY7: 15 | BF7: Ave Inc | BI7: 1 | BJ7: 1 | BK7: 20 | BL7: 1 | BM7: 1 | BP7: 24 | BQ7: 0.6 | BR7: 8652454 | BS7: =VLOOKUP(M7,#REF!,2,TRUE)*(BR7/1000000) ->  | BT7: =VLOOKUP(M7,#REF!,3,TRUE)*(BR7/1000000) -> 
A8: 2024-10-22 | B8: 2025 | C8: Active | D8: Hidden Creek 9% | E8: 500 Oak Park Drive | F8: Bozeman | G8: 59718 | H8: 45.69029 | I8: -111.05395 | J8: Gallatin | K8: 0.09 | L8: Non-Profit | M8: New Const | N8: Family | O8: 21 | P8: 1 | Q8: 6500000 | R8: 5348500 | S8: 0 | T8: 0 | AC8: United Housing Ptnrs / HRDC Bzn | AD8: Tyson O'Connell | AE8: 545 Blaine St | AF8: Missoula | AG8: MT | AH8: 59801 | AI8: tyson@uhousingpartners.com | AJ8: 4065314745 | AK8: Terry Cunningham Mayor | AL8: City of Bozeman | AM8: 121 N Rouse Ave | AN8: Bozeman | AO8: MT | AP8: 59715 | AQ8: 60 | AR8: tcunningham@bozeman.net | AS8: 4065953295 | AT8: 2393 | AU8: 20 | AX8: 20 | BF8: 40-60 | BK8: 20 | BP8: 20 | BQ8: 0.6 | BR8: 6603969 | BS8: =VLOOKUP(M8,#REF!,2,TRUE)*(BR8/1000000) ->  | BT8: =VLOOKUP(M8,#REF!,3,TRUE)*(BR8/1000000) -> 
A9: Bd Clsing | B9: 2025 | C9: Active | D9: Hidden Creek 4% | E9: 501 Oak Park Drive | F9: Bozeman | G9: 59718 | H9: 45.69029 | I9: -111.05395 | J9: Gallatin | K9: 0.04 | L9: Non-Profit | M9: New Const | N9: Family | O9: =166-O8 -> 145 | P9: 5 | Q9: 27999530 | R9: 23517250 | S9: 35700000 | T9: 16968921 | U9: 0.065 | V9: 30 | AC9: United Housing Ptnrs / HRDC Bzn | AD9: Tyson O'Connell | AE9: 545 Blaine St | AF9: Missoula | AG9: MT | AH9: 59801 | AI9: tyson@uhousingpartners.com | AJ9: 4065314745 | AK9: Terry Cunningham Mayor | AL9: City of Bozeman | AM9: 121 N Rouse Ave | AN9: Bozeman | AO9: MT | AP9: 59715 | AQ9: 30/60/70 | AR9: tcunningham@bozeman.net | AS9: 4065953295 | AT9: 2393 | AU9: 162 | AX9: 68 | AY9: 80 | BA9: 14 | BF9: 40-60 | BH9: 8 | BK9: =68+48+14 -> 130 | BL9: 24 | BP9: 162 | BQ9: 0.6 | BR9: 59465304 | BS9: =VLOOKUP(M9,#REF!,2,TRUE)*(BR9/1000000) ->  | BT9: =VLOOKUP(M9,#REF!,3,TRUE)*(BR9/1000000) -> 
A10: 2024-10-22 | B10: 2025 | C10: Active | D10: Polson Gardens | E10: TBD between 7th Ave. E. and 5th Ave. E. | F10: Polson | G10: 59860 | H10: 47.69003 | I10: -114.149677 | J10: Lake | K10: 0.09 | L10: For-Profit | M10: New Const | N10: Senior | O10: 24 | P10: 6 | Q10: 6500000 | R10: 5361964 | S10: 0 | T10: 0 | U10: 0 | V10: 0 | AC10: Housing Solutions | AD10: Alex Burkhalter | AE10: PO Box 2099 | AF10: Missoula | AG10: MT | AH10: 59806 | AI10: alex@housing-solutions.org | AJ10: 4062031558 | AK10: Eric Huffine (Mayor) | AL10: City of Polson | AM10: 106 1st Street | AN10: Polson | AO10: MT | AP10: 59860 | AQ10: 40/50/60 | AR10: mayor@cityofpolson.com | AS10: 406-883-8205 | AT10: 154 | AU10: 24 | AX10: 11 | AY10: 12 | BE10: 1 | BF10: 40-60 | BI10: 2 | BJ10: 13 | BK10: 8 | BO10: 1 | BP10: 24 | BQ10: 0.5260869565 | BR10: 7287461 | BS10: =VLOOKUP(M10,#REF!,2,TRUE)*(BR10/1000000) ->  | BT10: =VLOOKUP(M10,#REF!,3,TRUE)*(BR10/1000000) -> 
A11: 2024-10-22 | B11: 2025 | C11: Active | D11: The Homestead | E11: TBD Harrington Ave | F11: Dillon | G11: 59725 | H11: 45.22316 | I11: -112.62775 | J11: Beaverhead | K11: 0.09 | L11: Non-Profit | M11: New Const | N11: Senior | O11: 20 | P11: 1 | Q11: 6500000 | R11: 5491951 | S11: 0 | T11: 0 | U11: 0 | V11: 0 | AC11: The Housing Company | AD11: Tiffany Hapney | AE11: PO Box 6943 | AF11: Boise | AG11: ID | AH11: 83707 | AI11: tiffanyh@ihfa.org | AJ11: 9862176594 | AK11: John McGinley Mayor | AL11: City of Dillon | AM11: 125 N. Idaho Street | AN11: Dillon | AO11: MT | AP11: 59725 | AQ11: 30/50/60 | AR11: mayor@dillonmt.org | AS11: 406-683-4245 | AT11: 62 | AU11: 20 | AX11: 20 | BF11: 40-60 | BH11: 2 | BJ11: 12 | BK11: 6 | BP11: 20 | BQ11: 0.51 | BR11: 6561537 | BS11: =VLOOKUP(M11,#REF!,2,TRUE)*(BR11/1000000) ->  | BT11: =VLOOKUP(M11,#REF!,3,TRUE)*(BR11/1000000) -> 
A12: 2024-12-17 | B12: 2024 | C12: Active | D12: Aurora | E12: 3605 Grand Ave | F12: Billings MT | G12: 59102 | H12: 45.78783 | I12: -108.60587 | J12: Yellowstone | K12: 0.04 | L12: For-Profit | M12: New Const | N12: Family | O12: 156 | P12: 2 | Q12: 16956070 | R12: 14072131 | S12: 27155000 | T12: 25080000 | U12: 0.0586 | V12: 40 | AC12: Kamaka Aff Housing | AD12: Jackson Sheppard | AE12: 595 S Riverwoods PKWY STE 400 | AF12: Logan | AG12: UT | AH12: 84321 | AI12: Jackson.sheppard@netwasatch.com | AJ12: 9492579062 | AK12: Bill Cole Mayor | AL12: City of Billings | AM12: PO Box 1178 | AN12: Billings | AO12: MT | AP12: 59105 | AQ12: 60 | AR12: coleb@billingsmt.gov | AS12: 4066578296 | AT12: 1000 | AU12: =SUM(AV12:BE12) -> 156 | AX12: 50 | AY12: 72 | AZ12: 34 | BF12: 40-60 | BK12: 156 | BP12: =SUM(BH12:BO12) -> 156 | BQ12: =((BH12*BH$1)+(BI12*BI$1)+(BJ12*BJ$1)+(BK12*BK$1)+(BL12*BL$1)+(BM12*BM$1))/SUM(BH12:BM12) -> 0.6 | BR12: 45384541 | BS12: =VLOOKUP(M12,#REF!,2,TRUE)*(BR12/1000000) ->  | BT12: =VLOOKUP(M12,#REF!,3,TRUE)*(BR12/1000000) -> 
A13: 2024-12-19 | B13: 2024 | C13: Active | D13: The Manor | E13: 401 N 10th St | F13: Hamilton | G13: 59840 | H13: 46.24986 | I13: -114.17032 | J13: Ravalli | K13: 0.04 | L13: Non-Profit | M13: Acq/Rehab | N13: Senior | O13: 60 | P13: 1 | Q13: 3969300 | R13: 3413262 | S13: 7000000 | T13: 3450000 | U13: 0.0775 | V13: 16 | AC13: Sapphire Lutheran Homes | AD13: Cole Harden | AE13: 501 N 10th Ave | AF13: Hamilton | AG13: MT | AH13: 59840 | AI13: charden@stjohnsunited.org | AJ13: 4063632800 | AK13: Dominic Farrenkopf Mayor | AL13: City of Hamilton | AM13: 223 S 2nd St | AN13: Hamilton | AO13: MT | AP13: 59840 | AQ13: 30/50/60 | AR13: dfarrenkopf@cityofhamilton.net | AS13: 4063632101 | AT13: 195 | AU13: 60 | AX13: 42 | AY13: 18 | BF13: 40/60 | BH13: 9 | BJ13: 21 | BK13: 30 | BP13: =SUM(BH13:BO13) -> 60 | BQ13: =((BH13*BH$1)+(BI13*BI$1)+(BJ13*BJ$1)+(BK13*BK$1)+(BL13*BL$1)+(BM13*BM$1))/SUM(BH13:BM13) -> 0.52 | BR13: 12106976 | BS13: =VLOOKUP(M13,#REF!,2,TRUE)*(BR13/1000000) ->  | BT13: =VLOOKUP(M13,#REF!,3,TRUE)*(BR13/1000000) -> 
A14: 2024-08-30 | B14: 2024 | C14: Active | D14: Bigfork Sr (orig 2006 Crestview Apts resyn) | E14: 103 Crestview Drive | F14: Big Fork | G14: 59911 | H14: 48.06942 | I14: -114.0818 | J14: Flathead | K14: 0.04 | L14: For-Profit | M14: Acq/Rehab | N14: Family | O14: 24 | P14: 5 | Q14: 2614040 | R14: 2195754 | S14: 3100000 | T14: 1600000 | U14: 0.0625 | V14: 20 | AC14: American Covenant Senior Housing | AD14: Gerald Fritts | AE14: 234 Shelter Valley Dr | AF14: Kalispell | AG14: MT | AH14: 59901 | AI14: gmf@acshf.com | AJ14: 4062356593 | AK14: Pamela Homquist Commissioner | AL14: Flathead County | AM14: 800 S Main | AN14: Kalispell | AO14: MT | AP14: 59901 | AQ14: 30/60 | AR14: pam.holmquist@flathead.mt.gov | AS14: 4067585503 | AT14: 522 | AU14: =SUM(AV14:BE14) -> 24 | AX14: 16 | AY14: 8 | BF14: 40-60 | BH14: 4 | BK14: 20 | BP14: =SUM(BG14:BO14) -> 24 | BQ14: =((BH14*BH$1)+(BI14*BI$1)+(BJ14*BJ$1)+(BK14*BK$1)+(BL14*BL$1)+(BM14*BM$1))/SUM(BH14:BM14) -> 0.55 | BR14: 6208908 | BS14: =VLOOKUP(M14,#REF!,2,TRUE)*(BR14/1000000) ->  | BT14: =VLOOKUP(M14,#REF!,3,TRUE)*(BR14/1000000) -> 
A15: 2023-10-23 | B15: 2024 | C15: Active | D15: Elmore Roberts (original 1987) | E15: 6 6th Street S | F15: Great Falls | G15: 59401 | H15: 47.50493 | I15: -111.2975 | J15: Cascade | K15: 0.09 | L15: Non-Profit | M15: Acq/Rehab | N15: Family | O15: 60 | P15: 1 | Q15: 6500000 | R15: 5621937 | U15: 0.040525 | V15: 30 | AC15: Community Pres Prtnrs | AD15: Ryan Kucich | AE15: 17782 Sky Park Circle | AF15: Irvine | AG15: CA | AH15: 92614 | AI15: rkucich@cpp-housing.com | AJ15: 2099814595 | AK15: Bob Kelly Manor | AL15: City of Great Falls | AM15: PO Box 5021 | AN15: Great Falls | AO15: MT | AP15: 59403 | AQ15: 50 | AR15: commission@greatfallsmt.net | AS15: 4068700212 | AT15: 676 | AU15: =SUM(AV15:BE15) -> 60 | AX15: 29 | AY15: 30 | BE15: 1 | BF15: 40/60 | BI15: 59 | BO15: 1 | BP15: =SUM(BH15:BO15) -> 60 | BQ15: =((BH15*BH$1)+(BI15*BI$1)+(BJ15*BJ$1)+(BK15*BK$1)+(BL15*BL$1)+(BM15*BM$1))/SUM(BH15:BM15) -> 0.4 | BR15: 12459340 | BS15: =VLOOKUP(M15,#REF!,2,TRUE)*(BR15/1000000) ->  | BT15: =VLOOKUP(M15,#REF!,3,TRUE)*(BR15/1000000) -> 
A16: 2023-10-23 | B16: 2024 | C16: Active | D16: Midtown Aspen 9% | E16: 706 North 7th Ave | F16: Bozeman | G16: 59715 | H16: 45.68694 | I16: -111.04581 | J16: Gallatin | K16: 0.09 | L16: For-Profit | M16: New Const | N16: Family | O16: 23 | P16: 1 | Q16: 6350000 | R16: 5670000 | S16: 0 | T16: 0 | U16: 0 | AC16: Boundary Dev and HRDC | AD16: Joseph Walsh | AE16: PO Box 6220 | AF16: Bozeman | AG16: MT | AH16: 59771 | AI16: joe@boundarydev.com | AJ16: 5037849411 | AK16: Cyndy Andrus Mayor | AL16: City of Bozeman | AM16: 121 N Rouse Ave | AN16: Bozeman | AO16: MT | AP16: 59715 | AQ16: 50/60 | AS16: 4065822383 | AT16: 1688 | AU16: 23 | AX16: 14 | AY16: 5 | AZ16: 4 | BF16: Ave Inc | BJ16: 17 | BK16: 6 | BP16: 23 | BQ16: 0.5260869565 | BR16: 6670000 | BS16: =VLOOKUP(M16,#REF!,2,TRUE)*(BR16/1000000) ->  | BT16: =VLOOKUP(M16,#REF!,3,TRUE)*(BR16/1000000) -> 
A17: Bd Clsing | B17: 2025 | C17: Active | D17: Midtown Aspen (4%) | E17: 706 North 7th Ave | F17: Bozeman | G17: 59715 | H17: 45.68694 | I17: -111.04581 | J17: Gallatin | K17: 0.04 | L17: For-Profit | M17: New Const | N17: Family | O17: 17 | P17: 1 | Q17: 2097880 | R17: 1890000 | AC17: Boundary Dev and HRDC | AD17: Joseph Walsh | AE17: PO Box 6220 | AF17: Bozeman | AG17: MT | AH17: 59771 | AI17: joe@boundarydev.com | AJ17: 5037849411 | AK17: Cyndy Andrus Mayor | AL17: City of Bozeman | AM17: 121 N Rouse Ave | AN17: Bozeman | AO17: MT | AP17: 59715 | AQ17: 60 | AS17: 4065822383 | AT17: 1668 | AU17: =SUM(AV17:BE17) -> 17 | AX17: 10 | AY17: 5 | AZ17: 2 | BF17: 40/60 | BK17: 17 | BP17: =SUM(BH17:BO17) -> 17 | BQ17: =((BH17*BH$1)+(BI17*BI$1)+(BJ17*BJ$1)+(BK17*BK$1)+(BL17*BL$1)+(BM17*BM$1))/SUM(BH17:BM17) -> 0.6 | BR17: 4930000 | BS17: =VLOOKUP(M17,#REF!,2,TRUE)*(BR17/1000000) ->  | BT17: =VLOOKUP(M17,#REF!,3,TRUE)*(BR17/1000000) -> 
A18: 2023-12-23 | B18: 2024 | C18: Active | D18: Twin Creek Apts 9 | E18: 300 Dorothy St | F18: Helena | G18: 59601 | H18: 46.58834 | I18: -111.96698 | J18: Lewis and Clark | K18: 0.09 | L18: For-Profit | M18: New Const | N18: Family | O18: 20 | P18: 1 | Q18: 6500000 | R18: 5524446 | S18: 0 | T18: 0 | U18: 0.038325 | V18: 16 | AC18: United Housing Ptnrs LLC | AD18: Tyson O'Connell | AE18: 545 Blaine St | AF18: Missoula | AG18: MT | AH18: 59801 | AI18: tyson@uhousingpartners.com | AJ18: 4065314745 | AK18: Wilmot Collins Mayor | AL18: City of Helena | AM18: 316 N Park Ave | AN18: Helena | AO18: MT | AP18: 59623 | AQ18: 60 | AR18: wcollins@helena.gov | AS18: 4064478410 | AT18: 810 | AU18: =SUM(AV18:BE18) -> 20 | AX18: 20 | BF18: Ave Inc | BK18: 20 | BP18: =SUM(BH18:BO18) -> 20 | BQ18: =((BH18*BH$1)+(BI18*BI$1)+(BJ18*BJ$1)+(BK18*BK$1)+(BL18*BL$1)+(BM18*BM$1))/SUM(BH18:BM18) -> 0.6 | BR18: 6002691 | BS18: =VLOOKUP(M18,#REF!,2,TRUE)*(BR18/1000000) ->  | BT18: =VLOOKUP(M18,#REF!,3,TRUE)*(BR18/1000000) -> 
A19: 2024-08-30 | B19: 2024 | C19: Active | D19: Twin Creek Apts 4 | E19: 300 Dorothy St | F19: Helena | G19: 59601 | H19: 46.58834 | I19: -111.96698 | J19: Lewis and Clark | K19: 0.04 | L19: For-Profit | M19: New Const | N19: Family | O19: 52 | P19: 2 | Q19: 5926220 | R19: 5036783 | U19: 0.038325 | V19: 20 | AC19: United Housing Ptnrs LLC | AD19: Tyson O'Connell | AE19: 545 Blaine St | AF19: Missoula | AG19: MT | AH19: 59801 | AI19: tyson@uhousingpartners.com | AJ19: 4065314745 | AK19: Wilmot Collins Mayor | AL19: City of Helena | AM19: 316 N Park Ave | AN19: Helena | AO19: MT | AP19: 59623 | AQ19: 30/60/70 | AR19: wcollins@helena.gov | AS19: 4064478410 | AT19: 810 | AU19: =SUM(AV19:BE19) -> 52 | AX19: 24 | AY19: 16 | AZ19: 12 | BF19: Ave Inc | BH19: 12 | BK19: 4 | BL19: 36 | BP19: =SUM(BH19:BO19) -> 52 | BQ19: =((BH19*BH$1)+(BI19*BI$1)+(BJ19*BJ$1)+(BK19*BK$1)+(BL19*BL$1)+(BM19*BM$1))/SUM(BH19:BM19) -> 0.6 | BR19: 16702104 | BS19: =VLOOKUP(M19,#REF!,2,TRUE)*(BR19/1000000) ->  | BT19: =VLOOKUP(M19,#REF!,3,TRUE)*(BR19/1000000) -> 
A20: 2023-10-23 | B20: 2024 | C20: Active | D20: Mitchell Court | E20: 4154 Mitchell Ave | F20: Billings | G20: 59101 | H20: 45.76171 | I20: -108.51721 | J20: Yellowstone | K20: 0.09 | L20: For-Profit | M20: New Const | N20: Family | O20: 32 | P20: 5 | Q20: 6500000 | R20: 5394461 | U20: 0.038325 | V20: 20 | AC20: GL Development | AD20: Gene Leuwer | AE20: 1625 E 6th Ave | AF20: Helena | AG20: MT | AH20: 59601 | AI20: gleuwer1139@msn.com | AJ20: 4064595332 | AK20: Bill Cole Mayor | AL20: City of Billings | AM20: PO Box 1178 | AN20: Billings | AO20: MT | AP20: 59103 | AQ20: 50/60 | AR20: coleb@billingsmt.gov | AS20: 4066578433 | AT20: 1131 | AU20: =SUM(AV20:BE20) -> 32 | AX20: 14 | AY20: 14 | AZ20: 4 | BF20: 40/60 | BJ20: 23 | BK20: 9 | BP20: =SUM(BH20:BO20) -> 32 | BQ20: =((BH20*BH$1)+(BI20*BI$1)+(BJ20*BJ$1)+(BK20*BK$1)+(BL20*BL$1)+(BM20*BM$1))/SUM(BH20:BM20) -> 0.528125 | BR20: 11176278 | BS20: =VLOOKUP(M20,#REF!,2,TRUE)*(BR20/1000000) ->  | BT20: =VLOOKUP(M20,#REF!,3,TRUE)*(BR20/1000000) -> 
A21: 2023-10-23 | B21: 2024 | C21: Active | D21: Riverstone Senior Res | E21: 123 Skeels Ave | F21: Hamilton | G21: 59840 | H21: 46.24983 | I21: -114.15173 | J21: Ravalli | K21: 0.09 | L21: For-Profit | M21: New Const | N21: Senior | O21: 23 | P21: 1 | Q21: 6500000 | R21: 5426957 | U21: 0.038325 | V21: 16 | AC21: Housing Solutions, LLC | AD21: Alex Burkhalter | AE21: PO Box 2099 | AF21: Missoula | AG21: MT | AH21: 59806 | AI21: alex@housing-solutions.org | AJ21: 4062031558 | AK21: Dominic Farrenkopf Mayor | AL21: City of Hamilton | AM21: 223 S 2nd St | AN21: Hamilton | AO21: MT | AP21: 59840 | AQ21: 40/50/60 | AR21: dfarrenkopf@cityofhamilton.net | AS21: 4063632101 | AT21: 148 | AU21: 23 | AX21: 16 | AY21: 6 | BE21: 1 | BF21: 40/60 | BI21: 3 | BJ21: 11 | BK21: 8 | BO21: 1 | BP21: 23 | BQ21: 0.5227272727 | BR21: 6979519 | BS21: =VLOOKUP(M21,#REF!,2,TRUE)*(BR21/1000000) ->  | BT21: =VLOOKUP(M21,#REF!,3,TRUE)*(BR21/1000000) -> 
A22: 2023-11-17 | B22: 2023 | C22: Active | D22: Baxter Apartments | E22: 2561 Trade Wind Ln | F22: Bozeman | G22: 59718 | H22: 45.69904904 | I22: -111.0715554 | J22: Gallatin | K22: 0.04 | L22: For-Profit | M22: Acq/Rehab | N22: Family | O22: 50 | P22: 5 | Q22: 4693710 | R22: 4228735 | S22: 7300000 | T22: 550000 | U22: 0.061 | V22: 15 | AC22: DevCo Preservation | AD22: Chase Huber | AE22: 10900 NE 8th St STE 1200 | AF22: Bellevue | AG22: WA | AH22: 98004 | AI22: chase.huber@devcowa.com | AJ22: 6122821977 | AK22: Cyndy Andrus Mayor | AL22: City of Bozeman | AM22: 121 N Rouse Ave | AN22: Bozeman | AO22: MT | AP22: 59715 | AQ22: 60 | AS22: 4065822383 | AT22: 3551 | AU22: 50 | AX22: 20 | AY22: 30 | BF22: 40/60 | BK22: 50 | BP22: 50 | BQ22: 0.6 | BR22: 13942393 | BS22: =VLOOKUP(M22,#REF!,2,TRUE)*(BR22/1000000) ->  | BT22: =VLOOKUP(M22,#REF!,3,TRUE)*(BR22/1000000) -> 
A23: 2023-11-15 | B23: 2023 | C23: Active | D23: N 3rd Apts | E23: 699 N 3rd Ave | F23: Bozeman | G23: 59718 | H23: 45.68663 | I23: -111.04103 | J23: Gallatin | K23: 0.04 | L23: For-Profit | M23: New Const | N23: Family | O23: 216 | P23: 1 | Q23: 35558210 | R23: 31646806 | S23: 49000000 | T23: 26000000 | U23: 0.0604 | V23: 30 | AC23: DevCo Preservation | AD23: Chase Huber | AE23: 10900 NE 8th St STE 1200 | AF23: Bellevue | AG23: WA | AH23: 98004 | AI23: chase.huber@devcowa.com | AJ23: 4257360580 | AK23: Cyndy Andrus Mayor | AL23: City of Bozeman | AM23: 121 N Rouse Ave | AN23: Bozeman | AO23: MT | AP23: 59715 | AQ23: 50/60/70 | AS23: 4065822383 | AT23: 4952 | AU23: =SUM(AV23:BE23) -> 210 | AX23: 78 | AY23: 82 | AZ23: 43 | BA23: 7 | BF23: Ave Inc | BK23: 216 | BP23: =SUM(BG23:BO23) -> 216 | BQ23: =((BH23*BH$1)+(BI23*BI$1)+(BJ23*BJ$1)+(BK23*BK$1)+(BL23*BL$1)+(BM23*BM$1))/SUM(BH23:BM23) -> 0.6 | BR23: 73485712 | BS23: =VLOOKUP(M23,#REF!,2,TRUE)*(BR23/1000000) ->  | BT23: =VLOOKUP(M23,#REF!,3,TRUE)*(BR23/1000000) -> 
A24: 2023-12-14 | B24: 2023 | C24: Active | D24: The Beaumont (formerly Lumberyard Apts) | E24: 1525 North 14th Ave | F24: Bozeman | G24: 59715 | H24: 45.695119 | I24: -111.055083 | J24: Gallatin | K24: 0.04 | L24: For-Profit | M24: New Const | N24: Family | O24: 155 | P24: 1 | Q24: 23551220 | R24: 20487512 | S24: 35000000 | T24: 0 | U24: 0.04 | V24: 16 | AC24: Reuter Walton Development LLC | AD24: Paul Keenen | AE24: 4450 Excelsior Blvd STE 400 | AF24: St Louis Park | AG24: MN | AH24: 55416 | AI24: pkeenan@reuterwalton.com | AJ24: 6122821977 | AK24: Cyndy Andrus Mayor | AL24: City of Bozeman | AM24: 121 N Rouse Ave | AN24: Bozeman | AO24: MT | AP24: 59715 | AQ24: 60 | AS24: 4065822383 | AT24: 3551 | AU24: 155 | AX24: 67 | AY24: 43 | AZ24: 45 | BF24: 40/60 | BK24: 155 | BP24: 155 | BQ24: 0.6 | BR24: 51935664 | BS24: =VLOOKUP(M24,#REF!,2,TRUE)*(BR24/1000000) ->  | BT24: =VLOOKUP(M24,#REF!,3,TRUE)*(BR24/1000000) -> 
A25: 2023-10-12 | B25: 2023 | C25: Active | D25: Highland Manor 4% (orig 1993 resyn) | E25: 1315-1325 Jefferson Ave | F25: Havre | G25: 59501 | H25: 48.53927 | I25: -109.69504 | J25: Hill | K25: 0.04 | L25: For-profit | M25: Acq/Rehab | N25: Family | O25: 32 | P25: 2 | Q25: 2487870 | R25: 2139350 | S25: 4000000 | U25: 0.0225 | V25: 20 | Y25: =IF(W25>X25,W25,X25) -> 00:00:00 | Z25: =DATE(YEAR(Y25)+14,MONTH(Y25),DAY(Y25)) ->  | AA25: 35 | AB25: =DATE(YEAR(Z25)+AA25,MONTH(Z25),DAY(Z25)) ->  | AC25: Echo Enterprises LLC | AD25: Beki Brandborg | AE25: 4835 Echo Dr | AF25: Helena | AG25: MT | AH25: 59602 | AI25: beki@blackfoot.net | AJ25: 4064312151 | AK25: Doug Kaercher Mayor | AL25: City of Havre | AM25: 520 4th St | AN25: Havre | AO25: MT | AP25: 59501 | AQ25: 30/50/60 | AT25: 109 | AU25: =SUM(AV25:BE25) -> 32 | AX25: 7 | AY25: 25 | BF25: 40/60 | BH25: 16 | BJ25: 10 | BK25: 6 | BP25: =SUM(BG25:BO25) -> 32 | BQ25: 0.41875 | BR25: 6966344 | BS25: =VLOOKUP(M25,#REF!,2,TRUE)*(BR25/1000000) ->  | BT25: =VLOOKUP(M25,#REF!,3,TRUE)*(BR25/1000000) -> 
A26: 2023-10-06 | B26: 2023 | C26: Active | D26: Parkview Village - Vitus | E26: 624 5th Ave NW | F26: Great Falls | G26: 59404 | H26: 47.51248 | I26: -111.32349 | J26: Cascade | K26: 0.04 | L26: For-Profit | M26: Acq/Rehab | N26: Family | O26: 84 | P26: 10 | Q26: 6841480 | R26: 6156724 | S26: 11500000 | T26: 12330000 | U26: 0.0626 | V26: 17 | Y26: =IF(W26>X26,W26,X26) -> 00:00:00 | Z26: =DATE(YEAR(Y26)+14,MONTH(Y26),DAY(Y26)) ->  | AB26: =DATE(YEAR(Z26)+AA26,MONTH(Z26),DAY(Z26)) ->  | AC26: Vitus Development IV LLC | AD26: Samantha Cullen | AE26: 415 First Avenue North, STE 19240 | AF26: Seattle | AG26: WA | AH26: 98004 | AI26: samantha.cullen@vitus.com | AJ26: (206) 832-1326 | AK26: Bob Kelly Mayor | AL26: City of Great Falls | AM26: PO Box 5021 | AN26: Great Falls | AO26: MT | AP26: 59403 | AQ26: 40/60 | AR26: commission@greatfallsmt.net | AS26: (406) 870-0212 | AT26: 2619 | AU26: =SUM(AV26:BE26) -> 84 | AX26: 36 | AY26: 30 | AZ26: 18 | BF26: 40/60 | BK26: 84 | BP26: =SUM(BG26:BO26) -> 84 | BQ26: =((BH26*BH$1)+(BI26*BI$1)+(BJ26*BJ$1)+(BK26*BK$1)+(BL26*BL$1)+(BM26*BM$1))/SUM(BH26:BM26) -> 0.6 | BR26: 19063276 | BS26: =VLOOKUP(M26,#REF!,2,TRUE)*(BR26/1000000) ->  | BT26: =VLOOKUP(M26,#REF!,3,TRUE)*(BR26/1000000) -> 
A27: 2023-07-25 | B27: 2023 | C27: Active | D27: Union Place 4% (orig 2006 and 2004 ph I & II) | E27: 2500 Great Northern Loop | F27: Missoula | G27: 59808 | H27: 46.889626 | I27: -114.035272 | J27: Missoula | K27: 0.04 | L27: For-Profit | M27: Acq/Rehab | N27: Family | O27: 63 | P27: 6 | Q27: 5482680 | R27: 4860169 | S27: 8860000 | T27: 5130000 | U27: 0.0596 | V27: 18 | Y27: 00:00:00 | AC27: DevCo Preservation | AD27: Chase Huber | AE27: 10900 NE 8th St STE 1200 | AF27: Bellevue | AG27: WA | AH27: 98004 | AI27: chase.huber@devcowa.com | AJ27: 4254587369 | AK27: Jordan Hess Mayor | AL27: City of Missoula | AM27: 435 Ryman St | AN27: Missoula | AO27: MT | AP27: 59802 | AQ27: 0.6 | AR27: mayorstaff@ci.missoula.mt.us | AS27: 4065526001 | AT27: 722 | AU27: =SUM(AV27:BE27) -> 63 | AY27: 36 | AZ27: 27 | BF27: 40/60 | BK27: 63 | BP27: 63 | BQ27: 0.6 | BR27: 14547095 | BS27: =VLOOKUP(M27,#REF!,2,TRUE)*(BR27/1000000) ->  | BT27: =VLOOKUP(M27,#REF!,3,TRUE)*(BR27/1000000) -> 
A28: 2023-06-12 | B28: 2023 | C28: Active | D28: Sunshine | E28: 600 13th Ave South | F28: Great Falls | G28: 59405 | H28: 47.49019 | I28: -111.29738 | J28: Cascade | K28: 0.04 | L28: For-profit | M28: Acq/Rehab | N28: Senior | O28: 72 | P28: 1 | Q28: =8594820*0.8 -> 6875856 | R28: =7734564*0.8 -> 6187651.2 | S28: =15381160*0.8 -> 12304928 | T28: =10958000*0.8 -> 8766400 | U28: 0.0529 | V28: 35 | W28: 2023-05-23 | X28: 1905-07-15 | Y28: 2023-05-23 | Z28: 2037-05-23 | AA28: 35 | AB28: 2072-05-23 | AC28: Community Preservation Partners/Hampstead | AD28: Karen Buckland | AE28: 17782 Sky Park Circle | AF28: Irvine | AG28: CA | AH28: 92614 | AI28: kbuckland@cpp-housing.com | AJ28: 9492368135 | AK28: Bob Kelly Mayor | AL28: City of Great Falls | AM28: PO Box 5021 | AN28: Great Falls | AO28: MT | AP28: 59403 | AQ28: 50% / 60% | AR28: commision@greatfallmt.net | AS28: 4068700212 | AT28: 375 | AU28: 72 | AX28: 60 | AY28: 11 | BE28: 1 | BF28: 40/60 | BJ28: 46 | BK28: 25 | BO28: 1 | BP28: =SUM(BH28:BO28) -> 72 | BQ28: =((BH28*BH$1)+(BI28*BI$1)+(BJ28*BJ$1)+(BK28*BK$1)+(BL28*BL$1)+(BM28*BM$1))/SUM(BH28:BM28) -> 0.5352112676 | BR28: =23151193*0.8 -> 18520954.4 | BS28: =VLOOKUP(M28,#REF!,2,TRUE)*(BR28/1000000) ->  | BT28: =VLOOKUP(M28,#REF!,3,TRUE)*(BR28/1000000) -> 
A29: 2023-06-12 | B29: 2023 | C29: Active | D29: Broadview Manor East | E29: 720 & 724 42A St North | F29: Great Falls | G29: 59404 | H29: 47.51406 | I29: -111.23358 | J29: Cascade | K29: 0.04 | L29: For-profit | M29: Acq/Rehab | N29: Family | O29: 10 | P29: 2 | Q29: =8594820*0.1 -> 859482 | R29: =7734564*0.1 -> 773456.4 | S29: =15381160*0.1 -> 1538116 | T29: =10958000*0.1 -> 1095800 | U29: 0.0529 | V29: 35 | Y29: 00:00:00 | AC29: Community Preservation Partners/Hampstead | AD29: Karen Buckland | AE29: 17783 Sky Park Circle | AF29: Irvine | AG29: CA | AH29: 92614 | AI29: kbuckland@cpp-housing.com | AJ29: 9492368135 | AK29: Bob Kelly Mayor | AL29: City of Great Falls | AM29: PO Box 5022 | AN29: Great Falls | AO29: MT | AP29: 59403 | AQ29: 50% / 60% | AR29: commision@greatfallmt.net | AS29: 4068700212 | AT29: 269 | AU29: 12 | AZ29: 6 | BA29: 6 | BF29: 40/60 | BK29: 12 | BP29: 12 | BQ29: 0.6 | BR29: =23151193*0.1 -> 2315119.3 | BS29: =VLOOKUP(M29,#REF!,2,TRUE)*(BR29/1000000) ->  | BT29: =VLOOKUP(M29,#REF!,3,TRUE)*(BR29/1000000) -> 
A30: 2023-06-12 | B30: 2023 | C30: Active | D30: Broadview Manor West | E30: 710 & 714 4th Ave NW | F30: Great Falls | G30: 59405 | H30: 47.51141 | I30: -111.32486 | J30: Cascade | K30: 0.04 | L30: For-profit | M30: Acq/Rehab | N30: Family | O30: 10 | P30: 2 | Q30: =8594820*0.1 -> 859482 | R30: =7734564*0.1 -> 773456.4 | S30: =15381160*0.1 -> 1538116 | T30: =10958000*0.1 -> 1095800 | U30: 0.0529 | V30: 35 | Y30: 00:00:00 | AC30: Community Preservation Partners/Hampstead | AD30: Karen Buckland | AE30: 17784 Sky Park Circle | AF30: Irvine | AG30: CA | AH30: 92614 | AI30: kbuckland@cpp-housing.com | AJ30: 9492368135 | AK30: Bob Kelly Mayor | AL30: City of Great Falls | AM30: PO Box 5023 | AN30: Great Falls | AO30: MT | AP30: 59403 | AQ30: 50% / 60% | AR30: commision@greatfallmt.net | AS30: 4068700212 | AT30: 269 | AU30: 8 | AZ30: 4 | BA30: 4 | BF30: 40/60 | BK30: 8 | BP30: 8 | BQ30: 0.6 | BR30: =23151193*0.1 -> 2315119.3 | BS30: =VLOOKUP(M30,#REF!,2,TRUE)*(BR30/1000000) ->  | BT30: =VLOOKUP(M30,#REF!,3,TRUE)*(BR30/1000000) -> 
A31: 2023-05-11 | B31: 2023 | C31: Active | D31: South Forty Apartments 4% (resynd orig 2007) | E31: 769 Fallow Lane | F31: Billings | G31: 59101 | H31: 45.756 | I31: -108.60182 | J31: Yellowstone | K31: 0.04 | L31: For-profit | M31: Acq/Rehab | N31: Senior | O31: 101 | P31: 1 | Q31: 9103280 | R31: 8073665 | S31: 14999944.82 | Y31: 00:00:00 | AA31: 31 | AC31: South Forty Partners LP | AD31: Brian Moloney | AE31: 401 Wilshire Blvd Ste 1070 | AF31: Santa Monica | AG31: CA | AH31: 90401 | AI31: bmoloney@lincolnavecap.com | AJ31: 5094967232 | AK31: Bill Cole Mayor | AL31: City of Billings | AM31: PO Box 1178 | AN31: Billings | AO31: MT | AP31: 59103 | AQ31: 50% / 60% | AR31: coleb@billingsmt.gov | AS31: 4066578296 | AT31: =(873+374)/2 -> 623.5 | AU31: =SUM(AV31:BE31) -> 101 | AX31: 100 | BE31: 1 | BF31: 40/60 | BJ31: 51 | BK31: 50 | BP31: =SUM(BH31:BO31) -> 101 | BQ31: =((BH31*BH$1)+(BI31*BI$1)+(BJ31*BJ$1)+(BK31*BK$1)+(BL31*BL$1)+(BM31*BM$1))/SUM(BH31:BM31) -> 0.5495049505 | BR31: 25165580 | BS31: =VLOOKUP(M31,#REF!,2,TRUE)*(BR31/1000000) ->  | BT31: =VLOOKUP(M31,#REF!,3,TRUE)*(BR31/1000000) -> 
A32: 2022-11-17 | B32: 2022 | C32: Active | D32: Comstock Apts (resyn Comstock I, II, II) | E32: 777 Haggerty Lane | F32: Bozeman | G32: 59715 | H32: 45.67236 | I32: -111.0102 | J32: Gallatin | K32: 0.04 | L32: For-profit | M32: Acq/Rehab | N32: Family | O32: 86 | P32: 10 | Q32: 7514790 | R32: 6627681 | S32: 14000000 | Y32: 00:00:00 | AA32: 35 | AC32: DevCo Preservation | AD32: Chase Huber | AE32: 10900 NE 8th St STE 1200 | AF32: Bellevue | AG32: WA | AH32: 98004 | AI32: chase.huber@devcowa.com | AJ32: 4254587369 | AK32: Cyndy Andrus | AL32: City of Bozeman | AM32: 121 N Rouse Ave | AN32: Bozeman | AO32: MT | AP32: 59715 | AQ32: 0.6 | AS32: 4065822383 | AU32: =SUM(AV32:BE32) -> 86 | AX32: 52 | AY32: 23 | AZ32: 9 | BA32: 1 | BE32: 1 | BF32: 40/60 | BK32: 86 | BP32: =SUM(BH32:BO32) -> 86 | BQ32: =((BH32*BH$1)+(BI32*BI$1)+(BJ32*BJ$1)+(BK32*BK$1)+(BL32*BL$1)+(BM32*BM$1))/SUM(BH32:BM32) -> 0.6 | BR32: 21411734 | BS32: =VLOOKUP(M32,#REF!,2,TRUE)*(BR32/1000000) ->  | BT32: =VLOOKUP(M32,#REF!,3,TRUE)*(BR32/1000000) -> 
A33: 2022-10-17 | B33: 2023 | C33: Active | D33: ANHA LIHTC #2 | E33: 1 Circle Ln (scattered sites) | F33: Crow Agency | G33: 59022 | H33: 45.60948 | I33: -107.47302 | J33: Big Horn | K33: 0.09 | L33: Tribal | M33: Acq/Rehab | N33: Family | O33: 23 | P33: 23 | Q33: 6435000 | R33: 5388774 | AC33: Apsaalooke Nation HA | AD33: Miriam Smith | AE33: PO Box 99 | AF33: Crow Agency | AG33: MT | AH33: 59022 | AI33: m.smith@a-resource.com | AJ33: 4066237146 | AK33: Frank White Clay Chairman | AL33: Crow Tribe | AM33: PO Box 159 | AN33: Crow Agency | AO33: MT | AP33: 59022 | AQ33: 30% / 60% | AR33: whiteclay.frank@gmail.com | AS33: 4066796567 | AU33: =SUM(AV33:BE33) -> 23 | AY33: 2 | AZ33: 15 | BA33: 6 | BF33: 40-60 | BH33: 6 | BK33: 17 | BP33: =SUM(BH33:BO33) -> 23 | BQ33: =((BH33*BH$1)+(BI33*BI$1)+(BJ33*BJ$1)+(BK33*BK$1)+(BL33*BL$1)+(BM33*BM$1))/SUM(BH33:BM33) -> 0.5217391304 | BR33: 6955297 | BS33: =VLOOKUP(M33,#REF!,2,TRUE)*(BR33/1000000) ->  | BT33: =VLOOKUP(M33,#REF!,3,TRUE)*(BR33/1000000) -> 
A34: 2022-10-17 | B34: 2023 | C34: Active | D34: Carter Commons | E34: 500 3rd St South | F34: Great Falls | G34: 59405 | H34: 47.49963 | I34: -111.30301 | J34: Cascade | K34: 0.09 | L34: For-Profit | M34: New Const | N34: Senior | O34: 25 | P34: 1 | Q34: 6500000 | R34: 5524448 | AC34: Housing Solutions | AD34: Alex Burkhalter | AE34: PO Box 2099 | AF34: Missoula | AG34: MT | AH34: 59806 | AI34: alex@housing-solutions.org | AJ34: 4062031558 | AK34: Bob Kelly Mayor | AL34: City of Great Falls | AM34: PO Box 5021 | AN34: Great Falls | AO34: MT | AP34: 59403 | AQ34: 40% / 50% / 60% | AR34: bkelly@greatfallsmt.net | AS34: 4068700212 | AT34: 270 | AU34: 25 | AX34: 18 | AY34: 6 | BE34: 1 | BF34: 40-60 | BI34: 2 | BJ34: 14 | BK34: 9 | BP34: 25 | BQ34: 0.528 | BR34: 6849388 | BS34: =VLOOKUP(M34,#REF!,2,TRUE)*(BR34/1000000) ->  | BT34: =VLOOKUP(M34,#REF!,3,TRUE)*(BR34/1000000) -> 
A35: 2022-10-17 | B35: 2023 | C35: Active | D35: Cabinet Affordable Housing | E35: 400 Commerce Way | F35: Libby | G35: 59923 | H35: 48.394576 | I35: -115.563297 | J35: Lincoln | K35: 0.09 | L35: Non-Profit | M35: New Const | N35: Family | O35: 24 | P35: 13 | Q35: 6500000 | R35: 5524448 | AC35: Amer Covenant / CAP NWMT | AD35: Gerald Fritts | AE35: 234 Shelter Valley Dr | AF35: Kalispell | AG35: MT | AH35: 59901 | AI35: gmf@acshf.com | AJ35: 4062356593 | AK35: Peggy Williams Mayor | AL35: City of Libby | AM35: 952 East Spruce St | AN35: Libby | AO35: MT | AP35: 59923 | AQ35: 50% / 60% | AR35: libbylocal@yahoo.com | AS35: 4062932761 | AU35: 24 | AX35: 14 | AY35: 10 | BF35: 40-60 | BJ35: 12 | BK35: 12 | BP35: 24 | BQ35: 0.55 | BR35: 6717141 | BS35: =VLOOKUP(M35,#REF!,2,TRUE)*(BR35/1000000) ->  | BT35: =VLOOKUP(M35,#REF!,3,TRUE)*(BR35/1000000) -> 
A36: 2022-10-17 | B36: 2023 | C36: Active | D36: Creekside Apartments 9% | E36: 1405 E Broadway St | F36: Missoula | G36: 59802 | H36: 46.8629 | I36: -113.94172 | J36: Missoula | K36: 0.09 | L36: Non-Profit | M36: Acq/Rehab | N36: Family | O36: 41 | P36: 4 | Q36: 5750000 | R36: 4887011 | AC36: Homeword Inc | AD36: Heather McMillan | AE36: 1535 Liberty Ln STE 116A | AF36: Missoula | AG36: MT | AH36: 59808 | AI36: heather@homeword.org | AJ36: 4065324663 | AK36: John Engen Mayor | AL36: City of Missoula | AM36: 435 Ryman St | AN36: Missoula | AO36: MT | AP36: 59802 | AQ36: 50% / 60% | AS36: 4065526001 | AU36: 41 | AW36: 4 | AX36: 4 | AY36: 28 | AZ36: 4 | BE36: 1 | BF36: 40/60 | BJ36: 29 | BK36: 12 | BP36: 41 | BQ36: 0.5292682927 | BR36: 10260323 | BS36: =VLOOKUP(M36,#REF!,2,TRUE)*(BR36/1000000) ->  | BT36: =VLOOKUP(M36,#REF!,3,TRUE)*(BR36/1000000) -> 
A37: bond closing date | B37: 2025 | C37: Active | D37: Creekside Apartments 4% | E37: 1405 E Broadway St | F37: Missoula | G37: 59802 | H37: 46.8629 | I37: -113.94172 | J37: Missoula | K37: 0.04 | L37: Non-Profit | M37: Acq/Rehab | N37: Family | O37: 120 | P37: 10 | Q37: 10211750 | R37: 8517295 | S37: 26000000 | T37: 11000000 | U37: 0.045 | V37: 15 | AC37: Homeword Inc | AD37: Heather McMillan | AE37: 1535 Liberty Ln STE 116A | AF37: Missoula | AG37: MT | AH37: 59808 | AI37: heather@homeword.org | AJ37: 4065324663 | AK37: Jordan Hess Mayor | AL37: City of Missoula | AM37: 435 Ryman St | AN37: Missoula | AO37: MT | AP37: 59802 | AQ37: 60% | AR37: mayorstaff@ci.missoula.mt.us | AS37: 4065526001 | AT37: 1147 | AU37: =SUM(AV37:BE37) -> 120 | AW37: 8 | AX37: 36 | AY37: 60 | AZ37: 16 | BF37: 40/60 | BK37: 120 | BP37: =SUM(BH37:BO37) -> 120 | BQ37: =((BH37*BH$1)+(BI37*BI$1)+(BJ37*BJ$1)+(BK37*BK$1)+(BL37*BL$1)+(BM37*BM$1))/SUM(BH37:BM37) -> 0.6 | BR37: 30770068 | BS37: =VLOOKUP(M37,#REF!,2,TRUE)*(BR37/1000000) ->  | BT37: =VLOOKUP(M37,#REF!,3,TRUE)*(BR37/1000000) -> 
A38: 2022-10-17 | B38: 2023 | C38: Active | D38: Meadowlark Senior | E38: 4000 Corto Road | F38: Butte | G38: 59701 | H38: 45.9577 | I38: -112.51326 | J38: Silver Bow | K38: 0.09 | L38: Non-Profit | M38: New Const | N38: Senior | O38: 26 | P38: 1 | Q38: 6500000 | R38: 5589439 | AC38: Northwest Real Estate Cap | AD38: Ben Casiano | AE38: 210 W Mallard Dr Ste A | AF38: Boise | AG38: ID | AH38: 83706 | AI38: bcasiano@nwrecc.org | AJ38: 2089477041 | AK38: J.P. Gallagher Chief Executive | AL38: Butte-Silver Bow | AM38: 155 W Granite St Rm 106 | AN38: Butte | AO38: MT | AP38: 59701 | AQ38: 40% / 50% / 60% | AR38: jpgallagher@bsb.mt.gov | AS38: 4064976222 | AT38: 652 | AU38: 26 | AX38: 13 | AY38: 13 | BF38: 40/60 | BI38: 4 | BJ38: 11 | BK38: 11 | BP38: 26 | BQ38: 0.5269230769 | BR38: 8017355 | BS38: =VLOOKUP(M38,#REF!,2,TRUE)*(BR38/1000000) ->  | BT38: =VLOOKUP(M38,#REF!,3,TRUE)*(BR38/1000000) -> 
A39: 2022-07-02 | B39: 2022 | C39: Active | D39: Bridger Peaks Village | E39: 1483 N 15th Ave | F39: Bozeman | G39: 59715 | H39: 45.69447 | I39: -111.05779 | J39: Gallatin | K39: 0.04 | L39: For-profit | M39: Acq/Rehab | N39: Family/Elderly | O39: 60 | P39: 1 | Q39: 5460890 | R39: 4636086 | Y39: =IF(W39>X39,W39,X39) -> 00:00:00 | Z39: =DATE(YEAR(Y39)+14,MONTH(Y39),DAY(Y39)) ->  | AA39: 36 | AB39: =DATE(YEAR(Z39)+AA39,MONTH(Z39),DAY(Z39)) ->  | AC39: Bridger Peaks Apartments, LLC | AD39: Chase Huber | AE39: 10900 NE 8th St STE 1200 | AF39: Bellevue | AG39: WA | AH39: 98004 | AI39: chase.huber@devcowa.com | AJ39: (425) 736-0580 | AK39: Cyndy Andrus | AL39: Bozeman, | AM39: 121 N Rouse Avenue | AN39: Bozeman | AO39: MT | AP39: 59715 | AQ39: 50%/60% | AS39: (406)-582-2383 | AT39: 30 | AU39: 60 | AX39: 45 | AY39: 15 | BF39: 40/60 | BK39: 60 | BP39: =SUM(BH39:BO39) -> 60 | BQ39: =((BH39*BH$1)+(BI39*BI$1)+(BJ39*BJ$1)+(BK39*BK$1)+(BL39*BL$1)+(BM39*BM$1))/SUM(BH39:BM39) -> 0.6 | BR39: 14027890 | BS39: =VLOOKUP(M39,#REF!,2,TRUE)*(BR39/1000000) ->  | BT39: =VLOOKUP(M39,#REF!,3,TRUE)*(BR39/1000000) -> 
A40: 2022-04-07 | B40: 2022 | C40: Active | D40: Spruce Grove-Laurel 4% | E40: 712 8th Ave | F40: Laurel | G40: 59044 | H40: 45.67603 | I40: -108.78215 | J40: Yellowstone | K40: 0.04 | L40: For-Profit | M40: Acq/Rehab | N40: Senior | O40: 50 | P40: 9 | Q40: 2867056 | R40: 2164414 | S40: 4805645 | U40: 0.0225 | V40: 30 | Y40: 00:00:00 | AC40: GL Development | AD40: Gene Leuwer | AE40: 4799 Echo Dr | AF40: Helena | AG40: MT | AH40: 59602 | AI40: gleuwer1139@msn.com | AJ40: 4064595332 | AK40: Mayor, Thomas Nelson | AL40: Laurel | AM40: 115 West 1st St | AN40: Laurel | AO40: MT | AP40: 59044 | AR40: citymayor@laurel.mt.gov | AS40: 406-628-7431 | AT40: 65 | AU40: =SUM(AV40:BE40) -> 50 | AX40: 37 | AY40: 13 | BF40: AI | BH40: 4 | BI40: 4 | BJ40: 39 | BM40: 15 | BP40: =SUM(BH40:BO40) -> 62 | BQ40: =((BH40*BH$1)+(BI40*BI$1)+(BJ40*BJ$1)+(BK40*BK$1)+(BL40*BL$1)+(BM40*BM$1))/SUM(BH40:BM40) -> 0.5532258065 | BR40: 9916143 | BS40: =VLOOKUP(M40,#REF!,2,TRUE)*(BR40/1000000) ->  | BT40: =VLOOKUP(M40,#REF!,3,TRUE)*(BR40/1000000) -> 
A41: 2022-04-07 | B41: 2022 | C41: Active | D41: Spruce Grove_Joliet 4% | E41: 126 N Main | F41: Joliet | G41: 59041 | H41: 45.48716 | I41: -108.94302 | J41: Carbon | K41: 0.04 | L41: For-Profit | M41: Acq/Rehab | N41: Senior | O41: 12 | P41: 3 | Q41: 688094 | R41: 519459 | S41: 1153355 | Y41: 00:00:00 | AC41: GL Development | AD41: Gene Leuwer | AE41: 4800 Echo Dr | AF41: Helena | AG41: MT | AH41: 59602 | AI41: gleuwer1139@msn.com | AJ41: (406) 459-5332 | AK41: Dakota Mitchem | AL41: Jolliet | AM41: 116 S. Main St | AN41: Joliet | AO41: MT | AP41: 59041 | AQ41: 50%/60% | AR41: townofjoliet@gmail.com | AS41: 406-459-5332 | AT41: 10 | AU41: =SUM(AV41:BE41) -> 12 | AX41: 11 | AY41: 1 | BF41: AI | BP41: =SUM(BH41:BO41) -> 0 | BR41: 2379874 | BS41: =VLOOKUP(M41,#REF!,2,TRUE)*(BR41/1000000) ->  | BT41: =VLOOKUP(M41,#REF!,3,TRUE)*(BR41/1000000) -> 
A42: 2021-11-15 | B42: 2022 | C42: Active | D42: Crowley Flats (add'l credits see orig below) | E42: 311 West Main St | F42: Lewistown | G42: 59457 | H42: 47.06507 | I42: -109.42624 | J42: Fergus | K42: 0.09 | L42: Non-profit | M42: New Const | N42: Family | O42: 16 | P42: 1 | Q42: 220000 | R42: 178182 | Y42: 00:00:00 | AA42: 31 | AC42: Homeword | AD42: Heather McMilin | AE42: 1535 Liberty Ln Suite 116A | AF42: Missoula | AG42: MT | AH42: 59808 | AI42: heather@homeword.org | AJ42: 4065324663 ext. 36 | AK42: City Commission Chairperson Gayle Doney | AL42: City of Lewistown | AM42: 305 West Watson | AN42: Lewistown | AO42: MT | AP42: 59457 | AQ42: 40% / 50% / 60% | AR42: gdoney@ci.lewistown.mt.us | AS42: 406-535-1760 | AT42: 101 | AU42: 16 | AW42: 4 | AX42: 10 | AY42: 2 | BF42: AI | BR42: 4390450
A43: 2021-11-15 | B43: 2022 | C43: Active | D43: Riverview Apts | E43: Lone Mountain Tr & Jeep Tr | F43: Big Sky | G43: 59716 | H43: 45.26624 | I43: -111.29076 | J43: Gallatin | K43: 0.09 | L43: For-Profit | M43: New Const | N43: Family | O43: 25 | P43: 1 | Q43: 6491250 | R43: 5646824 | Y43: 00:00:00 | AA43: 31 | AC43: Blueline Development | AD43: Jason Boal | AE43: 1004 South Ave W | AF43: Missoula | AG43: MT | AH43: 59801 | AI43: jason@bluelinedevelopment.com | AJ43: 4069261401 | AK43: Scott MacFarlane | AL43: Gallatin County | AM43: 311 W. Main St. Room 306 | AN43: Bozeman | AO43: MT | AP43: 59715 | AQ43: 40% / 50% / 60% | AR43: pam.hamlin@gallatin.mt.gov | AS43: 406-582-3000 | AT43: 49 | AU43: =SUM(AV43:BE43) -> 25 | AX43: 6 | AY43: 11 | AZ43: 7 | BE43: 1 | BF43: 40/60 | BH43: 1 | BJ43: 9 | BK43: 7 | BL43: 4 | BM43: 3 | BO43: 1 | BP43: =SUM(BH43:BO43) -> 25 | BQ43: =((BH43*BH$1)+(BI43*BI$1)+(BJ43*BJ$1)+(BK43*BK$1)+(BL43*BL$1)+(BM43*BM$1))/SUM(BH43:BM43) -> 0.5916666667 | BR43: 7656054 | BS43: =VLOOKUP(M43,#REF!,2,TRUE)*(BR43/1000000) ->  | BT43: =VLOOKUP(M43,#REF!,3,TRUE)*(BR43/1000000) -> 
B44: 2022 | C44: Active | D44: Junegrass Place 4% | E44: 1079 N Meridian Rd | F44: Kalispell | G44: 59901 | H44: 48.2101 | I44: -114.33003 | J44: Flathead | K44: 0.04 | L44: For-Profit | M44: New Const | N44: Family | O44: 114 | P44: 7 | Q44: 15723498 | R44: 14385562 | S44: 22500000 | T44: 13624144 | U44: 0.041 | V44: 35 | Y44: 00:00:00 | AA44: 31 | AC44: GMD Dev/Homeword | AD44: Steve Dymoke | AE44: 520 Pike St | AF44: Seattle | AG44: WA | AH44: 98101 | AI44: steve@gmddevelopment.com | AJ44: 2067456464 | AK44: Mayor Mark Johnson | AL44: City of Kalispell | AM44: PO Box 1997 | AN44: Kalispell | AO44: MT | AP44: 59903 | AQ44: 40% / 50% / 60% | AR44: mjohnson@kalispell.com | AS44: 406-758-7756 | AT44: 161 | AU44: 114 | AX44: =19*3 -> 57 | AY44: =12+12+11 -> 35 | AZ44: =7+8+6 -> 21 | BE44: 1 | BF44: 40/60 | BK44: 113 | BO44: 1 | BP44: 114 | BQ44: 0.6 | BR44: 32481106 | BS44: =VLOOKUP(M44,#REF!,2,TRUE)*(BR44/1000000) ->  | BT44: =VLOOKUP(M44,#REF!,3,TRUE)*(BR44/1000000) -> 
A45: 2021-10-19 | B45: 2022 | C45: Active | D45: Junegrass Place 9% | E45: 1083 N Meridian Rd | F45: Kalispell | G45: 59901 | H45: 48.21045 | I45: -114.32933 | J45: Flathead | K45: 0.09 | L45: For-Profit | M45: New Const | N45: Family | O45: 24 | P45: 1 | Q45: 4780000 | R45: 4062594 | Y45: 00:00:00 | AA45: 31 | AC45: GMD Dev/Homeword | AD45: Steve Dymoke | AE45: 520 Pike St | AF45: Seattle | AG45: WA | AH45: 98101 | AI45: steve@gmddevelopment.com | AJ45: 2067456464 | AK45: Mayor Mark Johnson | AL45: City of Kalispell | AM45: PO Box 1997 | AN45: Kalispell | AO45: MT | AP45: 59903 | AQ45: 40% / 50% / 60% | AR45: mjohnson@kalispell.com | AS45: 406-758-7756 | AU45: 24 | AX45: 11 | AY45: 6 | AZ45: 6 | BE45: 1 | BF45: 40/60 | BJ45: =6+3+3 -> 12 | BK45: =6+3+2 -> 11 | BO45: 1 | BP45: 24 | BQ45: 0.547826087 | BR45: 5881688 | BS45: =VLOOKUP(M45,#REF!,2,TRUE)*(BR45/1000000) ->  | BT45: =VLOOKUP(M45,#REF!,3,TRUE)*(BR45/1000000) -> 
A46: 2021-10-19 | B46: 2022 | C46: Active | D46: Bicentennial Apts | E46: 76 W Center St | F46: Dillon | G46: 59725 | H46: 45.21928 | I46: -112.63774 | J46: Beaverhead | K46: 0.09 | L46: For-Profit | M46: Acq/Rehab | N46: Senior | O46: 58 | P46: 3 | Q46: 5590170 | R46: 4527585 | W46: 2022-06-01 | X46: 2022-01-01 | Y46: 2022-06-01 | Z46: 2036-06-01 | AA46: 31 | AB46: 2067-06-01 | AC46: Dawson Holdings, Inc | AD46: Tim Fluetsch | AE46: 7250 Redwood Blvd STE 214 | AF46: Novato | AG46: CA | AH46: 94945 | AI46: tfluetsch@d-h-i.net | AJ46: 8012446658 | AK46: Mayor Dr. Michael Klakken | AL46: City of Dillon | AM46: 125 N. Idaho St. | AN46: Dillon | AO46: MT | AP46: 59725 | AQ46: 40%/50%60% | AR46: mayor@dillonmt.org | AS46: 406-683-4245 | AT46: 54 | AU46: 58 | AW46: =1+4+2 -> 7 | AX46: 47 | AY46: =1+2+1 -> 4 | BF46: 40/60 | BI46: =1+4+1 -> 6 | BJ46: 35 | BK46: 17 | BP46: 58 | BQ46: 0.5189655172 | BR46: 8302660 | BS46: =VLOOKUP(M46,#REF!,2,TRUE)*(BR46/1000000) ->  | BT46: =VLOOKUP(M46,#REF!,3,TRUE)*(BR46/1000000) -> 
A47: 2021-10-19 | B47: 2022 | C47: Active | D47: Baatz Perm Supp Apts | E47: 400 2nd Ave S | F47: Great Falls | G47: 59405 | H47: 47.50301 | I47: -111.30055 | J47: Cascade | K47: 0.09 | L47: Non-profit | M47: New Const | N47: Family | O47: 25 | P47: 1 | Q47: 6100000 | R47: 5001500 | Y47: 00:00:00 | AA47: 31 | AC47: Homeword / NWGF | AD47: Heather McMillan | AE47: 1535 Liberty Ln STE 116A | AF47: Misosula | AG47: MT | AH47: 59808 | AI47: heather@homeword.org | AJ47: 4065324663 | AK47: Bob Kelly Mayor | AL47: City of Great Falls | AM47: PO Box 5021 | AN47: Great Falls | AO47: MT | AP47: 59403 | AQ47: 40%/50%60% | AR47: bkelly@greatfallsmt.net | AS47: 406-870-0212 | AT47: 1139 | AU47: 25 | AW47: 4 | AX47: 16 | AY47: 4 | BE47: 1 | BF47: 40/60 | BI47: 3 | BJ47: 16 | BK47: 5 | BO47: 1 | BP47: 25 | BQ47: =((BH47*BH$1)+(BI47*BI$1)+(BJ47*BJ$1)+(BK47*BK$1)+(BL47*BL$1)+(BM47*BM$1))/SUM(BH47:BM47) -> 0.5083333333 | BR47: 8726447 | BS47: =VLOOKUP(M47,#REF!,2,TRUE)*(BR47/1000000) ->  | BT47: =VLOOKUP(M47,#REF!,3,TRUE)*(BR47/1000000) -> 
A48: 2021-10-19 | B48: 2022 | C48: Active | D48: Tapestry Apts | E48: 115 S 30th St | F48: Billings | G48: 59101 | H48: 45.77841 | I48: -108.50557 | J48: Yellowstone | K48: 0.09 | L48: Non-profit | M48: New Const | N48: Family | O48: 26 | P48: 1 | Q48: 6200000 | R48: 5331467 | Y48: 00:00:00 | AA48: 31 | AC48: CLDI Holdings | AD48: Eric Basye | AE48: PO Box 3381 | AF48: Billings | AG48: MT | AH48: 59103 | AI48: eric@cldibillings.org | AJ48: 4068611528 | AK48: Bill Cole | AL48: City of Billings | AM48: PO Box 1178 | AN48: Billings | AO48: MT | AP48: 59101 | AQ48: 40%/50%60% | AR48: coleb@ci.billings.mt.us | AS48: 406-657-8296 | AT48: 1423 | AU48: 26 | AX48: 14 | AY48: 12 | BF48: 40/60 | BI48: 3 | BJ48: 16 | BK48: 7 | BP48: 26 | BQ48: 0.5153846154 | BR48: 7262665 | BS48: =VLOOKUP(M48,#REF!,2,TRUE)*(BR48/1000000) ->  | BT48: =VLOOKUP(M48,#REF!,3,TRUE)*(BR48/1000000) -> 
A49: 2021-11-22 | B49: 2021 | C49: Active | D49: Castlebar 4% | E49: 1201 N 25Th St | F49: Bozeman | G49: 59715 | H49: 45.69216 | I49: -111.07161 | J49: Gallatin | K49: 0.04 | L49: For-profit | M49: Acq/Rehab | N49: Family | O49: 72 | P49: 13 | Q49: 5673470 | R49: 5049388 | S49: 13525000 | T49: 10525000 | U49: 0.0418 | V49: 40 | W49: 2023-07-25 | X49: 1905-07-15 | Y49: 2023-07-25 | Z49: 2037-07-25 | AA49: 31 | AB49: 2068-07-25 | AC49: DevCo Preservation | AD49: Michael Volz | AE49: 10900 NE 8th St STE 1200 | AF49: Bellevue | AG49: WA | AH49: 98004 | AI49: michael.volz@devcowa.com | AJ49: 4254587369 | AT49: 834 | AU49: 72 | AY49: 56 | AZ49: 16 | BF49: 40/60 | BK49: 72 | BP49: 72 | BQ49: 0.6 | BR49: 18023105 | BS49: =VLOOKUP(M49,#REF!,2,TRUE)*(BR49/1000000) ->  | BT49: =VLOOKUP(M49,#REF!,3,TRUE)*(BR49/1000000) -> 
A50: 2021-07-01 | B50: 2021 | C50: Active | D50: Bitterroot Valley Apts (old Mtn View (1 of 2, 4% of 4/9)**Resyd | E50: 300 Stonegate Dr | F50: Hamilton | G50: 59840 | H50: 46.25655 | I50: -114.14425 | J50: Ravalli | K50: 0.04 | L50: For-Profit | M50: Acq/Rehab | N50: Family | O50: 36 | P50: 8 | Q50: 2326327 | R50: 1965549.5 | S50: 3713195 | T50: 2596154 | U50: 0.04 | V50: 40 | Y50: 00:00:00 | AA50: 31 | AC50: Summitt Hsing Group | AD50: Paul Capp | AE50: 283 West Front St #1 | AF50: Missoula | AG50: MT | AH50: 59802 | AI50: paul@summithousinggroup.com | AJ50: 4069604870 | AT50: 3 | AU50: 36 | AY50: 24 | AZ50: 12 | BF50: 40/60 | BJ50: 22 | BK50: 14 | BP50: 36 | BQ50: 0.5388888889 | BR50: 6588552 | BS50: =VLOOKUP(M50,#REF!,2,TRUE)*(BR50/1000000) ->  | BT50: =VLOOKUP(M50,#REF!,3,TRUE)*(BR50/1000000) -> 
A51: 2021-07-01 | B51: 2021 | C51: Active | D51: Bitterroot Valley Apts (old Bitt Comm2 of 2, 4% of 4/9)**Resyd | E51: 501 Welcome Way | F51: Darby | G51: 59829 | H51: 46.02456 | I51: -114.18437 | J51: Ravalli | K51: 0.04 | L51: For-Profit | M51: Acq/Rehab | N51: Family | O51: 16 | P51: 4 | Q51: 1033923 | R51: 873577.5 | S51: 1650309 | T51: 1153846 | U51: 0.04 | V51: 40 | Y51: 00:00:00 | AA51: 31 | AC51: Summitt Hsing Group | AD51: Paul Capp | AE51: 283 West Front St #1 | AF51: Missoula | AG51: MT | AH51: 59802 | AI51: paul@summithousinggroup.com | AJ51: 4069604870 | AT51: 3 | AU51: 16 | AY51: 16 | BF51: 40/60 | BK51: 16 | BP51: 16 | BQ51: 0.6 | BR51: 2928245 | BS51: =VLOOKUP(M51,#REF!,2,TRUE)*(BR51/1000000) ->  | BT51: =VLOOKUP(M51,#REF!,3,TRUE)*(BR51/1000000) -> 
A52: 2021-06-28 | B52: 2021 | C52: Active | D52: Trinity 4% | E52: 1645 Cooley St., 1370 N. Burns St., 1660 Stoddard St., 1325 S. Cowper St., 2200, 2210, 2220 Mullan Rd. | F52: Missoula | G52: 59802/59808 | H52: 46.88514403 | I52: -114.0145502 | J52: Missoula | K52: 0.04 | L52: Non-profit | M52: New Const | N52: Family | O52: 202 | P52: 5 | Q52: 24425730 | R52: 21738924 | S52: 36000000 | T52: 20775000 | U52: 0.0354 | V52: 35 | W52: 2023-01-01 | X52: 2023-01-01 | Y52: 2023-01-01 | Z52: 2037-01-01 | AA52: 31 | AB52: 2068-01-01 | AC52: Homeword / Missoula HA / Blueline | AD52: Andrea Davis / Nathan Richmond | AE52: 1535 Liberty Ln | AF52: Missoula | AG52: MT | AH52: 59808 | AI52: nate@bluelinedevelopment.com | AJ52: 4062148145 | AT52: 1168 | AU52: 202 | AX52: 100 | AY52: 60 | AZ52: 23 | BA52: 6 | BC52: 12 | BE52: 1 | BF52: AI | BH52: 30 | BJ52: 11 | BK52: 130 | BL52: 30 | BO52: 1 | BP52: 202 | BQ52: 0.5646766169 | BR52: 55181446 | BS52: =VLOOKUP(M52,#REF!,2,TRUE)*(BR52/1000000) ->  | BT52: =VLOOKUP(M52,#REF!,3,TRUE)*(BR52/1000000) -> 
A53: 2021-05-01 | B53: 2021 | C53: Active | D53: Villagio 4% | E53: 1140 - 1180 Otis St | F53: Missoula | G53: 59802 | H53: 46.89166462 | I53: -114.0068189 | J53: Missoula | K53: 0.04 | L53: Non-profit | M53: New Const | N53: Family | O53: 200 | P53: 2 | Q53: 29254570 | R53: 24863898 | S53: 43000000 | T53: 25175000 | U53: 0.0354 | V53: 35 | Y53: 00:00:00 | AA53: 31 | AC53: Missoula Housing Authority / Blueline | AD53: Lori Davidson / Nathan Richmond | AE53: 1235 34th St | AF53: Missoula | AG53: MT | AH53: 59801 | AI53: ldavidson@missoulahousing.org | AJ53: 4065494113 | AT53: 1351 | AU53: 200 | AY53: 93 | AZ53: 100 | BA53: 6 | BE53: 1 | BF53: 40/60 | BH53: 18 | BJ53: 14 | BK53: 167 | BO53: 1 | BP53: 200 | BQ53: 0.5658291457 | BR53: 61875619 | BS53: =VLOOKUP(M53,#REF!,2,TRUE)*(BR53/1000000) ->  | BT53: =VLOOKUP(M53,#REF!,3,TRUE)*(BR53/1000000) -> 
A54: 2021-03-02 | B54: 2021 | C54: Active | D54: Boulevards Apts 4% | E54: 6 W Babcock | F54: Bozeman | G54: 59715 | H54: 45.67822687 | I54: -111.037451 | J54: Gallatin | K54: 0.04 | L54: Non-profit | M54: Acq/Rehab | N54: Family | O54: 41 | P54: 1 | Q54: 4837810 | R54: 4918069 | S54: 7000000 | T54: 4165000 | W54: 2022-10-21 | X54: 2022-11-01 | Y54: 2022-11-01 | Z54: 2036-11-01 | AA54: 40 | AB54: 2076-11-01 | AC54: Good Housing Ptrship / HRDC IX | AD54: Geoff Anderson | AE54: 104 East Main St STE 104 | AF54: Bozeman | AG54: MT | AH54: 59715 | AI54: geoffanderson@goodhousingpartnership.com | AJ54: 4064146500 | AT54: 1761 | AU54: 41 | AW54: 2 | AX54: 33 | AY54: 6 | BF54: 40/60 | BK54: 41 | BP54: 41 | BQ54: 0.6 | BR54: 11478894 | BS54: =VLOOKUP(M54,#REF!,2,TRUE)*(BR54/1000000) ->  | BT54: =VLOOKUP(M54,#REF!,3,TRUE)*(BR54/1000000) -> 
A55: 2021-03-02 | B55: 2021 | C55: Active | D55: Darlinton Manor Apts 4% | E55: 605 N 5th St | F55: Bozeman | G55: 59047 | H55: 45.68631856 | I55: -111.0435275 | J55: Gallatin | K55: 0.04 | L55: Non-profit | M55: Acq/Rehab | N55: Senior | O55: 100 | P55: 1 | Q55: 8165290 | R55: 4579251 | S55: 16137567 | T55: 12930000 | W55: 2022-10-04 | X55: 2022-11-01 | Y55: 2022-11-01 | Z55: 2036-11-01 | AA55: 40 | AB55: 2076-11-01 | AC55: Good Housing Ptrship / HRDC IX | AD55: Geoff Anderson | AE55: 104 East Main St STE 104 | AF55: Bozeman | AG55: MT | AH55: 59715 | AI55: geoffanderson@goodhousingpartnership.com | AJ55: 4064146500 | AT55: 72 | AU55: 100 | AW55: =27+5 -> 32 | AX55: =61+7 -> 68 | BF55: 40/60 | BK55: 100 | BP55: 100 | BQ55: 0.6 | BR55: 19979566 | BS55: =VLOOKUP(M55,#REF!,2,TRUE)*(BR55/1000000) ->  | BT55: =VLOOKUP(M55,#REF!,3,TRUE)*(BR55/1000000) -> 
A56: 2021-03-02 | B56: 2021 | C56: Active | D56: Miles Building 4% | E56: 107 South 2nd St | F56: Livingston | G56: 59047 | H56: 45.66062264 | I56: -110.560581 | J56: Park | K56: 0.04 | L56: Non-profit | M56: Acq/Rehab | N56: Senior | O56: 40 | P56: 1 | Q56: 3488140 | R56: 3209477 | S56: 6455026 | T56: 2920000 | W56: 2022-06-03 | X56: 2022-07-01 | Y56: 2022-07-01 | Z56: 2036-07-01 | AA56: 40 | AB56: 2076-07-01 | AC56: Good Housing Ptrship / HRDC IX | AD56: Geoff Anderson | AE56: 104 East Main St STE 104 | AF56: Bozeman | AG56: MT | AH56: 59715 | AI56: geoffanderson@goodhousingpartnership.com | AJ56: 4064146500 | AT56: 12 | AU56: 40 | AW56: 5 | AX56: 34 | AY56: 1 | BF56: 40/60 | BK56: 40 | BP56: 40 | BQ56: 0.6 | BR56: 8535299 | BS56: =VLOOKUP(M56,#REF!,2,TRUE)*(BR56/1000000) ->  | BT56: =VLOOKUP(M56,#REF!,3,TRUE)*(BR56/1000000) -> 
A57: 2021-03-02 | B57: 2021 | C57: Active | D57: Sherwood Apts 4% | E57: 325 S Main St | F57: Livingston | G57: 59047 | H57: 45.65904334 | I57: -110.5565799 | J57: Park | K57: 0.04 | L57: Non-profit | M57: Acq/Rehab | N57: Senior | O57: 49 | P57: 1 | Q57: 3828730 | R57: 3955611 | S57: 7907407 | T57: 4080000 | W57: 2022-09-08 | X57: 2022-10-01 | Y57: 2022-10-01 | Z57: 2036-10-01 | AA57: 40 | AB57: 2076-10-01 | AC57: Good Housing Ptrship / HRDC IX | AD57: Geoff Anderson | AE57: 104 East Main St STE 104 | AF57: Bozeman | AG57: MT | AH57: 59715 | AI57: geoffanderson@goodhousingpartnership.com | AJ57: 4064146500 | AT57: 12 | AU57: 49 | AX57: 40 | AY57: 9 | BF57: 40/60 | BK57: 49 | BP57: 49 | BQ57: 0.6 | BR57: 9295941 | BS57: =VLOOKUP(M57,#REF!,2,TRUE)*(BR57/1000000) ->  | BT57: =VLOOKUP(M57,#REF!,3,TRUE)*(BR57/1000000) -> 
A58: 2020-10-19 | B58: 2021 | C58: Active | D58: Crowley Flats( orig credits see add'l credits above) | E58: 311 West Main St | F58: Lewistown | G58: 59457 | H58: 47.06507 | I58: -109.42624 | J58: Fergus | K58: 0.09 | L58: Non-profit | M58: New Const | N58: Family | O58: 16 | P58: 1 | Q58: 3100000 | R58: 2510749 | Y58: 00:00:00 | AA58: 31 | AC58: Homeword | AD58: Heather McMilin | AE58: 1535 Liberty Ln | AF58: Missoula | AG58: MT | AH58: 59808 | AI58: heather@homeword.org | AJ58: 4065324663 | AT58: 101 | AU58: 16 | AW58: 4 | AX58: 10 | AY58: 2 | BF58: 40/60 | BI58: 3 | BJ58: 10 | BK58: 3 | BP58: 16 | BQ58: 0.5 | BR58: 4390450 | BS58: =VLOOKUP(M58,#REF!,2,TRUE)*(BR58/1000000) ->  | BT58: =VLOOKUP(M58,#REF!,3,TRUE)*(BR58/1000000) -> 
A59: 2020-10-19 | B59: 2021 | C59: Active | D59: Jackson Court 9% | E59: 510 Jackson St | F59: Billings | G59: 59101 | H59: 45.76256 | I59: -108.51561 | J59: Yellowstone | K59: 0.09 | L59: For-Profit | M59: New Const | N59: Family | O59: 38 | P59: 5 | Q59: 6435000 | R59: 5340516 | W59: 2024-01-09 | X59: 2024-02-01 | Y59: 2024-02-01 | Z59: 2038-02-01 | AA59: 31 | AB59: 2069-02-01 | AC59: GL Development | AD59: Anderson Consulting | AE59: 4799 Echo Dr | AF59: Helena | AG59: MT | AH59: 59602 | AI59: gleuwer1139 @msn.com / lr.anderson@outlook.com | AJ59: 4063903754 | AT59: 750 | AU59: 38 | AX59: 20 | AY59: 12 | AZ59: 6 | BF59: 40/60 | BJ59: 8 | BK59: 30 | BP59: 38 | BQ59: 0.5789473684 | BR59: 8794015 | BS59: =VLOOKUP(M59,#REF!,2,TRUE)*(BR59/1000000) ->  | BT59: =VLOOKUP(M59,#REF!,3,TRUE)*(BR59/1000000) -> 
A60: 2020-10-19 | B60: 2021 | C60: Active | D60: Creekside Commons | E60: 76 Glenwood Dr | F60: Kalispell | G60: 59901 | H60: 48.20353 | I60: -114.33396 | J60: Flathead | K60: 0.09 | L60: For-Profit | M60: New Const | N60: Senior | O60: 31 | P60: 1 | Q60: 6435000 | R60: 5501375 | U60: 0.03129 | V60: 40 | W60: 2024-01-30 | X60: 2024-02-01 | Y60: 2024-02-01 | Z60: 2038-02-01 | AA60: 31 | AB60: 2069-02-01 | AC60: Housing Solutions | AE60: PO Box 2099 | AF60: Missoula | AG60: MT | AH60: 59806 | AI60: alex@housing-solutions.org | AJ60: 4062031558 | AT60: 170 | AU60: 31 | AX60: =3+19+2 -> 24 | AY60: 6 | BE60: 1 | BF60: 40/60 | BI60: 4 | BJ60: 23 | BK60: 4 | BP60: 31 | BQ60: 0.5 | BR60: 7392628 | BS60: =VLOOKUP(M60,#REF!,2,TRUE)*(BR60/1000000) ->  | BT60: =VLOOKUP(M60,#REF!,3,TRUE)*(BR60/1000000) -> 
A61: 2020-10-19 | B61: 2021 | C61: Active | D61: MRM Unified Campus | E61: 2822 Minnesota | F61: Billings | G61: 59101 | H61: 45.77984 | I61: -108.50484 | J61: Yellowstone | K61: 0.09 | L61: Non-profit | M61: Rehab | N61: Family | O61: 29 | P61: 1 | Q61: 6435000 | R61: 5597890 | Y61: 00:00:00 | AA61: 31 | AC61: Montana Rescue Mission | AE61: PO Box 3232 | AF61: Billings | AG61: MT | AH61: 59103 | AI61: mattl@billingslf.org | AJ61: 4062470140 | AT61: 1131 | AU61: 30 | AW61: 6 | AX61: 18 | AY61: 5 | BE61: 1 | BF61: 40/60 | BI61: 3 | BJ61: 18 | BK61: 8 | BP61: 29 | BQ61: 0.5172413793 | BR61: 11925149 | BS61: =VLOOKUP(M61,#REF!,2,TRUE)*(BR61/1000000) ->  | BT61: =VLOOKUP(M61,#REF!,3,TRUE)*(BR61/1000000) -> 
A62: 2020-10-19 | B62: 2021 | C62: Active | D62: Apsaalooke HA Homes I | E62: 1 Circle Ln (scattered sites) | F62: Crow Agency | G62: 59022 | H62: 45.60948 | I62: -107.47302 | J62: Big Horn | K62: 0.09 | L62: Tribal | M62: Acq/Rehab | N62: Family | O62: 43 | P62: 43 | Q62: 6435000 | R62: 5464953 | W62: 2015-07-31 | X62: 2015-01-01 | Y62: 2015-07-31 | Z62: 2029-07-31 | AA62: 31 | AB62: 2060-07-31 | AC62: Apsaalooke National Housing Authority | AE62: PO Box 99 | AF62: Crow Agency | AG62: MT | AH62: 59022 | AI62: m.smith@a-resource.com | AJ62: 7202736697 | AT62: 120 | AU62: 43 | AX62: 8 | AY62: 10 | AZ62: 12 | BA62: 13 | BF62: 40/60 | BH62: 3 | BI62: 3 | BJ62: 27 | BK62: 10 | BP62: 43 | BQ62: 0.5023255814 | BR62: 7767696.45 | BS62: =VLOOKUP(M62,#REF!,2,TRUE)*(BR62/1000000) ->  | BT62: =VLOOKUP(M62,#REF!,3,TRUE)*(BR62/1000000) -> 
A63: 2020-10-19 | B63: 2021 | C63: Active | D63: Laurel Depot | E63: 202 8th Ave | F63: Laurel | G63: 59044 | H63: 45.67066 | I63: -108.78221 | J63: Yellowstone | K63: 0.09 | L63: For-Profit | M63: New Const | N63: Family | O63: 19 | P63: 4 | Q63: 3812010 | R63: 3316117 | Y63: 00:00:00 | AA63: 31 | AC63: GL Development | AD63: North Fork Developers | AE63: 4799 Echo Dr | AF63: Helena | AG63: MT | AH63: 59602 | AI63: gleuwer1139 @msn.com / andrew@northforkdevelopment.com | AJ63: 4064595332 | AT63: 136 | AU63: 19 | AX63: 5 | AY63: 9 | AZ63: 5 | BF63: 40/60 | BJ63: 12 | BK63: 7 | BP63: 19 | BQ63: 0.5368421053 | BR63: 4527718 | BS63: =VLOOKUP(M63,#REF!,2,TRUE)*(BR63/1000000) ->  | BT63: =VLOOKUP(M63,#REF!,3,TRUE)*(BR63/1000000) -> 
A64: 2020-11-24 | B64: 2020 | C64: Active | D64: Arrowleaf Park Apartments 4% | E64: 1619 Tschache Ln | F64: Bozeman | G64: 59715 | H64: 45.6966476 | I64: -111.0591596 | J64: Gallatin | K64: 0.04 | L64: Non-profit | M64: New Const | N64: Family | O64: 136 | P64: 9 | Q64: 14977720 | R64: 13403718 | S64: 26000000 | T64: 20567881 | U64: 0.0365 | V64: 35 | W64: 2021-11-19 | X64: 2022-01-01 | Y64: 2022-01-01 | Z64: 2036-01-01 | AA64: 31 | AB64: 2067-01-01 | AC64: GMD Development LLC | AD64: HRDC IX | AE64: 520 Pike St STE 1010 | AF64: Seattle | AG64: WA | AH64: 98101 | AI64: steve@gmddevelopment.com and tmenuez@thehrdc.org | AJ64: 2067456464 | AT64: 965 | AU64: 136 | AX64: 60 | AY64: 36 | AZ64: =24+15 -> 39 | BE64: 1 | BF64: 40/60 | BK64: 135 | BO64: 1 | BP64: 136 | BQ64: 0.6 | BR64: 41444674 | BS64: =VLOOKUP(M64,#REF!,2,TRUE)*(BR64/1000000) ->  | BT64: =VLOOKUP(M64,#REF!,3,TRUE)*(BR64/1000000) -> 
A65: 2020-11-24 | B65: 2020 | C65: Active | D65: Perennial Park Apartments 4% | E65: 1683 Tschache Ln | F65: Bozeman | G65: 59715 | H65: 45.6966476 | I65: -111.0591596 | J65: Gallatin | K65: 0.04 | L65: Non-profit | M65: New Const | N65: Elderly | O65: 96 | P65: 1 | Q65: 10049430 | R65: 8842616 | S65: 19000000 | T65: 12808779 | U65: 0.035 | V65: 35 | W65: 2022-02-16 | X65: 2022-03-01 | Y65: 2022-03-01 | Z65: 2036-03-01 | AA65: 31 | AB65: 2067-03-01 | AC65: GMD Development LLC | AD65: HRDC IX | AE65: 520 Pike St STE 1010 | AF65: Seattle | AG65: WA | AH65: 98101 | AI65: steve@gmddevelopment.com and tmenuez@thehrdc.org | AJ65: 2067456464 | AT65: 965 | AU65: 96 | AX65: 85 | AY65: 10 | BE65: 1 | BF65: 40/60 | BK65: 95 | BO65: 1 | BP65: 96 | BQ65: 0.6 | BR65: 28774961 | BS65: =VLOOKUP(M65,#REF!,2,TRUE)*(BR65/1000000) ->  | BT65: =VLOOKUP(M65,#REF!,3,TRUE)*(BR65/1000000) -> 
A66: 2020-03-01 | B66: 2020 | C66: Active | D66: Emporda 4%- Resyd Courtyard I & II | E66: 306 Courtyard Circle | F66: Corvallis | G66: 59828 | H66: 46.3121331 | I66: -114.1188034 | J66: Ravalli | K66: 0.04 | L66: For-Profit | M66: Acq/Rehab | N66: Family | O66: 36 | P66: 6 | Q66: 1185620 | R66: 1085749 | S66: 3600000 | T66: 3184045 | U66: 0.038 | V66: 40 | W66: 2020-04-07 | X66: 2020-12-18 | Y66: 2020-12-18 | Z66: 2034-12-18 | AA66: 31 | AB66: 2065-12-18 | AC66: Thomas Development | AD66: Northwest Integrity Housing | AE66: 413 W Idaho ST Ste 200 | AF66: Boise | AG66: ID | AH66: 83702 | AI66: tmannschreck@thomasdevelopment.com | AJ66: 2083438877 | AT66: 71 | AU66: 36 | AY66: 20 | AZ66: 16 | BF66: 40/60 | BJ66: 23 | BK66: 12 | BP66: 35 | BQ66: 0.5342857143 | BR66: 4324186 | BS66: =VLOOKUP(M66,#REF!,2,TRUE)*(BR66/1000000) ->  | BT66: =VLOOKUP(M66,#REF!,3,TRUE)*(BR66/1000000) -> 
A67: 2020-07-23 | B67: 2020 | C67: Active | D67: Ponderosa Acres 4% | E67: 1301 Industrial Ave | F67: Billings | G67: 59101 | H67: 45.7663902 | I67: -108.5485034 | J67: Yellowstone | K67: 0.04 | L67: For-Profit | M67: Acq/Rehab | N67: Family | O67: 120 | P67: 16 | Q67: 8510040 | R67: 7829237 | S67: 20915000 | T67: 16550000 | U67: 0.0405 | V67: 40 | W67: 2020-02-13 | X67: 2020-12-31 | Y67: 2020-12-31 | Z67: 2034-12-31 | AA67: 31 | AB67: 2065-12-31 | AC67: Hampstead | AD67: Community Preservation Partners | AE67: 7514 Wisconsin Ave STE 350 | AF67: Bethesda | AG67: MD | AH67: 20814 | AI67: jeff@hampstead.com | AJ67: 6195434200 | AT67: 3853 | AU67: 120 | AW67: 14 | AX67: 26 | AY67: 34 | AZ67: 46 | BF67: 40/60 | BJ67: 60 | BK67: 60 | BP67: 120 | BQ67: 0.55 | BR67: 26041184 | BS67: =VLOOKUP(M67,#REF!,2,TRUE)*(BR67/1000000) ->  | BT67: =VLOOKUP(M67,#REF!,3,TRUE)*(BR67/1000000) -> 
A68: 2020-07-23 | B68: 2020 | C68: Active | D68: Silver Bow 4% | E68: 220 Curtis St | F68: Butte | G68: 59701 | H68: 46.01078 | I68: -112.53078 | J68: Silver Bow | K68: 0.04 | L68: Non-profit | M68: Acq/Rehab | N68: Family | O68: 212 | P68: 18 | Q68: 15900110 | R68: 13871494 | S68: 29300000 | T68: 19950000 | U68: 0.042 | V68: 40 | W68: 2021-05-31 | X68: 2021-06-01 | Y68: 2021-06-01 | Z68: 2035-06-01 | AA68: 35 | AB68: 2070-06-01 | AC68: Butte Affordable Housing | AI68: rstordahl@buttehousing.org | AJ68: 4067826464 | AT68: 324 | AU68: 212 | AX68: 89 | AY68: 88 | AZ68: 35 | BF68: 40/60 | BK68: 212 | BP68: 212 | BQ68: 0.6 | BR68: 47339448 | BS68: =VLOOKUP(M68,#REF!,2,TRUE)*(BR68/1000000) ->  | BT68: =VLOOKUP(M68,#REF!,3,TRUE)*(BR68/1000000) -> 
A69: 2020-07-23 | B69: 2020 | C69: Active | D69: Rosalie Manor 4% | E69: 50 W Broadway | F69: Butte | G69: 59701 | H69: 46.01366 | I69: -112.53725 | J69: Silver Bow | K69: 0.04 | L69: Non-profit | M69: Acq/Rehab | N69: Family | O69: 65 | P69: 1 | Q69: 3348700 | R69: =5850950*0.5 -> 2925475 | S69: =13200000*0.5 -> 6600000 | T69: =6535000*0.5 -> 3267500 | U69: 0.043 | V69: 40 | W69: 2021-03-10 | X69: 2021-04-01 | Y69: 2021-04-01 | Z69: 2035-04-01 | AA69: 31 | AB69: 2066-04-01 | AC69: Butte Affordable Housing | AI69: rstordahl@buttehousing.org | AJ69: 4067826464 | AT69: 324 | AU69: 66 | AX69: 62 | AY69: 4 | BF69: 40/60 | BK69: 65 | BP69: 65 | BQ69: =((BH69*BH$1)+(BI69*BI$1)+(BJ69*BJ$1)+(BK69*BK$1)+(BL69*BL$1)+(BM69*BM$1))/SUM(BH69:BM69) -> 0.6 | BR69: 14514453 | BS69: =VLOOKUP(M69,#REF!,2,TRUE)*(BR69/1000000) ->  | BT69: =VLOOKUP(M69,#REF!,3,TRUE)*(BR69/1000000) -> 
A70: 2020-07-23 | B70: 2020 | C70: Active | D70: Leggat 4% | E70: 1125 S Main St | F70: Butte | G70: 59701 | H70: 45.99886 | I70: -112.53507 | J70: Silver Bow | K70: 0.04 | L70: Non-profit | M70: Acq/Rehab | N70: Family | O70: 30 | P70: 1 | Q70: 1757460 | R70: =5850950*0.23 -> 1345718.5 | S70: =13200000*0.23 -> 3036000 | T70: =6535000*0.23 -> 1503050 | U70: 0.043 | V70: 40 | W70: 2021-04-19 | X70: 2021-05-01 | Y70: 2021-05-01 | Z70: 2035-05-01 | AA70: 31 | AB70: 2066-05-01 | AC70: Butte Affordable Housing | AI70: rstordahl@buttehousing.org | AJ70: 4067826464 | AT70: 324 | AU70: 30 | AX70: 25 | AY70: 5 | BF70: 40/60 | BK70: 30 | BP70: 30 | BQ70: 0.6 | BR70: 6698979 | BS70: =VLOOKUP(M70,#REF!,2,TRUE)*(BR70/1000000) ->  | BT70: =VLOOKUP(M70,#REF!,3,TRUE)*(BR70/1000000) -> 
A71: 2020-07-23 | B71: 2020 | C71: Active | D71: Elm Street 4% | E71: 1500 Elm St | F71: Butte | G71: 59701 | H71: 46.00107 | I71: -112.51832 | J71: Silver Bow | K71: 0.04 | L71: Non-profit | M71: Acq/Rehab | N71: Family | O71: 35 | P71: 15 | Q71: 1600480 | R71: =5850950*0.274 -> 1603160.3 | S71: =13200000*0.27 -> 3564000 | T71: =6535000*0.27 -> 1764450 | U71: 0.043 | V71: 40 | W71: 2020-12-04 | X71: 2021-01-01 | Y71: 2021-01-01 | Z71: 2035-01-01 | AA71: 31 | AB71: =DATE(YEAR(Z71)+AA71,MONTH(Z71),DAY(Z71)) -> 2066-01-01 | AC71: Butte Affordable Housing | AD71: Good Housing Partnership | AE71: 2020 Curtis St | AF71: Butte | AG71: MT | AH71: 59701 | AI71: rstordahl@buttehousing.org | AJ71: 4067826464 | AT71: 324 | AU71: 35 | AX71: 24 | AY71: 5 | AZ71: 6 | BF71: 40/60 | BK71: 35 | BP71: 35 | BQ71: 0.6 | BR71: 7815475 | BS71: =VLOOKUP(M71,#REF!,2,TRUE)*(BR71/1000000) ->  | BT71: =VLOOKUP(M71,#REF!,3,TRUE)*(BR71/1000000) -> 
A72: 2019-10-28 | B72: 2020 | C72: Active | D72: Burnt Fork Place | E72: 67 Box Bird Lane | F72: Stevensville | G72: 59870 | H72: 47.16869 | I72: -111.8877 | J72: Ravalli | K72: 0.09 | L72: Non-profit | M72: New Const | N72: Family | O72: 16 | P72: 5 | Q72: 3600000 | R72: 3113689 | V72: 0 | W72: 2021-06-07 | X72: 2021-01-01 | Y72: 2021-06-07 | Z72: 2035-06-07 | AA72: 31 | AB72: 2066-06-07 | AC72: HRC - Missoula | AD72: Jim Morton | AE72: 1801 South Higgins Ave | AF72: Missoula | AG72: MT | AH72: 59801 | AI72: jpm@hrcxi.org | AJ72: 4067283710 | AT72: 69 | AU72: 16 | AY72: 12 | AZ72: 4 | BF72: 40/60 | BI72: 2 | BJ72: 10 | BK72: 4 | BP72: 16 | BQ72: 0.5125 | BR72: 3832000 | BS72: =VLOOKUP(M72,#REF!,2,TRUE)*(BR72/1000000) ->  | BT72: =VLOOKUP(M72,#REF!,3,TRUE)*(BR72/1000000) -> 
A73: 2019-10-28 | B73: 2020 | C73: Active | D73: Homestead Lodge | E73: 121 S Weast Ave | F73: Absarokee | G73: 59001 | H73: 45.516682 | I73: -109.441826 | J73: Stillwater | K73: 0.09 | L73: Non-profit | M73: Acq/Rehab | N73: Senior | O73: 32 | P73: 1 | Q73: 3845340 | R73: 3306663 | W73: 2021-01-29 | X73: 2021-01-29 | Y73: 2021-01-29 | Z73: 2035-01-29 | AA73: 31 | AB73: 2066-01-29 | AC73: Syringa Housing | AD73: Dianne Hunt | AE73: 1277 Shoreline Lane | AF73: Boise | AG73: ID | AH73: 83702 | AI73: dianne@syringaproperties.com | AJ73: 2083877817 | AT73: 10 | AU73: 32 | AX73: 28 | AY73: 4 | BF73: 40/60 | BI73: 4 | BJ73: 19 | BK73: 8 | BP73: 31 | BQ73: 0.5129032258 | BR73: 4285456 | BS73: =VLOOKUP(M73,#REF!,2,TRUE)*(BR73/1000000) ->  | BT73: =VLOOKUP(M73,#REF!,3,TRUE)*(BR73/1000000) -> 
A74: 2019-10-28 | B74: 2020 | C74: Active | D74: Skyview | E74: 2400 S 9th ST W | F74: Missoula | G74: 59801 | H74: 46.861459 | I74: -114.040613 | J74: Missoula | K74: 0.09 | L74: For-Profit | M74: New Const | N74: Senior | O74: 36 | P74: 1 | Q74: 5900000 | R74: 5102990 | W74: 2021-12-28 | X74: 2022-01-01 | Y74: 2021-12-28 | Z74: 2035-12-28 | AA74: 31 | AB74: 2066-12-28 | AC74: Housing Solutions | AD74: Alex Burkhalter | AE74: PO Box 2099 | AF74: Missoula | AG74: MT | AH74: 59806 | AI74: alex@housing-solutions.org | AJ74: 4062031558 | AT74: 266 | AU74: 36 | AX74: 23 | AY74: 12 | BE74: 1 | BF74: 40/60 | BI74: 4 | BJ74: 27 | BK74: 4 | BP74: 35 | BQ74: 0.5 | BR74: 6624254 | BS74: =VLOOKUP(M74,#REF!,2,TRUE)*(BR74/1000000) ->  | BT74: =VLOOKUP(M74,#REF!,3,TRUE)*(BR74/1000000) -> 
A75: 2019-10-28 | B75: 2020 | C75: Active | D75: Pioneer Meadows | E75: 725 North Walnut Street | F75: Dillon | G75: 59725 | H75: 45.21743 | I75: -112.62681 | J75: Beaverhead | K75: 0.09 | L75: Non-profit | M75: New Const | N75: Family | O75: 28 | P75: 5 | Q75: 6203630 | R75: 5396626 | V75: 0 | W75: 2021-05-31 | X75: 2021-01-01 | Y75: 2021-05-31 | Z75: 2035-05-31 | AA75: 31 | AB75: 2066-05-31 | AC75: The Housing Company | AD75: Blake Jumper | AE75: PO Box 6943 | AF75: Boise | AG75: ID | AH75: 83707 | AI75: blakej@ihfa.org | AJ75: 2083314765 | AT75: 111 | AU75: 29 | AX75: 4 | AY75: 16 | AZ75: 8 | BE75: 1 | BF75: 40/60 | BJ75: 23 | BK75: 4 | BP75: 27 | BQ75: 0.5148148148 | BR75: 6385318 | BS75: =VLOOKUP(M75,#REF!,2,TRUE)*(BR75/1000000) ->  | BT75: =VLOOKUP(M75,#REF!,3,TRUE)*(BR75/1000000) -> 
A76: 2019-10-28 | B76: 2020 | C76: Active | D76: Fire Tower Apts | E76: 6 S Park Ave | F76: Helena | G76: 59601 | H76: 46.58756 | I76: -112.04117 | J76: Lewis and Clark | K76: 0.09 | L76: For-Profit | M76: Acq/Rehab | N76: Family | O76: 44 | P76: 2 | Q76: 6333750 | R76: 5446480 | W76: 2021-01-01 | X76: 2021-01-01 | Y76: 2021-01-01 | Z76: 2035-01-01 | AA76: 31 | AB76: 2066-01-01 | AC76: Wishcamper Dev Ptnrs | AD76: Tyson O'Connell | AE76: 131 S Higgins Ave STE P-1 | AF76: Missoula | AG76: MT | AH76: 59802 | AI76: tyson.oconnell@wishrockgroup.com | AJ76: 4067283040 | AT76: 323 | AU76: 44 | AX76: 24 | AY76: 20 | BF76: AI | BI76: 5 | BJ76: 26 | BK76: 6 | BM76: 7 | BP76: 44 | BQ76: 0.55 | BR76: 7203715 | BS76: =VLOOKUP(M76,#REF!,2,TRUE)*(BR76/1000000) ->  | BT76: =VLOOKUP(M76,#REF!,3,TRUE)*(BR76/1000000) -> 
A77: 2019-10-28 | B77: 2020 | C77: Active | D77: Timber Ridge Apts (9% of 4/9) | E77: 2769 Tschache Ln | F77: Bozeman | G77: 59718 | H77: 45.69759 | I77: -111.073315 | J77: Gallatin | K77: 0.09 | L77: For-Profit | M77: New Const | N77: Senior | O77: 30 | P77: 1 | Q77: 6333750 | R77: 5446480 | W77: 2023-06-02 | X77: 2023-01-01 | Y77: 2023-06-02 | Z77: 2037-06-02 | AA77: 31 | AB77: 2068-06-02 | AC77: Summitt Hsing Group | AD77: Austin Richardson | AE77: 2525 Palmer St STE 1 | AF77: Missoula | AG77: MT | AH77: 59808 | AI77: austinr@summithousinggroup.com | AJ77: 4068024487 | AK77: Andrea David | AL77: City of Missoula | AN77: Missoula | AO77: MT | AP77: 59801 | AQ77: 40%/50%60% | AS77: 406-552-6001 | AT77: 113 | AU77: 30 | AX77: 20 | AY77: 10 | BF77: 40/60 | BI77: 3 | BJ77: 23 | BK77: 4 | BP77: 30 | BQ77: 0.5033333333 | BR77: 7203715 | BS77: =VLOOKUP(M77,#REF!,2,TRUE)*(BR77/1000000) ->  | BT77: =VLOOKUP(M77,#REF!,3,TRUE)*(BR77/1000000) -> 
A78: 2018-11-19 | B78: 2019 | C78: Active | D78: Cottonwood Creek (see orig credits 2018) | E78: 787 Buckskin Dr | F78: Deer Lodge | G78: 59722 | H78: 46.408919 | I78: -112.728721 | J78: Powell | K78: 0.09 | L78: General | M78: New Const | N78: Family | O78: see orig credits below | Q78: 617770 | W78: 2020-09-24 | Y78: 2020-09-24 | Z78: 2034-09-24 | AA78: 31 | AB78: 2065-09-24
A79: 2018-11-19 | B79: 2019 | C79: Active | D79: Alpenglow | E79: 524 Edgewood Pl | F79: Whitefish | G79: 59937 | H79: 48.415673 | I79: -114.342689 | J79: Flathead | K79: 0.09 | L79: Non-profit | M79: New Const | N79: Family | O79: 38 | P79: 3 | Q79: 6750000 | R79: 6075000 | W79: 2020-10-30 | X79: 2021-01-01 | Y79: 2021-01-01 | Z79: 2035-01-01 | AA79: 31 | AB79: 2066-01-01 | AC79: Homeword, Inc. | AD79: Heather McMilan | AE79: 1535 Liberty Ln | AF79: Missoula | AG79: MT | AH79: 59808 | AI79: heather@homeword.org | AJ79: 4065324663 | AU79: =SUM(AV79:BE79) -> 38 | AX79: 12 | AY79: 20 | AZ79: 6 | BF79: 40/60 | BI79: 4 | BJ79: 24 | BK79: 10 | BO79: 1 | BP79: =SUM(BH79:BO79) -> 39 | BQ79: =((BH79*BH$1)+(BI79*BI$1)+(BJ79*BJ$1)+(BK79*BK$1)+(BL79*BL$1)+(BM79*BM$1))/SUM(BH79:BM79) -> 0.5157894737 | BR79: 8708814 | BS79: =VLOOKUP(M79,#REF!,2,TRUE)*(BR79/1000000) ->  | BT79: =VLOOKUP(M79,#REF!,3,TRUE)*(BR79/1000000) -> 
A80: 2019-10-22 | B80: 2019 | C80: Active | D80: Red Alder 4% | E80: 2200 Henderson | F80: Helena | G80: 59601 | H80: 46.61229 | I80: -112.05502 | J80: Lewis and Clark | K80: 0.04 | L80: Non-profit | M80: New Const | N80: Family | O80: 48 | P80: 14 | Q80: 3150940 | R80: 3402674 | S80: 6000000 | T80: 3900000 | U80: 0.0475 | V80: 35 | W80: 2020-12-02 | X80: 2021-01-01 | Y80: 2021-01-01 | Z80: 2035-01-01 | AA80: 31 | AB80: 2066-01-01 | AC80: GL Development/RMDC | AI80: lmogstad@rmdc.net | BR80: 11521105 | BS80: =VLOOKUP(M80,#REF!,2,TRUE)*(BR80/1000000) ->  | BT80: =VLOOKUP(M80,#REF!,3,TRUE)*(BR80/1000000) -> 
A81: 2017-11-20 | B81: 2019 | C81: Active | D81: Bluebunch Flats (see original credits 2018) | E81: 504 S 13Th Street | F81: Livingston | G81: 59047 | H81: 45.64938303 | I81: -110.5692534 | J81: Park | K81: 0.09 | L81: Non-profit | M81: Acq/Rehab | N81: Family | O81: 34 | P81: 1 | Q81: 5800000 | R81: 5219478 | W81: 2020-08-31 | Y81: 2020-08-31 | Z81: 2034-08-31 | AA81: 31 | AB81: 2065-08-31 | AC81: Bluebunch Flats LLLP | AD81: Andrea Davis | AE81: 1535 Liberty Lane Ste 116A | AF81: Missoula MT 59808 | BS81: =VLOOKUP(M81,#REF!,2,TRUE)*(BR81/1000000) ->  | BT81: =VLOOKUP(M81,#REF!,3,TRUE)*(BR81/1000000) -> 
A82: 2018-11-19 | B82: 2019 | C82: Active | D82: Red Alder 9% | E82: 2200 Henderson | F82: Helena | G82: 59601 | H82: 46.61229 | I82: -112.05502 | J82: Lewis and Clark | K82: 0.09 | L82: Non-profit | M82: New Const | N82: Family | O82: 37 | P82: 11 | Q82: 7790000 | R82: 6075592 | W82: 2020-10-26 | X82: 2021-01-01 | Y82: 2021-01-01 | Z82: 2035-01-01 | AA82: 31 | AB82: 2066-01-01 | AC82: RMDC & GLD | AD82: Liz Mogstad | AE82: PO Box 1717 | AF82: Helena | AG82: MT | AH82: 59624 | AI82: lmogstad@rmdc.net | AJ82: 4064577473 | BR82: 8268072 | BS82: =VLOOKUP(M82,#REF!,2,TRUE)*(BR82/1000000) ->  | BT82: =VLOOKUP(M82,#REF!,3,TRUE)*(BR82/1000000) -> 
A83: 2018-11-19 | B83: 2019 | C83: Active | D83: Chapel Court | E83: 3940 Rimrock Rd | F83: Billings | G83: 59102 | H83: 45.79794 | I83: -108.61603 | J83: Yellowstone | K83: 0.09 | L83: Non-profit | M83: New Const | N83: Senior | O83: 54 | P83: 1 | Q83: 8023110 | R83: 7099742 | W83: 2021-01-01 | X83: 2021-01-01 | Y83: 2021-01-01 | Z83: 2035-01-01 | AA83: 31 | AB83: 2066-01-01 | AC83: St John's Luth / CR Bldrs | AD83: David Trost | AE83: 2429 Mission Way | AF83: Billings | AG83: MT | AH83: 59102 | AI83: dtrost@sjlm.org | AJ83: 4066555623 | AU83: =SUM(AV83:BE83) -> 54 | AX83: 54 | BF83: 40/60 | BH83: 8 | BJ83: 34 | BK83: 12 | BN83: 2 | BP83: =SUM(BH83:BO83) -> 56 | BQ83: =((BH83*BH$1)+(BI83*BI$1)+(BJ83*BJ$1)+(BK83*BK$1)+(BL83*BL$1)+(BM83*BM$1))/SUM(BH83:BM83) -> 0.4925925926 | BR83: 10360579 | BS83: =VLOOKUP(M83,#REF!,2,TRUE)*(BR83/1000000) ->  | BT83: =VLOOKUP(M83,#REF!,3,TRUE)*(BR83/1000000) -> 
A84: 2018-11-19 | B84: 2019 | C84: Active | D84: Meadowlark Vista | E84: 311 11Th Ave Nw | F84: Ronan | G84: 59864 | H84: 47.53231 | I84: -114.11508 | J84: Lake | K84: 0.09 | L84: Non-profit | M84: New Const | N84: Family | O84: 24 | P84: 2 | Q84: 4493320 | R84: 3886722 | W84: 2021-08-31 | Y84: 2021-08-31 | Z84: 2035-08-31 | AA84: 31 | AB84: 2066-08-31 | AC84: Lake Co CHDO and RCAC | AD84: Jodie Paxton | AE84: PO Box 146 | AF84: Ronan | AG84: MT | AH84: 59864 | AI84: Housing@ronan.net | AJ84: 4066765900 | AU84: 24 | AX84: 4 | AY84: 12 | AZ84: 8 | BF84: 40/60 | BI84: 4 | BJ84: 12 | BK84: 8 | BP84: =SUM(BH84:BO84) -> 24 | BQ84: =((BH84*BH$1)+(BI84*BI$1)+(BJ84*BJ$1)+(BK84*BK$1)+(BL84*BL$1)+(BM84*BM$1))/SUM(BH84:BM84) -> 0.5166666667 | BR84: 5594894 | BS84: =VLOOKUP(M84,#REF!,2,TRUE)*(BR84/1000000) ->  | BT84: =VLOOKUP(M84,#REF!,3,TRUE)*(BR84/1000000) -> 
A85: 2018-11-19 | B85: 2019 | C85: Active | D85: Oakwood Village | E85: 1915 1St St Ne | F85: Havre | G85: 59501 | H85: 48.55437 | I85: -109.65433 | J85: Hill | K85: 0.09 | L85: Non-profit | M85: Acq/Rehab | N85: Family | O85: 60 | P85: 4 | Q85: 3881250 | R85: 3221115 | W85: 2021-08-16 | Y85: 2021-08-16 | Z85: 2035-08-16 | AA85: 31 | AB85: 2066-08-16 | AC85: Affiliated Developers | AD85: Kirk Bruce | AE85: PO Box 725378 | AF85: Berkley | AG85: MI | AH85: 48072 | AI85: kirk@a-developers.com | AJ85: 2485252516 | AU85: 60 | AY85: =23+12+1 -> 36 | AZ85: =16+7+1 -> 24 | BF85: 40/60 | BH85: 39 | BI85: 19 | BJ85: 2 | BP85: 60 | BQ85: 0.3383333333 | BR85: 7716755 | BS85: =VLOOKUP(M85,#REF!,2,TRUE)*(BR85/1000000) ->  | BT85: =VLOOKUP(M85,#REF!,3,TRUE)*(BR85/1000000) -> 
A86: 2017-01-23 | B86: 2018 | C86: Active | D86: Roosevelt Villas (see orig credits 2017) | E86: 123 & 127 Edgar St Wp/22 & 24 W 2Nd St Culbertson | F86: Wolf Point/Culbertson | G86: 59218 | H86: 48.145356 | I86: -104.518564 | J86: Roosevelt | K86: 0.09 | L86: General | M86: Acq/Rehab | N86: Family | O86: 16 | P86: 2 | Q86: 330000 | R86: =2594345-2372000 -> 222345 | W86: 2019-05-01 | Y86: 2019-05-01 | Z86: 2033-05-01 | AA86: 31 | AB86: 2064-05-01 | AC86: Roosevelt Villas LLLP | AD86: Gene Leuwer | AE86: 4799 Echo Dr | AF86: Helena MT 59602 | AU86: 16 | AX86: 8 | AY86: 8 | BR86: 3759345 | BS86: =VLOOKUP(M86,#REF!,2,TRUE)*(BR86/1000000) ->  | BT86: =VLOOKUP(M86,#REF!,3,TRUE)*(BR86/1000000) -> 
A87: 2016-01-19 | B87: 2018 | C87: Active | D87: North Star (see orig credits 2016) | E87: 1225 4Th Ave North | F87: Wolf Point | G87: 59201 | H87: 48.10202 | I87: -105.64168 | J87: Roosevelt | K87: 0.09 | L87: General | M87: New Const | N87: Family | O87: 28 | P87: 1 | Q87: 550000 | R87: 429000 | W87: 2017-11-22 | Y87: 2017-11-22 | Z87: 2031-11-22 | AA87: 31 | AB87: 2062-11-22 | AC87: North Star Apartments LLLP | AD87: Gene Leuwer | AE87: 4799 Echo Dr | AF87: Helena MT 59602 | AU87: 28 | AX87: 8 | AY87: 12 | AZ87: 8 | BR87: 6814207 | BS87: =VLOOKUP(M87,#REF!,2,TRUE)*(BR87/1000000) ->  | BT87: =VLOOKUP(M87,#REF!,3,TRUE)*(BR87/1000000) -> 
A88: 2018-12-01 | B88: 2018 | C88: Active | D88: Starner Gardens 4% | E88: 230 Starner Ln | F88: Billings | G88: 59105 | H88: 45.82259 | I88: -108.47787 | J88: Yellowstone | K88: 0.04 | L88: General | M88: New Const | N88: Senior | O88: 101 | P88: 8 | Q88: 8045480 | R88: 8855984 | S88: 15000000 | T88: 7875200 | U88: 0.0475 | V88: 35 | W88: 2019-12-12 | Y88: 2019-12-12 | Z88: 2033-12-12 | AA88: 31 | AB88: 2064-12-12 | AC88: GMD Development / Homeword | AD88: Greg Dunfield | AE88: 520 Pike Street Ste 1010 | AF88: Seattle WA 98110 | BR88: 19778632 | BS88: =VLOOKUP(M88,#REF!,2,TRUE)*(BR88/1000000) ->  | BT88: =VLOOKUP(M88,#REF!,3,TRUE)*(BR88/1000000) -> 
B89: 2018 | C89: Active | D89: Cottonwood Creek (see add'l credits 2019) | E89: 787 Buckskin Dr | F89: Deer Lodge | G89: 59722 | H89: 46.408931 | I89: -112.72872 | J89: Powell | K89: 0.09 | L89: General | M89: New Const | N89: Family | O89: 21 | P89: 6 | Q89: =3990000+348970 -> 4338970 | R89: 4212808 | W89: 2020-09-24 | Y89: 2020-09-24 | Z89: 2034-09-24 | AA89: 31 | AB89: 2065-09-24 | BR89: 4872807 | BS89: =VLOOKUP(M89,#REF!,2,TRUE)*(BR89/1000000) ->  | BT89: =VLOOKUP(M89,#REF!,3,TRUE)*(BR89/1000000) -> 
A90: 2018-10-01 | B90: 2018 | C90: Active | D90: Copper Ridge 4% | E90: 101 Elderberry Ln | F90: Butte | G90: 59701 | H90: 45.96914 | I90: -112.47703 | J90: Silver Bow | K90: 0.04 | L90: Non-profit | M90: New Const | N90: Family | O90: 32 | P90: 4 | Q90: 1485560 | R90: 1485411 | S90: 3584712 | T90: 2833504 | U90: 0.0425 | V90: 35 | W90: 2020-02-20 | Y90: 2020-02-20 | Z90: 2034-02-20 | AA90: 31 | AB90: 2065-02-20 | AC90: Thomas Development/Butte HA | AD90: Tom Mannschreck/Revonda Strodahl | AE90: 413 W Idaho ST Ste 200 | AF90: Boise | AG90: ID | AH90: 83702 | AI90: tmannschreck@thomasdevelopment.com | AJ90: 208-343-8877 x202 | AT90: 219 | AU90: 32 | AY90: 16 | AZ90: 16 | BF90: 40/60 | BJ90: 6 | BK90: 26 | BR90: 5280548 | BS90: =VLOOKUP(M90,#REF!,2,TRUE)*(BR90/1000000) ->  | BT90: =VLOOKUP(M90,#REF!,3,TRUE)*(BR90/1000000) -> 
A91: 2017-11-20 | B91: 2018 | C91: Active | D91: Meadows Senior | E91: 603 Brassey Street | F91: Lewistown | G91: 55317 | H91: 47.059779 | I91: -109.424194 | J91: Fergus | K91: 0.09 | L91: Non-profit | M91: Rehab | N91: Senior | O91: 35 | P91: 9 | Q91: 3200000 | R91: 2814437 | W91: 2019-01-01 | Y91: 2019-01-01 | Z91: 2033-01-01 | AA91: 31 | AB91: 2064-01-01 | AC91: Meadows LLC | AD91: Ken Talle | AE91: 470 West 78th St Ste 260 | AF91: Chanhassen MN 55317 | BR91: 4225371 | BS91: =VLOOKUP(M91,#REF!,2,TRUE)*(BR91/1000000) ->  | BT91: =VLOOKUP(M91,#REF!,3,TRUE)*(BR91/1000000) -> 
A92: 2017-11-20 | B92: 2018 | C92: Active | D92: Starner Gardens 9% | E92: 230 Starner Ln | F92: Billings | G92: 59105 | H92: 45.823443 | I92: -108.479421 | J92: Yellowstone | K92: 0.09 | L92: General | M92: New Const | N92: Senior | O92: 40 | P92: 3 | Q92: 6775000 | R92: 5215707 | W92: 2019-12-12 | Y92: 2019-12-12 | Z92: 2033-12-12 | AA92: 31 | AB92: 2064-12-12 | AC92: Heights Senior 9% LLLP | AD92: Greg Dunfield | AE92: 520 Pike Street Ste 1010 | AF92: Seattle WA 98110 | BR92: 6938233 | BS92: =VLOOKUP(M92,#REF!,2,TRUE)*(BR92/1000000) ->  | BT92: =VLOOKUP(M92,#REF!,3,TRUE)*(BR92/1000000) -> 
A93: 2017-11-20 | B93: 2018 | C93: Active | D93: Courtyard Apartments | E93: 1842 Airport Road | F93: Kalispell | G93: 59904 | H93: 48.180807 | I93: -114.309713 | J93: Flathead | K93: 0.09 | L93: Non-profit | M93: Acq/Rehab | N93: Family | O93: 32 | P93: 4 | Q93: 4490000 | R93: 3950805 | W93: 2018-07-19 | Y93: 2018-07-19 | Z93: 2032-07-19 | AA93: 31 | AB93: 2063-07-19 | AC93: Courtyard Associates MT LP | AD93: Marney McCleary | AE93: PO Box 8300 | AF93: Kalispell MT 59904 | BR93: 4892963 | BS93: =VLOOKUP(M93,#REF!,2,TRUE)*(BR93/1000000) ->  | BT93: =VLOOKUP(M93,#REF!,3,TRUE)*(BR93/1000000) -> 
A94: 2017-11-20 | B94: 2018 | C94: Active | D94: Copper Ridge 9% (includes orig + add'L credit) | E94: 119 Elderberry Lane | F94: Butte | G94: 59701 | H94: 45.970108 | I94: -112.476641 | J94: Silver Bow | K94: 0.09 | L94: Non-profit | M94: New Const | N94: Family | O94: 32 | P94: 5 | Q94: =5239540+472820 -> 5712360 | R94: 5083027 | W94: 2020-05-05 | Y94: 2020-05-05 | Z94: 2034-05-05 | AA94: 31 | AB94: 2065-05-05 | AC94: Copper Ridge 9% LLC | AD94: Tom Mannschreck/Revonda Strodahl | AE94: 413 W Idaho ST Ste 200 | AF94: Boise | AG94: ID | AH94: 83702 | AI94: tmannschreck@thomasdevelopment.com | AJ94: 208-343-8877 x202 | AT94: 219 | AU94: 32 | AY94: 16 | AZ94: 16 | BF94: 40/60 | BI94: 6 | BJ94: 20 | BK94: 6 | BR94: 7410996 | BS94: =VLOOKUP(M94,#REF!,2,TRUE)*(BR94/1000000) ->  | BT94: =VLOOKUP(M94,#REF!,3,TRUE)*(BR94/1000000) -> 
A95: 2017-11-20 | B95: 2018 | C95: Active | D95: Bluebunch Flats (see add'l credits 2019) | E95: 504 S 13Th Street | F95: Livingston | G95: 59047 | H95: 48.187339 | I95: -114.301374 | J95: Park | K95: 0.09 | L95: Non-profit | M95: Acq/Rehab | N95: Family | O95: 37 | P95: 2 | Q95: 5874690 | R95: 5404714 | W95: 2020-08-31 | X95: 2020-01-01 | Y95: 2020-08-31 | Z95: 2034-08-31 | AA95: 31 | AB95: 2065-08-31 | AC95: Bluebunch Flats LLLP | AD95: Andrea Davis | AE95: 1535 Liberty Lane Ste 116A | AF95: Missoula MT 59808 | BR95: 8593552 | BS95: =VLOOKUP(M95,#REF!,2,TRUE)*(BR95/1000000) ->  | BT95: =VLOOKUP(M95,#REF!,3,TRUE)*(BR95/1000000) -> 
A96: 2016-01-19 | B96: 2018 | C96: Active | D96: Freedoms Path (refreshed credits fr 2016) | E96: 3687 Veterans Dr | F96: Ft Harrison (Helena) | G96: 59636 | H96: 46.618734 | I96: -112.10198 | J96: Lewis and Clark | K96: 0.09 | L96: General | M96: Acq/Rehab | N96: Family | O96: 42 | P96: 12 | Q96: 6704660 | R96: 5832471 | W96: 2019-03-28 | Y96: 2019-03-28 | Z96: 2033-03-28 | AA96: 35 | AB96: 2068-03-28 | AC96: Ft. harrison Veterans Residences LP | AD96: Donald Paxton | AE96: 3550 S. Tamiami Trail Suite 300 | AF96: Sarasota FL 34239 | AU96: 42 | AW96: 1 | AX96: 22 | AY96: 13 | AZ96: 4 | BA96: 2 | BR96: 12406829 | BS96: =VLOOKUP(M96,#REF!,2,TRUE)*(BR96/1000000) ->  | BT96: =VLOOKUP(M96,#REF!,3,TRUE)*(BR96/1000000) -> 
A97: 2017-10-25 | B97: 2017 | C97: Active | D97: Big Sky Manor resynd 4% | E97: 110 2Nd Ave | F97: Kalispell | G97: 59901 | H97: 48.19696 | I97: -114.31666 | J97: Flathead | K97: 0.04 | L97: General | M97: Acq/Rehab | N97: Senior | O97: 60 | P97: 1 | Q97: 2443870 | R97: 2394758 | S97: 4500000 | T97: 3966844 | U97: 0.0385 | V97: 30 | W97: 2017-10-22 | Y97: 2017-10-22 | Z97: 2031-10-22 | AA97: 31 | AB97: 2062-10-22 | AC97: Big Sky Preservation LP | AD97: Monfic Inc | BR97: 7380051 | BS97: =VLOOKUP(M97,#REF!,2,TRUE)*(BR97/1000000) ->  | BT97: =VLOOKUP(M97,#REF!,3,TRUE)*(BR97/1000000) -> 
A98: 2017-01-16 | B98: 2017 | C98: Active | D98: Rockcress 4% | E98: 2108 23Rd St S (23 Rd St S & 24Th Ave S) | F98: Great Falls | G98: 59401 | H98: 47.48063 | I98: -111.26969 | J98: Cascade | K98: 0.04 | L98: General | M98: New Const | N98: Family | O98: 92 | P98: 4 | Q98: 7863410 | R98: 7639363 | S98: 15000000 | T98: 7896451 | U98: 0.045 | V98: 35 | W98: 2020-04-17 | X98: 2020-01-01 | Y98: 2020-04-17 | Z98: 2034-04-17 | AA98: 31 | AB98: 2065-04-17 | AC98: GMD Development LLC/NWGF | BR98: 17924755 | BS98: =VLOOKUP(M98,#REF!,2,TRUE)*(BR98/1000000) ->  | BT98: =VLOOKUP(M98,#REF!,3,TRUE)*(BR98/1000000) -> 
A99: 2017-01-23 | B99: 2017 | C99: Active | D99: Rockcress 9% | E99: 2108 23Rd St S (23 Rd St S & 24Th Ave S) | F99: Great Falls | G99: 59401 | H99: 47.48063 | I99: -111.26969 | J99: Cascade | K99: 0.09 | L99: General | M99: New Const | N99: Family | O99: 32 | P99: 3 | Q99: 6775000 | R99: 5536092 | W99: 2019-12-31 | X99: 2020-01-01 | Y99: 2020-01-01 | Z99: 2034-01-01 | AA99: 31 | AB99: 2065-01-01 | AC99: MT Rockcress 9% LLLP | AD99: Steve Dymoke/Neil Fortier | AE99: 520 Pike St, Suite 1010 | AF99: Seattle WA 98110 | AU99: 124 | AX99: 60 | AY99: 38 | AZ99: 26 | BR99: 7061263 | BS99: =VLOOKUP(M99,#REF!,2,TRUE)*(BR99/1000000) ->  | BT99: =VLOOKUP(M99,#REF!,3,TRUE)*(BR99/1000000) -> 
A100: 2017-01-23 | B100: 2017 | C100: Active | D100: Blackfeet VI | E100: 63 Heart Butte Rd | F100: Browning | G100: 59417 | H100: 48.536235 | I100: -113.012406 | J100: Glacier | K100: 0.09 | L100: Tribal | M100: New Const | N100: Family | O100: 30 | P100: 30 | Q100: 6775000 | R100: 5727690 | W100: 2019-02-01 | Y100: 2019-02-01 | Z100: 2033-02-01 | AA100: 31 | AB100: 2064-02-01 | AC100: Blackfeet Housing Limited Partnership #6 | AD100: Chancy Kittson | AE100: 1200 SW Boundary, PO Box 449 | AF100: Browning MT 59417 | AU100: 30 | AZ100: 20 | BA100: 10 | BR100: 6895539 | BS100: =VLOOKUP(M100,#REF!,2,TRUE)*(BR100/1000000) ->  | BT100: =VLOOKUP(M100,#REF!,3,TRUE)*(BR100/1000000) -> 
A101: 2017-01-23 | B101: 2017 | C101: Active | D101: Polson Landing | E101: 402 Ridgewater Dr | F101: Polson | G101: 59860 | H101: 47.684307 | I101: -114.130524 | J101: Lake | K101: 0.09 | L101: General | M101: New Const | N101: Family | O101: 35 | P101: 3 | Q101: 6765000 | R101: 6020248 | W101: 2017-12-15 | Y101: 2017-12-15 | Z101: 2031-12-15 | AA101: 31 | AB101: 2062-12-15 | AC101: Polson Landing LLLP | AD101: Alex Burkhalter | AE101: PO Box 2099 | AF101: Missoula MT 59806 | AU101: 35 | AX101: 3 | AY101: 19 | AZ101: 13 | BR101: 6944325 | BS101: =VLOOKUP(M101,#REF!,2,TRUE)*(BR101/1000000) ->  | BT101: =VLOOKUP(M101,#REF!,3,TRUE)*(BR101/1000000) -> 
A102: 2017-01-23 | B102: 2017 | C102: Active | D102: Gateway Vista | E102: 945 Wyoming Avenue | F102: Billings | G102: 59101 | H102: 45.778612 | I102: -108.539082 | J102: Yellowstone | K102: 0.09 | L102: Non-profit | M102: New Const | N102: Family | O102: 24 | P102: 1 | Q102: 4176140 | R102: 3549364 | W102: 2018-07-13 | Y102: 2018-07-13 | Z102: 2032-07-13 | AA102: 31 | AB102: 2063-07-13 | AC102: YWCA Billings | AD102: Merry Lee Olson | AE102: 909 Wyoming Ave | AF102: Billings MT 59101 | AU102: 24 | AX102: 11 | AY102: 13 | BR102: 4647521 | BS102: =VLOOKUP(M102,#REF!,2,TRUE)*(BR102/1000000) ->  | BT102: =VLOOKUP(M102,#REF!,3,TRUE)*(BR102/1000000) -> 
A103: 2017-01-23 | B103: 2017 | C103: Active | D103: Roosevelt Villas (see add'L credits 2018) | E103: 123 & 127 Edgar St Wp/22 & 24 W 2Nd St Culbertson | F103: Wolf Point/Culbertson | G103: 59218 | H103: 48.145935 | I103: -104.518757 | J103: Roosevelt | K103: 0.09 | L103: General | M103: Acq/Rehab | N103: Family | O103: same | Q103: 2722170 | R103: 2372000 | W103: 2019-05-01 | Y103: =IF(W103>X103,W103,X103) -> 2019-05-01 | Z103: =DATE(YEAR(Y103)+14,MONTH(Y103),DAY(Y103)) -> 2033-05-01 | AA103: 31 | AB103: =DATE(YEAR(Z103)+AA103,MONTH(Z103),DAY(Z103)) -> 2064-05-01 | AC103: Roosevelt Villas LLLP | AD103: Gene Leuwer | AE103: 4799 Echo Dr | AF103: Helena MT 59602 | AU103: 16 | AX103: 8 | AY103: 8 | BS103: =VLOOKUP(M103,#REF!,2,TRUE)*(BR103/1000000) ->  | BT103: =VLOOKUP(M103,#REF!,3,TRUE)*(BR103/1000000) -> 
A104: 2016-12-01 | B104: 2016 | C104: Active | D104: River Run Apartments 4% | E104: 3416/3200 11Th Ave S; 429 56Th St S; 701 3Rd Ave Nw | F104: Great Falls | G104: 59401 | H104: 47.49261 | I104: -111.25169 | J104: Cascade | K104: 0.04 | L104: General | M104: Acq/Rehab | N104: Family | O104: 96 | P104: 8 | Q104: 4453030 | R104: 4355494 | S104: 7500000 | T104: 8353000 | U104: 0.035 | V104: 40 | W104: 2017-12-31 | Y104: 2017-12-31 | Z104: 2031-12-31 | AA104: 15 | AB104: 2046-12-31 | AC104: Wishcamper Dev Ptnrs/NWGF | BR104: 14109697 | BS104: =VLOOKUP(M104,#REF!,2,TRUE)*(BR104/1000000) ->  | BT104: =VLOOKUP(M104,#REF!,3,TRUE)*(BR104/1000000) -> 
A105: 2016-01-19 | B105: 2016 | C105: Active | D105: Valley Villas | E105: 404, 410, 414 N 10Th Street | F105: Hamilton | G105: 59840 | H105: 46.24989 | I105: -114.16888 | J105: Ravalli | K105: 0.09 | L105: General | M105: Acq/Rehab | N105: Family | O105: 34 | P105: 3 | Q105: 5603920 | R105: 5211124 | W105: 2016-12-12 | Y105: 2016-12-12 | Z105: 2030-12-12 | AA105: 31 | AB105: 2061-12-12 | AC105: Echo Enterprises LLC | AD105: Beki Glyde Brandborg | AE105: 4835 Echo Dr | AF105: Helena MT 59602 | AU105: 34 | AX105: 8 | AY105: 26 | BR105: 6652867 | BS105: =VLOOKUP(M105,#REF!,2,TRUE)*(BR105/1000000) ->  | BT105: =VLOOKUP(M105,#REF!,3,TRUE)*(BR105/1000000) -> 
A106: 2016-01-19 | B106: 2016 | C106: Active | D106: Red Fox | E106: 344 Sioux Lane | F106: Billings | G106: 59101 | H106: 45.824007 | I106: -108.477512 | J106: Yellowstone | K106: 0.09 | L106: General | M106: New Const | N106: Family | O106: 30 | P106: 8 | Q106: 3395880 | R106: 3497407 | W106: 2018-06-19 | Y106: 2018-06-19 | Z106: 2032-06-19 | AA106: 32 | AB106: 2064-06-19 | AC106: Red Fox Apartments LLLP | AD106: Lucy Brown | AE106: 2415 First Ave N | AF106: Billings MT 59101 | AU106: 30 | AX106: 15 | AY106: 15 | BR106: 6026028 | BS106: =VLOOKUP(M106,#REF!,2,TRUE)*(BR106/1000000) ->  | BT106: =VLOOKUP(M106,#REF!,3,TRUE)*(BR106/1000000) -> 
A107: 2016-01-19 | B107: 2016 | C107: Active | D107: North Star (see add'L credits 2018) | E107: 1225 4Th Ave North | F107: Wolf Point | G107: 59201 | H107: 48.10202 | I107: -105.64168 | J107: Roosevelt | K107: 0.09 | L107: General | M107: New Const | N107: Family | O107: same | Q107: =5570420 -> 5570420 | R107: 5012877 | W107: 2017-11-22 | Y107: 2017-11-22 | Z107: 2031-11-22 | AA107: 31 | AB107: 2062-11-22 | AC107: North Star Apartments LLLP | AD107: Gene Leuwer | AE107: 4799 Echo Dr | AF107: Helena MT 59602 | AU107: 28 | AX107: 8 | AY107: 12 | AZ107: 8 | BR107: 6385217 | BS107: =VLOOKUP(M107,#REF!,2,TRUE)*(BR107/1000000) ->  | BT107: =VLOOKUP(M107,#REF!,3,TRUE)*(BR107/1000000) -> 
A108: 2016-01-19 | B108: 2016 | C108: Active | D108: Little Jon Rehab (resyndicated) | E108: 1150 Grand Drive | F108: Big Fork | G108: 59911 | H108: 48.067507 | I108: -114.077213 | J108: Flathead | K108: 0.09 | L108: Non-profit | M108: Acq/Rehab | N108: Family | O108: 31 | P108: 3 | Q108: 2625390 | R108: 2573396 | W108: 2017-02-16 | Y108: 2017-02-16 | Z108: 2031-02-16 | AA108: 31 | AB108: 2062-02-16 | AC108: TBD | AD108: Gregory Dunfield | AE108: 520 Pike St Suite 1010 | AF108: Seattle WA 98101 | AU108: 31 | AX108: 8 | AY108: 20 | AZ108: 3 | BR108: 4082561 | BS108: =VLOOKUP(M108,#REF!,2,TRUE)*(BR108/1000000) ->  | BT108: =VLOOKUP(M108,#REF!,3,TRUE)*(BR108/1000000) -> 
A109: 2016-01-19 | B109: 2016 | C109: Refreshed | D109: Freedoms Path (returned see 2018 refreshed credits) | E109: 3687 Veterans Dr | F109: Ft Harrison (Helena) | G109: 59636 | H109: 46.618734 | I109: -112.10198 | J109: Lewis and Clark | K109: 0.09 | L109: General | M109: Acq/Rehab | N109: Family | O109: 42 | P109: 12 | Q109: 6704660 | R109: 5843724 | W109: 1905-07-11 | Y109: 1905-07-11 | Z109: 1919-07-11 | AA109: 15 | AB109: 1934-07-11 | AC109: Ft. harrison Veterans Residences LP | AD109: Donald Paxton | AE109: 3550 S. Tamiami Trail Suite 300 | AF109: Sarasota FL 34239 | AU109: 42 | AW109: 1 | AX109: 22 | AY109: 13 | AZ109: 4 | BA109: 2 | BR109: 11960772 | BS109: =VLOOKUP(M109,#REF!,2,TRUE)*(BR109/1000000) ->  | BT109: =VLOOKUP(M109,#REF!,3,TRUE)*(BR109/1000000) -> 
A110: 2016-01-19 | B110: 2016 | C110: Active | D110: Cascade Ridge II - Additional Allocation See 2015 Orig | E110: 3001 15Th Ave S | F110: Great Falls | G110: 59405 | H110: 47.48999 | I110: -111.25415 | J110: Cascade | K110: 0.09 | L110: Non-profit | M110: New Const | N110: Eldery | P110: 1 | Q110: 319730 | R110: 290925 | W110: 2016-07-26 | Y110: 2016-07-26 | Z110: 2030-07-26 | AA110: 31 | AB110: 2061-07-26 | AC110: Cascade Ridge Phase II LLC | AD110: Peter Gray | AE110: 2621 15th Ave S | AF110: Great Falls 59405 | AU110: 16 | AX110: 8 | AY110: 8 | BS110: =VLOOKUP(M110,#REF!,2,TRUE)*(BR110/1000000) ->  | BT110: =VLOOKUP(M110,#REF!,3,TRUE)*(BR110/1000000) -> 
A111: 2016-01-19 | B111: 2016 | C111: Active | D111: Big Sky Villas | E111: 204 West Jefferson | F111: Belgrade | G111: 59718 | H111: 45.771362 | I111: -111.183746 | J111: Gallatin | K111: 0.09 | L111: Non-profit | M111: Acq/Rehab | N111: Family | O111: 24 | P111: 2 | Q111: 2680000 | R111: 2492151 | W111: 2017-10-02 | Y111: 2017-10-02 | Z111: 2031-10-02 | AA111: 31 | AB111: 2062-10-02 | AC111: West Jefferson partners LLLP | AD111: Heather Grenier | AE111: 32 S Tracy St | AF111: Bozeman MT 59715 | AU111: 24 | AX111: 6 | AY111: 12 | AZ111: 6 | BR111: 3649711 | BS111: =VLOOKUP(M111,#REF!,2,TRUE)*(BR111/1000000) ->  | BT111: =VLOOKUP(M111,#REF!,3,TRUE)*(BR111/1000000) -> 
A112: 2018-07-07 | B112: 2015 | C112: Active | D112: Larkspur Commons 4% | E112: 1241 North 12th Ave | F112: Bozeman | G112: 59715 | H112: 45.69203 | I112: -111.05271 | J112: Gallatin | K112: 0.04 | L112: Non-profit | M112: New Const | N112: Family | O112: 136 | P112: 8 | Q112: 7502520 | R112: 10046842 | S112: 15500000 | T112: 11700000 | U112: 0.0468 | V112: 35 | W112: 2016-10-31 | Y112: 2016-10-31 | Z112: 2030-10-31 | AA112: 31 | AB112: 2061-10-31 | AC112: GMD Development LLC | AU112: 136 | BR112: 24562466 | BS112: =VLOOKUP(M112,#REF!,2,TRUE)*(BR112/1000000) ->  | BT112: =VLOOKUP(M112,#REF!,3,TRUE)*(BR112/1000000) -> 
A113: 2014-11-17 | B113: 2015 | C113: Active | D113: River Ridge | E113: 2840 Santa Fe Court | F113: Missoula | G113: 59808 | H113: 46.88614 | I113: -114.032695 | J113: Missoula | K113: 0.09 | L113: General | M113: Acq/Rehab | N113: Elderly +55 | O113: 70 | P113: 1 | Q113: 5017230 | R113: 4096530 | W113: 2016-10-31 | Y113: 2016-10-31 | Z113: 2030-10-31 | AA113: 31 | AB113: 2061-10-31 | AC113: River Ridge Apartments LP | AD113: Lori Davidson | AE113: 1235 34th St | AF113: Missoula MT 59801 | AU113: 71 | AX113: 56 | AY113: 14 | BR113: 6248773 | BS113: =VLOOKUP(M113,#REF!,2,TRUE)*(BR113/1000000) ->  | BT113: =VLOOKUP(M113,#REF!,3,TRUE)*(BR113/1000000) -> 
A114: 2014-11-17 | B114: 2015 | C114: Active | D114: Sweet Grass Commons | E114: 1137 Montana St | F114: Missoula | G114: 59801 | H114: 46.872593 | I114: -114.013695 | J114: Missoula | K114: 0.09 | L114: General | M114: New Const | N114: Family | O114: 27 | P114: 1 | Q114: 3968990 | R114: 4127753 | W114: 2016-12-29 | Y114: 2016-12-29 | Z114: 2030-12-29 | AA114: 31 | AB114: 2061-12-29 | AC114: Homeword, Inc | AD114: Heather McMilin | AE114: 1535 Liberty Lane, Suite 116a | AF114: Missoula MT 59808 | AU114: 26 | AW114: 6 | AX114: 11 | AY114: 3 | AZ114: 6 | BR114: 6096845 | BS114: =VLOOKUP(M114,#REF!,2,TRUE)*(BR114/1000000) ->  | BT114: =VLOOKUP(M114,#REF!,3,TRUE)*(BR114/1000000) -> 
A115: 2014-11-17 | B115: 2015 | C115: Active | D115: Stoneridge Apartments | E115: 2716 Turbulance Ln | F115: Bozeman | G115: 59718 | H115: 45.697287 | I115: -111.073287 | J115: Gallatin | K115: 0.09 | L115: General | M115: New Const | N115: Family | O115: 47 | P115: 2 | Q115: 6587500 | R115: 5763486 | W115: 2016-09-30 | Y115: 2016-09-30 | Z115: 2030-09-30 | AA115: 31 | AB115: 2061-09-30 | AC115: Stoneride Apartments LP | AD115: Rusty Snow | AE115: 283 W. Front St Suite 1 | AF115: Missoula MT 59802 | AU115: 48 | AY115: 30 | AZ115: 18 | BR115: 8180561 | BS115: =VLOOKUP(M115,#REF!,2,TRUE)*(BR115/1000000) ->  | BT115: =VLOOKUP(M115,#REF!,3,TRUE)*(BR115/1000000) -> 
A116: 2014-11-17 | B116: 2015 | C116: Active | D116: Guardian Apartments | E116: 520 Logan St | F116: Helena | G116: 59601 | H116: 46.591687 | I116: -112.035306 | J116: Lewis and Clark | K116: 0.09 | L116: General | M116: Acq/Rehab | N116: Elderly +55 | O116: 118 | P116: 1 | Q116: 10103668 | R116: 5664683 | W116: 2016-12-16 | Y116: 2016-12-16 | Z116: 2030-12-16 | AA116: 31 | AB116: 2061-12-16 | AC116: TBD | AD116: Kirk Bruce | AE116: PO Box 725378 | AF116: Berkley MI 48072 | AU116: 142 | AW116: 75 | AX116: 67 | BR116: 9665250 | BS116: =VLOOKUP(M116,#REF!,2,TRUE)*(BR116/1000000) ->  | BT116: =VLOOKUP(M116,#REF!,3,TRUE)*(BR116/1000000) -> 
A117: 2014-11-17 | B117: 2015 | C117: Active | D117: Gallatin Forks | E117: 402 W Main St | F117: Manhattan | G117: 59741 | H117: 45.858101 | I117: -111.336899 | J117: Gallatin | K117: 0.09 | L117: Non-profit | M117: Acq/Rehab | N117: Family | O117: 16 | P117: 3 | Q117: 1534940 | R117: 1381308 | W117: 2016-05-23 | Y117: 2016-05-23 | Z117: 2030-05-23 | AA117: 31 | AB117: 2061-05-23 | AC117: Gallatin Forks LP | AD117: Taylor Hunt | AE117: 1277 Shoreline Lane | AF117: Boise ID 83702 | AU117: 16 | AX117: 8 | AY117: 8 | BR117: 2086154 | BS117: =VLOOKUP(M117,#REF!,2,TRUE)*(BR117/1000000) ->  | BT117: =VLOOKUP(M117,#REF!,3,TRUE)*(BR117/1000000) -> 
A118: 2014-11-17 | B118: 2015 | C118: Active | D118: Cascade Ridge Ii (See Add'L Credits In 2016) | E118: 3001 15th Ave S | F118: Great Falls | G118: 59405 | H118: 47.48999 | I118: -111.25415 | J118: Cascade | K118: 0.09 | L118: Non-profit | M118: New Const | N118: Elderly +55 | O118: 16 | P118: 1 | Q118: 2451830 | R118: 2230942 | W118: 2016-07-26 | Y118: 2016-07-26 | Z118: 2030-07-26 | AA118: 31 | AB118: 2061-07-26 | AC118: Cascade Ridge Phase II, LLC | AD118: Peter gray | AE118: 2621 15th Ave S | AF118: Great Falls MT 59405 | AU118: 16 | AX118: 8 | AY118: 8 | BR118: 2926967 | BS118: =VLOOKUP(M118,#REF!,2,TRUE)*(BR118/1000000) ->  | BT118: =VLOOKUP(M118,#REF!,3,TRUE)*(BR118/1000000) -> 
A119: 2014-11-17 | B119: 2015 | C119: Active | D119: Antelope Court | E119: 2465 5Th Ave | F119: Havre | G119: 59501 | H119: 48.529655 | I119: -109.679755 | J119: HIll | K119: 0.09 | L119: Non-profit | M119: New Const | N119: Family | O119: 30 | P119: 7 | Q119: 5687500 | R119: 5118238 | W119: 2017-01-28 | Y119: 2017-01-28 | Z119: 2031-01-28 | AA119: 31 | AB119: 2062-01-28 | AC119: Antelope Court LP | AD119: Karen Thomas | AE119: 4799 Echo Drive | AF119: Helena MT 59602 | AU119: 30 | AX119: 20 | AY119: 10 | BR119: 6838948 | BS119: =VLOOKUP(M119,#REF!,2,TRUE)*(BR119/1000000) ->  | BT119: =VLOOKUP(M119,#REF!,3,TRUE)*(BR119/1000000) -> 
A120: 2014-01-29 | B120: 2014 | C120: Active | D120: Chippewa Cree Homes | E120: 21 Bunty Blvd (Agency & Box Elder Scattered Site) | F120: Box Elder | G120: 59521 | H120: 48.300483 | I120: -109.800667 | J120: Hill | K120: 0.09 | L120: Tribal | M120: Acq/Rehab | N120: Family | O120: 33 | P120: 33 | Q120: 4889660 | R120: 4165573 | W120: 2014-11-21 | Y120: 2014-11-21 | Z120: 2028-11-21 | AA120: 31 | AB120: 2059-11-21 | AC120: Chippewa Cree Housing LP 1 | AD120: Jason Belcourt | AE120: RR 1 Box 544 | AF120: Box Elder | AG120: MT | AH120: 59521 | AJ120: 406-395-4370 | AU120: =SUM(AV120:BB120) -> 33 | AZ120: 12 | BA120: 16 | BB120: 5 | BF120: 40/60 | BI120: 4 | BJ120: 21 | BK120: 8 | BP120: =SUM(BH120:BO120) -> 33 | BR120: 6584680 | BS120: =VLOOKUP(M120,#REF!,2,TRUE)*(BR120/1000000) ->  | BT120: =VLOOKUP(M120,#REF!,3,TRUE)*(BR120/1000000) -> 
A121: 2014-01-29 | B121: 2014 | C121: Active | D121: Cedar View | E121: 543 S 3rd Ave W | F121: Malta | G121: 59538 | H121: 48.354694 | I121: -107.879105 | J121: Phillips | K121: 0.09 | L121: Non-profit | M121: Acq/Rehab | N121: Family | O121: 32 | P121: 33 | Q121: 2533900 | R121: 2052456 | W121: 2014-12-17 | Y121: 2014-12-17 | Z121: 2028-12-17 | AA121: 31 | AB121: 2059-12-17 | AC121: MT Preservation Cedar LLLp | AD121: Greg Dunfield | AE121: 1601 Second Ave Suite 1080 | AF121: Seattle | AG121: WA | AH121: 98101 | AJ121: 206-745-3699 | AU121: 31 | AY121: 20 | AZ121: 11 | BR121: 3790997 | BS121: =VLOOKUP(M121,#REF!,2,TRUE)*(BR121/1000000) ->  | BT121: =VLOOKUP(M121,#REF!,3,TRUE)*(BR121/1000000) -> 
A122: 2013-12-09 | B122: 2014 | C122: Active | D122: Voyageur Apartments | E122: 1630 Division Road | F122: Great Falls | G122: 59404 | H122: 47.521982 | I122: -111.311188 | J122: Cascade | K122: 0.09 | L122: General | M122: New Const | N122: Elderly +62 | O122: 38 | P122: 1 | Q122: 6475000 | R122: 6344866 | W122: 2016-06-21 | Y122: 2016-06-21 | Z122: 2030-06-21 | AA122: 31 | AB122: 2061-06-21 | AC122: Voyageur Apartments LP | AD122: Dan Billmark | AE122: 2550 University Ave Ste 330N | AF122: St. Paul | AG122: MN | AH122: 55114 | AJ122: 651-645-7271 | AU122: 38 | AX122: 24 | AY122: 14 | BR122: 8225300 | BS122: =VLOOKUP(M122,#REF!,2,TRUE)*(BR122/1000000) ->  | BT122: =VLOOKUP(M122,#REF!,3,TRUE)*(BR122/1000000) -> 
A123: 2013-12-09 | B123: 2014 | C123: Active | D123: Sunset Village | E123: 1019 6th Street SW | F123: Sidney | G123: 59270 | H123: 47.712127 | I123: -104.16939 | J123: Richland | K123: 0.09 | L123: General | M123: New Const | N123: Family | O123: 36 | P123: 3 | Q123: 5407410 | R123: 4809711 | W123: 2016-04-22 | Y123: 2016-04-22 | Z123: 2030-04-22 | AA123: 45 | AB123: 2075-04-22 | AC123: Sunset Village LLLP | AD123: Paul Groshart | AE123: 1032 6th Street SW | AF123: Sidney | AG123: MT | AH123: 59270 | AJ123: 406-433-1978 | AU123: 36 | AX123: 6 | AY123: 15 | AZ123: 12 | BA123: 3 | BR123: 6913024 | BS123: =VLOOKUP(M123,#REF!,2,TRUE)*(BR123/1000000) ->  | BT123: =VLOOKUP(M123,#REF!,3,TRUE)*(BR123/1000000) -> 
A124: 2013-12-09 | B124: 2014 | C124: Active | D124: Yellowstone Commons (Pearson Place) | E124: 1917A North Merrill Avenue | F124: Glendive | G124: 59330 | H124: 47.127435 | I124: -104.692582 | J124: Dawson | K124: 0.09 | L124: General | M124: New Const | N124: Family | O124: 28 | P124: 3 | Q124: 5000000 | R124: 4599080 | W124: 2015-05-28 | Y124: 2015-05-28 | Z124: 2029-05-28 | AA124: 46 | AB124: 2075-05-28 | AC124: Pearson Place LP | AD124: Alex Burkhalter | AE124: 5014 Elk Hills Ct | AF124: Missoula | AG124: MT | AH124: 59803 | AJ124: 406-203-1558 | AU124: 27 | AY124: 18 | AZ124: 9 | BR124: 5633554 | BS124: =VLOOKUP(M124,#REF!,2,TRUE)*(BR124/1000000) ->  | BT124: =VLOOKUP(M124,#REF!,3,TRUE)*(BR124/1000000) -> 
A125: 2013-12-09 | B125: 2014 | C125: Active | D125: Apsaalooke Warrior | E125: 1 Pretty Eagle Ave | F125: Crow Agency | G125: 59022 | H125: 45.61037 | I125: -107.46866 | J125: Big Horn | K125: 0.09 | L125: Tribal | M125: New Const | N125: Family | O125: 15 | P125: 1 | Q125: 2590000 | R125: 2046100 | W125: 2015-07-31 | Y125: 2015-07-31 | Z125: 2029-07-31 | AA125: 31 | AB125: 2060-07-31 | AC125: Apsaalooke Warrior Apartments, LLLP | AD125: Karl Little Owl | AE125: Po Box 99 | AF125: Crow Agency | AG125: MT | AH125: 59022 | AJ125: 406-638-3715 | AU125: 15 | AX125: 15 | BR125: 3226911 | BS125: =VLOOKUP(M125,#REF!,2,TRUE)*(BR125/1000000) ->  | BT125: =VLOOKUP(M125,#REF!,3,TRUE)*(BR125/1000000) -> 
A126: 2013-04-23 | B126: 2013 | C126: Active | D126: Aspen Place-Msla | E126: 2500 Great Northern Ave | F126: Missoula | G126: 59801 | J126: Missoula | K126: 0.09 | L126: General | M126: New Const | N126: Elderly +55 | O126: 36 | P126: 1 | Q126: 5750000 | R126: 4800770 | W126: 2014-10-21 | Y126: 2014-10-21 | Z126: 2028-10-21 | AA126: 15 | AB126: 2043-10-21 | AC126: Apsen Place LP | AD126: Alex Burkhalter | AE126: 1801 S Higgins Ave | AF126: Missoula | AG126: MT | AH126: 59801 | AJ126: 406-728-3710 | AU126: 36 | AX126: 24 | AY126: 12 | BR126: 5740436 | BS126: =VLOOKUP(M126,#REF!,2,TRUE)*(BR126/1000000) ->  | BT126: =VLOOKUP(M126,#REF!,3,TRUE)*(BR126/1000000) -> 
A127: 2011-12-10 | B127: 2013 | C127: Active | D127: River Rock Residences | E127: 810 Flat Rock Loop | F127: Helena | G127: 59601 | J127: Lewis and Clark | K127: 0.09 | L127: Non-Profit | M127: New Const | N127: Elderly +62 | O127: 32 | P127: 11 | Q127: 6162500 | R127: 4964327 | W127: 2013-08-08 | Y127: 2013-08-08 | Z127: 2027-08-08 | AA127: 31 | AB127: 2058-08-08 | AC127: ROCK MOUNTAIN DEVELOPMENT COUNCIL | AD127: GENE LEUWER | AE127: PO Box 1717 | AF127: HELENA | AG127: MT | AH127: 59623 | AJ127: 406-447-1680 | AU127: 32 | AX127: 27 | AY127: 5 | BR127: 6126608 | BS127: =VLOOKUP(M127,#REF!,2,TRUE)*(BR127/1000000) ->  | BT127: =VLOOKUP(M127,#REF!,3,TRUE)*(BR127/1000000) -> 
A128: 2012-04-19 | B128: 2013 | C128: Active | D128: Soroptimist Village | E128: 2400 13Th Ave. South | F128: Great Falls | G128: 59405 | J128: Cascade | K128: 0.09 | L128: General | M128: Acq/Rehab | N128: Elderly +55 | O128: 50 | P128: 3 | Q128: 5380000 | R128: 4914096 | W128: 2014-01-01 | Y128: 2014-01-01 | Z128: 2028-01-01 | AA128: 31 | AB128: 2059-01-01 | AC128: Soroptimist Village Inc | AD128: Christi Fisher | AE128: PO Box 498 | AF128: Great Falls | AG128: MT | AH128: 59403 | AJ128: 406-868-7514 | AU128: 56 | BR128: 6869041 | BS128: =VLOOKUP(M128,#REF!,2,TRUE)*(BR128/1000000) ->  | BT128: =VLOOKUP(M128,#REF!,3,TRUE)*(BR128/1000000) -> 
A129: 2012-04-19 | B129: 2013 | C129: Active | D129: Blackfeet Homes V | E129: 6000 John Rd | F129: Browning | G129: 59417 | J129: Glacier | K129: 0.09 | L129: Tribal | M129: New Const | N129: Family | O129: 24 | P129: 24 | Q129: 6312250 | R129: 5023534 | W129: 2014-03-01 | Y129: 2014-03-01 | Z129: 2028-03-01 | AA129: 31 | AB129: 2059-03-01 | AC129: Blackfeet Housing LP #5 | AD129: Chancy Kittson | AE129: 1200 SW Boundary PO box 449 | AF129: Browning | AG129: MT | AH129: 59417 | AJ129: 406-338-5031 | AU129: 24 | BR129: 5395068 | BS129: =VLOOKUP(M129,#REF!,2,TRUE)*(BR129/1000000) ->  | BT129: =VLOOKUP(M129,#REF!,3,TRUE)*(BR129/1000000) -> 
A130: 2013-04-22 | B130: 2013 | C130: Returned | D130: Wolf Point Village returned credits | E130: Tbd Btwn 3Rd & 5Th Streets | F130: Wolf Point | G130: 59201 | J130: Roosevelt | K130: 0.09 | L130: General | M130: New Const | N130: Family | Q130: 4035990 | Y130: 00:00:00 | AC130: Wolf Point Village LLP | AD130: Jonathan Reed | AE130: 636 Echo Lake | AF130: Colorado Springs | AG130: CO | AH130: 80904 | AJ130: 505-250-7570 | BR130: 4254810 | BS130: =VLOOKUP(M130,#REF!,2,TRUE)*(BR130/1000000) ->  | BT130: =VLOOKUP(M130,#REF!,3,TRUE)*(BR130/1000000) -> 
A131: 2013-04-22 | B131: 2013 | C131: Active | D131: Fort Peck Sustainable Village | E131: 1005 Park Ave (Near Here Scattered Site) | F131: Poplar | G131: 59255 | J131: Roosevelt | K131: 0.09 | L131: Tribal | M131: New Const | N131: Family | O131: 19 | P131: 19 | Q131: 6031304 | R131: 5040283 | W131: 2015-09-30 | Y131: 2015-09-30 | Z131: 2029-09-30 | AA131: 31 | AB131: =DATE(YEAR(Z131)+AA131,MONTH(Z131),DAY(Z131)) -> 2060-09-30 | AC131: Interated Solutions LP #1 | AD131: Thomas J. Anketell III | AE131: PO Box 1582 | AF131: Poplar | AG131: MT | AH131: 59255 | AJ131: 406-768-2335 | AU131: 20 | BR131: 6031304 | BS131: =VLOOKUP(M131,#REF!,2,TRUE)*(BR131/1000000) ->  | BT131: =VLOOKUP(M131,#REF!,3,TRUE)*(BR131/1000000) -> 
A132: 2013-04-22 | B132: 2013 | C132: Active | D132: Hillview Apartments | E132: 1280 10Th Street West | F132: Havre | G132: 59501 | J132: Hill | K132: 0.09 | L132: General | M132: Acq/Rehab | N132: Family | O132: 52 | P132: 8 | Q132: 6250000 | R132: 5218228 | W132: 2013-12-18 | Y132: 2013-12-18 | Z132: 2027-12-18 | AA132: 31 | AB132: 2058-12-18 | AC132: MT Preservation HV, LLLP | AD132: Greg Dunfield | AE132: 1601 Second Ave Ste 1080 | AF132: Seattle | AG132: WA | AH132: 98112 | AJ132: 206-745-3699 | AU132: 52 | AX132: 8 | AY132: 8 | AZ132: 24 | BA132: 12 | BR132: 7209088 | BS132: =VLOOKUP(M132,#REF!,2,TRUE)*(BR132/1000000) ->  | BT132: =VLOOKUP(M132,#REF!,3,TRUE)*(BR132/1000000) -> 
A133: 2013-04-22 | B133: 2013 | C133: Active | D133: Buffalo Grass | E133: 201 2nd Street NE | F133: Cut Bank | G133: 59427 | H133: 48.63833 | I133: -112.32511 | J133: Glacier | K133: 0.09 | L133: Non-profit | M133: New Const | N133: Family | O133: 14 | P133: 2 | Q133: 2590000 | R133: 2097900 | W133: 2014-05-27 | Y133: 2014-05-27 | Z133: 2028-05-27 | AA133: 31 | AB133: 2059-05-27 | AC133: Buffalo Grass Apts, LLLP | AD133: Brad Elg | AE133: 210 W Mallard Dr, Ste A | AF133: Boise | AG133: ID | AH133: 83706 | AJ133: 208-947-7050 | AU133: 14 | AY133: 9 | AZ133: 5 | BR133: 2459531 | BS133: =VLOOKUP(M133,#REF!,2,TRUE)*(BR133/1000000) ->  | BT133: =VLOOKUP(M133,#REF!,3,TRUE)*(BR133/1000000) -> 
A134: 2012-04-19 | B134: 2012 | C134: Active | D134: Depot Place | E134: 219 Center Street | F134: Kalispell | G134: 59901 | J134: Flathead | K134: 0.09 | L134: General | M134: New Const | N134: Elderly +55 | O134: 40 | P134: 1 | Q134: 6080000 | W134: 2013-04-26 | Y134: 2013-04-26 | Z134: 2027-04-26 | AA134: 31 | AB134: 2058-04-26 | AC134: Center Street LP | AD134: Alex Burhalter | AE134: 619 SW Higgins Ave Ste E | AF134: Missoula | AG134: MT | AH134: 59803 | AJ134: 406-251-5076 | AU134: 40 | BR134: 5320936 | BS134: =VLOOKUP(M134,#REF!,2,TRUE)*(BR134/1000000) ->  | BT134: =VLOOKUP(M134,#REF!,3,TRUE)*(BR134/1000000) -> 
A135: 2012-04-19 | B135: 2012 | C135: Active | D135: Parkview Village | E135: 221 5Th Street | F135: Sidney | G135: 59270 | J135: Richland | K135: 0.09 | L135: Non-profit | M135: New Const | N135: Family | O135: 20 | P135: 1 | Q135: 4030130 | W135: 2013-09-30 | Y135: 2013-09-30 | Z135: 2027-09-30 | AA135: 31 | AB135: 2058-09-30 | AC135: Parview Village LLLP | AD135: Paul Groshart | AE135: 1032 6th St SW | AF135: Sidney | AG135: Mt | AH135: 59270 | AJ135: 406-433-1978 X3 | AU135: 20 | BR135: 3444557 | BS135: =VLOOKUP(M135,#REF!,2,TRUE)*(BR135/1000000) ->  | BT135: =VLOOKUP(M135,#REF!,3,TRUE)*(BR135/1000000) -> 
A136: 2012-04-19 | B136: 2012 | C136: Active | D136: Sweet Grass Apartments | E136: 724 St. Mary Ave. | F136: Shelby | G136: 59474 | J136: Toole | K136: 0.09 | L136: Small | M136: New Const | N136: Family | O136: 12 | P136: 2 | Q136: 2000000 | W136: 2013-06-03 | Y136: 2013-06-03 | Z136: 2027-06-03 | AA136: 31 | AB136: 2058-06-03 | AC136: Sweet grass Apts LP | AD136: Brad Elg | AE136: 210 W Mallard Dr Ste A | AF136: Boise | AG136: ID | AH136: 83706 | AJ136: 208-947-7050 | AU136: 12 | BR136: 1758655 | BS136: =VLOOKUP(M136,#REF!,2,TRUE)*(BR136/1000000) ->  | BT136: =VLOOKUP(M136,#REF!,3,TRUE)*(BR136/1000000) -> 
A137: 2012-04-19 | B137: 2012 | C137: Active | D137: Haggerty Lane Apartments | E137: 1992 Cottage | F137: Bozeman | G137: 59715 | J137: Gallatin | K137: 0.09 | L137: Small | M137: New Const | N137: Family | O137: 11 | P137: 3 | Q137: 2000000 | W137: 2013-11-01 | Y137: 2013-11-01 | Z137: 2027-11-01 | AA137: 40 | AB137: 2067-11-01 | AC137: Farmhouse Partners- Haggerty LP | AD137: Dab Dabney | AE137: 2555 W. College Suite B | AF137: Bozeman | AG137: MT | AH137: 59718 | AJ137: 406-586-1166 | AU137: 11 | BR137: 2186497 | BS137: =VLOOKUP(M137,#REF!,2,TRUE)*(BR137/1000000) ->  | BT137: =VLOOKUP(M137,#REF!,3,TRUE)*(BR137/1000000) -> 
A138: 2012-04-19 | B138: 2012 | C138: Active | D138: Silver Bow Village 4% | E138: 910 Evans Ave | F138: Butte | G138: 59701 | H138: 45.98465 | I138: -112.52417 | J138: Silver Bow | K138: 0.04 | L138: General | M138: Acq/Rehab | N138: Family | O138: 60 | P138: 8 | Q138: 1707950 | S138: =(857000+4032000+850713)*0.6 -> 3443827.8 | W138: 2012-09-15 | Y138: 2012-09-15 | Z138: 2026-09-15 | AA138: 31 | AB138: 2057-09-15 | AC138: GMD Development LLC | AD138: Greg Dunfield | AE138: 1601 Second Ave Ste 1080 | AF138: Seattle | AG138: WA | AH138: 98112 | AJ138: 206-745-3699 | AU138: 60 | BR138: 5316022 | BS138: =VLOOKUP(M138,#REF!,2,TRUE)*(BR138/1000000) ->  | BT138: =VLOOKUP(M138,#REF!,3,TRUE)*(BR138/1000000) -> 
A139: 2012-04-19 | B139: 2012 | C139: Active | D139: Rainbow House 4% | E139: 626 13Th Ave | F139: Great Falls | G139: 59405 | H139: 47.49055 | I139: -111.29602 | J139: Cascade | K139: 0.04 | L139: General | M139: Acq/Rehab | N139: Elderly +62 | O139: 40 | P139: 1 | Q139: 709480 | S139: =(857000+4032000+850713)*0.4 -> 2295885.2 | W139: 2013-01-01 | Y139: 2013-01-01 | Z139: 2027-01-01 | AA139: 31 | AB139: 2058-01-01 | AC139: GMD Development LLC | AD139: Greg Dunfield | AE139: 1601 Second Ave Ste 1080 | AF139: Seattle | AG139: WA | AH139: 98112 | AJ139: 206-745-3699 | AU139: 40 | BR139: 2391300 | BS139: =VLOOKUP(M139,#REF!,2,TRUE)*(BR139/1000000) ->  | BT139: =VLOOKUP(M139,#REF!,3,TRUE)*(BR139/1000000) -> 
A140: 2011-12-10 | B140: 2011 | C140: Active | D140: Two Rivers Place | E140: 343 Mt Hwy 135 | F140: St Regis | G140: 59866 | J140: Mineral | K140: 0.09 | L140: General | M140: New Const | N140: Family | O140: 8 | P140: 1 | Q140: 1189130 | W140: 2012-11-28 | Y140: 2012-11-28 | Z140: 2026-11-28 | AA140: 31 | AB140: 2057-11-28 | AC140: TWO RIVERS PLACE LP | AD140: JIM MORTON | AE140: 1801 S HIGGINS | AF140: MISSOULA | AG140: MT | AH140: 59801 | AJ140: 406-728-3710 | AU140: 8 | AX140: 2 | AY140: 2 | AZ140: 4 | BR140: 114058 | BS140: =VLOOKUP(M140,#REF!,2,TRUE)*(BR140/1000000) ->  | BT140: =VLOOKUP(M140,#REF!,3,TRUE)*(BR140/1000000) -> 
A141: 2011-12-10 | B141: 2011 | C141: Active | D141: Cascade Ridge Senior Living | E141: 3001 15Th Ave S | F141: Great Falls | G141: 59401 | J141: Cascade | K141: 0.09 | L141: General | M141: New Const | N141: Elderly +62 | O141: 40 | P141: 1 | Q141: 6045270 | W141: 2012-09-28 | Y141: 2012-09-28 | Z141: 2026-09-28 | AA141: 31 | AB141: 2057-09-28 | AC141: BENEFIS HEALTH SYSTEM/MOUNTAIN PLAINS EQUITY | AD141: DOUGLAS DAVENPORT | AE141: 1101 26TH ST S | AF141: GREAT FALLS | AG141: MT | AH141: 59401 | AJ141: 406-455-4732 | AU141: 40 | AX141: 20 | AY141: 19 | BE141: 1 | BR141: 5502169 | BS141: =VLOOKUP(M141,#REF!,2,TRUE)*(BR141/1000000) ->  | BT141: =VLOOKUP(M141,#REF!,3,TRUE)*(BR141/1000000) -> 
A142: 2011-12-10 | B142: 2011 | C142: Active | D142: The Palace Apartments | E142: 149 W. Broadway | F142: Missoula | G142: 59801 | J142: Missoula | K142: 0.09 | L142: General | M142: Acq/Rehab | N142: Family | O142: 60 | P142: 1 | Q142: 6162500 | W142: 2013-01-01 | Y142: 2013-01-01 | Z142: 2027-01-01 | AA142: 31 | AB142: 2058-01-01 | AC142: MISSOULA HOUSING AUTHORITY | AD142: LORI DAVIDSON | AE142: 1235 34TH ST | AF142: MISSOULA | AG142: MT | AH142: 59801 | AJ142: 406-549-4113 X105 | AU142: 60 | AW142: 5 | AX142: 47 | AY142: 8 | BR142: 7338509 | BS142: =VLOOKUP(M142,#REF!,2,TRUE)*(BR142/1000000) ->  | BT142: =VLOOKUP(M142,#REF!,3,TRUE)*(BR142/1000000) -> 
A143: 2011-12-10 | B143: 2011 | C143: Active | D143: Fort Peck Homes II | E143: Poplar/Wolf Point | F143: Poplar/Wolf Point | G143: 59225 | J143: Roosevelt | K143: 0.09 | L143: Tribal | M143: New Const | N143: Family | O143: 24 | P143: 24 | Q143: 6144010 | R143: 4730426 | W143: 2013-02-01 | Y143: 2013-02-01 | Z143: 2027-02-01 | AA143: 31 | AB143: 2058-02-01 | AC143: FORT PECK HOMES 1 | AD143: IVA GRAINGER | AE143: 503 6th Ave E, PO Box 667 | AF143: POPLAR | AG143: MT | AH143: 59225 | AJ143: 406-768-5176 | AU143: 24 | AZ143: 15 | BA143: 9 | BR143: 6160527 | BS143: =VLOOKUP(M143,#REF!,2,TRUE)*(BR143/1000000) ->  | BT143: =VLOOKUP(M143,#REF!,3,TRUE)*(BR143/1000000) -> 
A144: 2010-12-08 | B144: 2010 | C144: Active | D144: Cottage Park (Sentinal Village Apartments) | E144: 1111 Mcdonald Ave | F144: Missoula | G144: 59801 | J144: Missoula | K144: 0.09 | L144: Acq Rehab | M144: Acq/Rehab | N144: Family | O144: 60 | P144: 5 | Q144: 5848280 | W144: 2010-12-23 | Y144: 2010-12-23 | Z144: 2024-12-23 | AA144: 35 | AB144: 2059-12-23 | AC144: Morena Development | AD144: John Grady | AE144: 1915 Morena Blvd | AF144: San Diego | AG144: CA | AH144: 95110 | AJ144: 619-276-6271 | AU144: 60 | AX144: 12 | AY144: 36 | AZ144: 12 | BR144: 5789502 | BS144: =VLOOKUP(M144,#REF!,2,TRUE)*(BR144/1000000) ->  | BT144: =VLOOKUP(M144,#REF!,3,TRUE)*(BR144/1000000) -> 
A145: 2010-12-08 | B145: 2010 | C145: Returned | D145: Aspen Place-return credits | E145: 2500 Great Northern Ave | F145: Missoula | G145: 59801 | J145: Missoula | K145: 0.09 | L145: General | M145: New Const | N145: Elderly +55 | Y145: 00:00:00 | AC145: Sparrow Development | AD145: Tim German | AE145: 619 SW Higgins Ave Suite E | AF145: Missoula | AG145: MT | AH145: 59803 | AJ145: 406-251-5076 | AU145: 36 | AX145: 25 | AY145: 10 | BE145: 1 | BS145: =VLOOKUP(M145,#REF!,2,TRUE)*(BR145/1000000) ->  | BT145: =VLOOKUP(M145,#REF!,3,TRUE)*(BR145/1000000) -> 
A146: 2010-12-08 | B146: 2010 | C146: Active | D146: Solstice | E146: 1513 Liberty Lane | F146: Missoula | G146: 59801 | J146: Missoula | K146: 0.09 | L146: Non-Profit | M146: New Const | N146: Family | Q146: 5000000 | W146: 2011-10-31 | Y146: 2011-10-31 | Z146: 2025-10-31 | AA146: 31 | AB146: =DATE(YEAR(Z146)+AA146,MONTH(Z146),DAY(Z146)) -> 2056-10-31 | AC146: homeWORD Inc | AD146: Heather McMilan | AE146: 127 N. Higgins #307 | AF146: Missoula | AG146: MT | AH146: 59802 | AJ146: 406-532-4663 | BR146: 8200589 | BS146: =VLOOKUP(M146,#REF!,2,TRUE)*(BR146/1000000) ->  | BT146: =VLOOKUP(M146,#REF!,3,TRUE)*(BR146/1000000) -> 
A147: 2010-12-08 | B147: 2010 | C147: Active | D147: Meadowlands Apartments | E147: 4034 Elizabeth Warren | F147: Butte | G147: 59701 | J147: Silver Bow | K147: 0.09 | L147: General | M147: New Const | N147: Elderly +62 | O147: 48 | P147: 1 | Q147: 6069250 | W147: 2011-09-28 | Y147: 2011-09-28 | Z147: 2025-09-28 | AA147: 31 | AB147: 2056-09-28 | AC147: City & Co of Butte-Silver Bow | AD147: Karen Byrnes | AE147: 155 W Granite St | AF147: Butte | AG147: MT | AH147: 59701 | AJ147: 406-497-6220 | AU147: 48 | AX147: 32 | AY147: 15 | BE147: 1 | BR147: 6714311 | BS147: =VLOOKUP(M147,#REF!,2,TRUE)*(BR147/1000000) ->  | BT147: =VLOOKUP(M147,#REF!,3,TRUE)*(BR147/1000000) -> 
A148: 2010-12-08 | B148: 2010 | C148: Active | D148: Buffalo Court | E148: 2231 5Th Ave | F148: Havre | G148: 59501 | J148: Hill | K148: 0.09 | L148: Non-Profit | M148: New Const | N148: Elderly +55 | O148: 20 | P148: 4 | Q148: 4850000 | W148: 2012-08-14 | Y148: 2012-08-14 | Z148: 2026-08-14 | AA148: 31 | AB148: 2057-08-14 | AC148: Dist IV HRDC | AD148: Karen Thomas | AE148: 2229 5th | AF148: Havre | AG148: MT | AH148: 59501 | AJ148: 406-265-6743 | AU148: 20 | AX148: 16 | AY148: 4 | BR148: 2872069 | BS148: =VLOOKUP(M148,#REF!,2,TRUE)*(BR148/1000000) ->  | BT148: =VLOOKUP(M148,#REF!,3,TRUE)*(BR148/1000000) -> 
A149: 2010-12-08 | B149: 2010 | C149: Active | D149: Lolo Vista Apartments | E149: 11851 Lolo Vista Dr | F149: Lolo | G149: 59847 | J149: Missoula | K149: 0.09 | L149: General | M149: New Const | N149: Family | O149: 40 | P149: 2 | Q149: 6075000 | W149: 2011-07-28 | Y149: 2011-07-28 | Z149: 2025-07-28 | AA149: 31 | AB149: 2056-07-28 | AC149: Summit Housing Group | AD149: Nate Richmond | AE149: 283 W Front St Suite 1 | AF149: Missoula | AG149: MT | AH149: 59802 | AJ149: 406-541-0999 | AU149: 40 | AY149: 20 | AZ149: 20 | BR149: 6222845 | BS149: =VLOOKUP(M149,#REF!,2,TRUE)*(BR149/1000000) ->  | BT149: =VLOOKUP(M149,#REF!,3,TRUE)*(BR149/1000000) -> 
B150: 2009 | C150: Active | D150: Big Boulder | E150: 501 E 4Th Avenue | F150: Boulder | G150: 59632 | J150: Jefferson | K150: TCAP/Exchanage | L150: Non-Profit | M150: New Const | N150: Family | O150: 36 | P150: 2 | Q150: 10000 | W150: 2011-03-30 | Y150: 2011-03-30 | Z150: 2025-03-30 | AA150: 31 | AB150: 2056-03-30 | AC150: Meagher County Senior Center | AD150: Beth Hunt | AE150: 101 1st Ave SE | AF150: WHT SULPHUR SPRNG | AG150: MT | AH150: 59645 | AJ150: 406-547-3651 | AU150: 10 | AY150: 8 | AZ150: 2 | BR150: 2872069 | BS150: =VLOOKUP(M150,#REF!,2,TRUE)*(BR150/1000000) ->  | BT150: =VLOOKUP(M150,#REF!,3,TRUE)*(BR150/1000000) -> 
A151: 2009-12-10 | B151: 2009 | C151: Active | D151: Solstice | E151: 1535 Liberty Lane | F151: Missoula | G151: 59808 | J151: Missoula | K151: Exchange | L151: non-profit | M151: New Const | N151: Family | O151: 34 | P151: 1 | Q151: 0 | W151: 2011-10-31 | Y151: 2011-10-31 | Z151: 2025-10-31 | AA151: 31 | AB151: 2056-10-31 | AC151: ROCK MOUNTAIN DEVELOPMENT COUNCIL | AD151: GENE LEUWER | AE151: Box 1717 | AF151: HELENA | AG151: MT | AH151: 59624-1717 | AJ151: 406-447-1680 | AU151: 36 | AX151: 18 | AY151: 18 | BR151: 7691408 | BS151: =VLOOKUP(M151,#REF!,2,TRUE)*(BR151/1000000) ->  | BT151: =VLOOKUP(M151,#REF!,3,TRUE)*(BR151/1000000) -> 
A152: 2009-12-10 | B152: 2009 | C152: Active | D152: Ouellette Place | E152: 405 St Joseph Dr | F152: Lewistown | G152: 59457 | H152: 47.06921 | I152: -109.41953 | J152: Fergus | K152: Exchange | L152: Non-Profit | M152: New Const | N152: Family | O152: 24 | P152: 3 | Q152: 0 | W152: 2010-09-15 | Y152: 2010-09-15 | Z152: 2024-09-15 | AA152: 31 | AB152: 2055-09-15 | AC152: SOLSTICE DEVELOPMENT LP | AD152: ANDREA DAVIS | AE152: 127 North Higgins Ave Ste 307 | AF152: MISSOULA | AG152: MT | AH152: 59802 | AJ152: 406-532-5663 | AU152: 34 | AW152: 4 | AX152: 19 | AY152: 11 | BR152: 8200558 | BS152: =VLOOKUP(M152,#REF!,2,TRUE)*(BR152/1000000) ->  | BT152: =VLOOKUP(M152,#REF!,3,TRUE)*(BR152/1000000) -> 
A153: 2009-12-10 | B153: 2009 | C153: Active | D153: Franklin School | E153: 820 First Avenue Sw | F153: Great Falls | G153: 59401 | J153: Cascade | K153: Exchange | L153: Acq/Rehab | M153: Acq/Rehab | N153: Family | O153: 40 | P153: 2 | Q153: 0 | W153: 2010-12-31 | X153: 2010-12-10 | Y153: 2010-12-31 | Z153: 2024-12-31 | AA153: 31 | AB153: 2055-12-31 | AC153: OUELLETTE PLACE LP | AD153: ANDREA DAVIS | AE153: 127 North Higgins Ave Ste 307 | AF153: MISSOULA | AG153: MT | AH153: 59802 | AJ153: 406-532-4663 | AU153: 24 | AX153: 4 | AY153: 14 | AZ153: 6 | BR153: 5432616 | BS153: =VLOOKUP(M153,#REF!,2,TRUE)*(BR153/1000000) ->  | BT153: =VLOOKUP(M153,#REF!,3,TRUE)*(BR153/1000000) -> 
A154: 2009-12-10 | B154: 2009 | C154: Active | D154: Mountain View Apartments - Butte | E154: 202 Ohio; 241 Curtis | F154: Butte | G154: 59701 | J154: Silver Bow | K154: Exchange | L154: Small | M154: New Const | N154: Family | O154: 11 | P154: 4 | Q154: 0 | W154: 2010-12-02 | Y154: 2010-12-02 | Z154: 2024-12-02 | AA154: 31 | AB154: 2055-12-02 | AC154: Affiliated Developers & Tamarack Property Mgmt Co | AD154: Matthew C Wick | AE154: 20245 W 12 Mile Rd Ste 120 | AF154: Southfield | AG154: MI | AH154: 48076 | AJ154: 248-721-2195 | AU154: 40 | AZ154: 40 | BR154: 3976200 | BS154: =VLOOKUP(M154,#REF!,2,TRUE)*(BR154/1000000) ->  | BT154: =VLOOKUP(M154,#REF!,3,TRUE)*(BR154/1000000) -> 
A155: 2009-12-10 | B155: 2009 | C155: Active | D155: Whitetail Run Apartments | E155: 335 Sioux Lane | F155: Billings | G155: 59101 | J155: Yellowstone | K155: TCAP | L155: General | M155: New Const | N155: Family | O155: 32 | P155: 8 | Q155: 10000 | W155: 2011-05-27 | Y155: 2011-05-27 | Z155: 2025-05-27 | AA155: 31 | AB155: 2056-05-27 | AC155: Butte Addordable Housing nc | AD155: Revonda Stordahl | AE155: 220 Curtis Street | AF155: Butte | AG155: MT | AH155: 59701 | AJ155: 406-782-6461 | AU155: 11 | AY155: 9 | AZ155: 2 | BR155: 2012267 | BS155: =VLOOKUP(M155,#REF!,2,TRUE)*(BR155/1000000) ->  | BT155: =VLOOKUP(M155,#REF!,3,TRUE)*(BR155/1000000) -> 
A156: 2009-12-10 | B156: 2009 | C156: Active | D156: Spring Creek Apartments 2 | E156: 10 Apple Way Drive | F156: Kalispell | G156: 59901 | J156: Flathead | K156: Exchange Partial | L156: General | M156: New Const | N156: Family | O156: 33 | P156: 4 | Q156: 6617500 | W156: 2011-03-11 | Y156: 2011-03-11 | Z156: 2025-03-11 | AA156: 15 | AB156: 2040-03-11 | AC156: Spring Creek Apts 2 LP | AD156: TIM GERMAN | AE156: 619 SW Higgins, Suite E | AF156: MISSOULA | AG156: MT | AH156: 59803 | AJ156: 406-245-6391 | AU156: 33 | AY156: 20 | AZ156: 10 | BA156: 2 | BE156: 1 | BR156: 7277918 | BS156: =VLOOKUP(M156,#REF!,2,TRUE)*(BR156/1000000) ->  | BT156: =VLOOKUP(M156,#REF!,3,TRUE)*(BR156/1000000) -> 
A157: 2009-12-10 | B157: 2009 | C157: Active | D157: Superior Commons | E157: 310 Second Ave E | F157: Superior | G157: 59872 | J157: Mineral | K157: Exchange Partial | L157: Non-Profit | M157: New Const | N157: Family | O157: 24 | P157: 4 | Q157: 4662500 | W157: 2011-03-04 | Y157: 2011-03-04 | Z157: 2025-03-04 | AA157: 35 | AB157: 2060-03-04 | AC157: Sparrow Development Group | AD157: Tim German | AE157: 619 SW Higgins, Ave Ste E | AF157: Missoula | AG157: MT | AH157: 59803 | AJ157: 406-251-5076 | AU157: 24 | AY157: 12 | AZ157: 12 | BR157: 6528589 | BS157: =VLOOKUP(M157,#REF!,2,TRUE)*(BR157/1000000) ->  | BT157: =VLOOKUP(M157,#REF!,3,TRUE)*(BR157/1000000) -> 
A158: 2009-12-10 | B158: 2008 | C158: Active | D158: Treasure State Plaza Apartments 4% | E158: 600 Liberty Street | F158: Kalispell | G158: 59901 | J158: Flathead | K158: 0.04 | L158: General | M158: Acq/Rehab | N158: Elderly | O158: 38 | P158: 1 | Q158: 1179190 | W158: 2009-01-01 | Y158: 2009-01-01 | Z158: 2023-01-01 | AA158: 25 | AB158: 2048-01-01 | AC158: Dist XI Human Resource Council, Inc | AD158: Jim Morton | AE158: 1801 South Higgins | AF158: Missoula | AG158: MT | AH158: 59801 | AJ158: 406-728-3710 | AU158: 24 | AY158: 12 | AZ158: 12 | BR158: 4729827 | BS158: =VLOOKUP(M158,#REF!,2,TRUE)*(BR158/1000000) ->  | BT158: =VLOOKUP(M158,#REF!,3,TRUE)*(BR158/1000000) -> 
B159: 2008 | C159: Active | D159: Glacier Manor Apartments 4% | E159: 506 1St Ave W | F159: Kalispell | G159: 59901 | J159: Flathead | K159: 0.04 | L159: General | M159: Acq/Rehab | N159: Elderly | O159: 61 | P159: 1 | Q159: 1830000 | W159: 2009-01-01 | Y159: 2009-01-01 | Z159: 2023-01-01 | AA159: 25 | AB159: 2048-01-01 | AC159: MONFRIC MANAGEMENT COMPANY | AD159: JOHN GRADY | AE159: 1915 MORENA BOULEVARD | AF159: SAN DIEGO | AG159: CA | AH159: 92110 | AJ159: 619-941-2054 | BR159: 3165057 | BS159: =VLOOKUP(M159,#REF!,2,TRUE)*(BR159/1000000) ->  | BT159: =VLOOKUP(M159,#REF!,3,TRUE)*(BR159/1000000) -> 
B160: 2008 | C160: Terminated | D160: Makoshika Estates (see orig credits 2007) (out of program) | E160: 660 Grant | F160: Glendive | G160: 59330 | J160: Dawson | K160: 0.09 | L160: Non-Profit | M160: New Const | N160: Elderly | O160: 18 | P160: 1 | Q160: 165500 | W160: 2009-01-01 | Y160: 2009-01-01 | AC160: MONFRIC MANAGEMENT COMPANY | AD160: JOHN GRADY | AE160: 1915 MORENA BOULEVARD | AF160: SAN DIEGO | AG160: CA | AH160: 92110 | BR160: 4737933 | BS160: =VLOOKUP(M160,#REF!,2,TRUE)*(BR160/1000000) ->  | BT160: =VLOOKUP(M160,#REF!,3,TRUE)*(BR160/1000000) -> 
B161: 2008 | C161: Active | D161: Garden District | E161: 119 S. Russell St | F161: Missoula | G161: 59801 | J161: Missoula | K161: 0.09 | L161: General | M161: New Const | N161: Family | O161: 37 | P161: 3 | Q161: 4740710 | W161: 2009-12-13 | Y161: 2009-12-13 | Z161: 2023-12-13 | AA161: 31 | AB161: =DATE(YEAR(Z161)+AA161,MONTH(Z161),DAY(Z161)) -> 2054-12-13 | AC161: Dawson Co Econimic Development Council | AD161: Gene Buxel | AE161: 313 W. Valentine, PO Box 173 | AF161: GLENDIVE | AG161: MT | AH161: 59330 | AJ161: 406-377-7792 FAX406-377-3762 | BR161: 2287195 | BS161: =VLOOKUP(M161,#REF!,2,TRUE)*(BR161/1000000) ->  | BT161: =VLOOKUP(M161,#REF!,3,TRUE)*(BR161/1000000) -> 
B162: 2008 | C162: Active | D162: Mountain View Apartments III | E162: 251 Stonegate Dr | F162: Hamilton | G162: 59840 | J162: Ravalli | K162: 0.09 | L162: General | M162: New Const | N162: Family | O162: 46 | P162: 3 | Q162: 5812500 | W162: 2009-06-29 | Y162: 2009-06-29 | Z162: 2023-06-29 | AA162: 31 | AB162: =DATE(YEAR(Z162)+AA162,MONTH(Z162),DAY(Z162)) -> 2054-06-29 | AC162: Missoula Housing Authority | AD162: Andrea Davis | AE162: 1235 34th St | AF162: MISSOULA | AG162: MT | AH162: 59801 | AJ162: 406-549-4113 FAX 406-549-6406 | AU162: 37 | AX162: 14 | AY162: 17 | AZ162: 5 | BE162: 1 | BR162: 6222845 | BS162: =VLOOKUP(M162,#REF!,2,TRUE)*(BR162/1000000) ->  | BT162: =VLOOKUP(M162,#REF!,3,TRUE)*(BR162/1000000) -> 
B163: 2008 | C163: Active | D163: Spring Creek Apartments | E163: 10 Apple Way Drive | F163: Kalispell | G163: 59901 | J163: Flathead | K163: 0.09 | L163: General | M163: New Const | N163: Family | O163: 34 | P163: 3 | Q163: 5800000 | W163: 2009-07-24 | Y163: 2009-07-24 | Z163: 2023-07-24 | AA163: 31 | AB163: =DATE(YEAR(Z163)+AA163,MONTH(Z163),DAY(Z163)) -> 2054-07-24 | AC163: MOUNTAIN VIEW III LP | AD163: NATE RICHMOND | AE163: 238 W FRONT ST STE 1 | AF163: MISSOULA | AG163: MT | AH163: 59802 | AJ163: 406-541-0999 FAX 406-541-0997 | AU163: 46 | AY163: 29 | AZ163: 17 | BR163: 6114912 | BS163: =VLOOKUP(M163,#REF!,2,TRUE)*(BR163/1000000) ->  | BT163: =VLOOKUP(M163,#REF!,3,TRUE)*(BR163/1000000) -> 
B164: 2008 | C164: Active | D164: Shoulderblade Complex | E164: St Rte 39 N. Of Lame Deer | F164: Lame Deer | G164: 59043 | J164: Rosebud | K164: 0.09 | L164: Tribal | M164: Acq/Rehab | N164: Elderly | O164: 35 | P164: 1 | Q164: 3948120 | W164: 2010-01-19 | Y164: 2010-01-19 | Z164: 2024-01-19 | AA164: 31 | AB164: =DATE(YEAR(Z164)+AA164,MONTH(Z164),DAY(Z164)) -> 2055-01-19 | AC164: SPRING CREEK I LP | AD164: TIM GERMAN | AE164: 619 SW Higgins, Suite E | AF164: MISSOULA | AG164: MT | AH164: 59803 | AJ164: 406-251-5076 FAX 406-541-4944 | AU164: 34 | AY164: 9 | AZ164: 24 | BE164: 1 | BR164: 6350661 | BS164: =VLOOKUP(M164,#REF!,2,TRUE)*(BR164/1000000) ->  | BT164: =VLOOKUP(M164,#REF!,3,TRUE)*(BR164/1000000) -> 
B165: 2009 | C165: Active | D165: Castle Mountain Apartments | E165: 4Th Ave South | F165: White Sulphur Springs | G165: 59645 | J165: Meagher | K165: 0.09 | L165: Non-Profit | M165: New Const | N165: Elderly | O165: 10 | P165: 2 | Q165: 237317 | W165: 2010-11-03 | Y165: 2010-11-03 | Z165: 2024-11-03 | AA165: 31 | AB165: =DATE(YEAR(Z165)+AA165,MONTH(Z165),DAY(Z165)) -> 2055-11-03 | AC165: N CHEYENNE SHOULDERBLADE LP #1 | AD165: Lafe Haugen | AE165: Hwy 39, PO Box 327 | AF165: LAME DEER | AG165: MT | AH165: 59043 | AJ165: 406-477-6419 FAX 406-477-6229 | AU165: 35 | AX165: 20 | AY165: 14 | BE165: 1 | BR165: 4668552 | BS165: =VLOOKUP(M165,#REF!,2,TRUE)*(BR165/1000000) ->  | BT165: =VLOOKUP(M165,#REF!,3,TRUE)*(BR165/1000000) -> 
B166: 2008 | C166: Returned | D166: Ouellette Place returned credits | E166: Tba Fountain Terrace Subdivision | F166: Lewistown | G166: 59457 | J166: Fergus | K166: 0.09 | L166: Non-Profit | M166: New/Acq/Rehab | N166: Family | Y166: 00:00:00 | AC166: Lewistown Community Development Corp | AD166: Duane Ferdinand | AE166: PO Box 716 | AF166: LEWISTOWN | AG166: MT | AH166: 59457 | AJ166: 406-535-1775 FAX 406-538-3323 | BS166: =VLOOKUP(M166,#REF!,2,TRUE)*(BR166/1000000) ->  | BT166: =VLOOKUP(M166,#REF!,3,TRUE)*(BR166/1000000) -> 
A167: 2009-04-22 | B167: 2007 | C167: resynd 2023 | D167: South Forty Apartments 4% | E167: 769 Fallow Lane | F167: Billings | G167: 59101 | J167: Yellowstone | K167: 0.04 | L167: General | M167: Acq/Rehab | N167: Elderly | O167: 101 | P167: 1 | Q167: 2646400 | W167: 2007-09-12 | Y167: =IF(W167>X167,W167,X167) -> 2007-09-12 | Z167: =DATE(YEAR(Y167)+14,MONTH(Y167),DAY(Y167)) -> 2021-09-12 | AA167: 31 | AB167: =DATE(YEAR(Z167)+AA167,MONTH(Z167),DAY(Z167)) -> 2052-09-12 | AC167: South Forty Partners LP | AD167: GREG DUNFIELD | AE167: 1700 7TH AVE STE 2075 | AF167: SEATTLE | AG167: WA | AH167: 98101 | AJ167: 206-832-1308 | AU167: 101 | AX167: 100 | BE167: 1 | BR167: 7390267 | BS167: =VLOOKUP(M167,#REF!,2,TRUE)*(BR167/1000000) ->  | BT167: =VLOOKUP(M167,#REF!,3,TRUE)*(BR167/1000000) -> 
B168: 2007 | C168: Active | D168: Fort Peck I | E168: Poplar, Brocton, Wolfpoint | F168: Poplar | G168: 59255 | J168: Roosevelt | K168: 0.09 | L168: Tribal | M168: Acq/Rehab | N168: Family | O168: 23 | P168: 23 | Q168: 2657390 | W168: 2008-10-01 | Y168: 2008-10-01 | Z168: 2022-10-01 | AA168: 16 | AB168: =DATE(YEAR(Z168)+AA168,MONTH(Z168),DAY(Z168)) -> 2038-10-01 | AC168: FORT PECK HOMES 1 | AD168: IVA GRAINGER | AE168: PO BOX 667/503 6TH AVE EAST | AF168: POPLAR | AG168: MT | AH168: 59255 | AJ168: 406-768-5176 | AU168: 23 | AX168: 3 | AY168: 5 | AZ168: 8 | BA168: 7 | BR168: 3480839 | BS168: =VLOOKUP(M168,#REF!,2,TRUE)*(BR168/1000000) ->  | BT168: =VLOOKUP(M168,#REF!,3,TRUE)*(BR168/1000000) -> 
B169: 2007 | C169: Returned | D169: Polson Meadows returned credits | E169: Hiway 53 | F169: Polson | G169: 59860 | J169: Lake | K169: 0.09 | L169: General | M169: New Const | N169: Family | Y169: 00:00:00 | AC169: Cherry Landlake Properties, LLP | AD169: Gehrand J. Bechard | AE169: 136 Tarrs Lane | AF169: POLSON | AG169: MT | AH169: 59860 | AJ169: 406-887-2303 Cell 406-471-5961 | AU169: 0 | AX169: 28 | AY169: 12 | BS169: =VLOOKUP(M169,#REF!,2,TRUE)*(BR169/1000000) ->  | BT169: =VLOOKUP(M169,#REF!,3,TRUE)*(BR169/1000000) -> 
B170: 2007 | C170: Active | D170: Equinox | E170: 601 N Russell | F170: Missoula | G170: 59802 | J170: Missoula | K170: 0.09 | L170: General | M170: New Const | N170: Family | O170: 35 | P170: 1 | Q170: 5450000 | W170: 2009-07-17 | Y170: 2009-07-17 | Z170: 2023-07-17 | AA170: 31 | AB170: =DATE(YEAR(Z170)+AA170,MONTH(Z170),DAY(Z170)) -> 2054-07-17 | AC170: HOMEWORD INC | AD170: HEATHER MCMILIN | AE170: 127 N HIGGINS STE 307 | AF170: MISSOULA | AG170: MT | AH170: 59802 | AJ170: 406-532-4663 | AU170: 35 | AW170: 5 | AX170: 20 | AY170: 10 | BR170: 8489538 | BS170: =VLOOKUP(M170,#REF!,2,TRUE)*(BR170/1000000) ->  | BT170: =VLOOKUP(M170,#REF!,3,TRUE)*(BR170/1000000) -> 
B171: 2007 | C171: Returned | D171: Oullette Place returned credits | E171: Tba Fountain Terrace Subdivision | F171: Lewistown | G171: 59457 | J171: Fergus | K171: 0.09 | L171: Non-Profit | M171: New/Acq/Rehab | N171: Family | Y171: 00:00:00 | AC171: Lewistown Community Development Corp | AD171: Duane Ferdinand | AE171: PO Box 716 | AF171: LEWISTOWN | AG171: MT | AH171: 59457 | AJ171: 406-535-1775 FAX 406-538-3323 | AU171: 0 | AX171: 3 | AY171: 15 | AZ171: 6 | BS171: =VLOOKUP(M171,#REF!,2,TRUE)*(BR171/1000000) ->  | BT171: =VLOOKUP(M171,#REF!,3,TRUE)*(BR171/1000000) -> 
B172: 2007 | C172: Active | D172: Eagles Manor II | E172: 720 Washington St | F172: Helena | G172: 59624 | J172: Lewis and Clark | K172: 0.09 | L172: Non-Profit | M172: Rehab | N172: Elderly | O172: 43 | P172: 1 | Q172: 5687500 | W172: 2009-01-05 | Y172: 2009-01-05 | Z172: 2023-01-05 | AA172: 31 | AB172: =DATE(YEAR(Z172)+AA172,MONTH(Z172),DAY(Z172)) -> 2054-01-05 | AC172: ROCKY MOUNTAIN DEVELOPMENT COUNCIL | AD172: GENE LEUWER | AE172: PO Box 1717 | AF172: HELENA | AG172: MT | AH172: 59624-1717 | AJ172: 406-447-1680 | AU172: 43 | AX172: 40 | BR172: 6531171 | BS172: =VLOOKUP(M172,#REF!,2,TRUE)*(BR172/1000000) ->  | BT172: =VLOOKUP(M172,#REF!,3,TRUE)*(BR172/1000000) -> 
B173: 2007 | C173: Terminated | D173: Makoshika Estates (see add'l credits 2008) (out of program) | E173: 660 Grant | F173: Glendive | G173: 59330 | J173: Dawson | K173: 0.09 | L173: Non-Profit | M173: New Const | N173: Elderly | Q173: 1778350 | Y173: 00:00:00 | AC173: Dawson Co Econimic Development Council | AD173: Gene Buxel | AE173: 313 W. Valentine, PO Box 173 | AF173: GLENDIVE | AG173: MT | AH173: 59330 | AJ173: 406-377-7792 FAX406-377-3762 | AU173: 18 | AX173: 9 | AY173: 9 | BR173: 2278045 | BS173: =VLOOKUP(M173,#REF!,2,TRUE)*(BR173/1000000) ->  | BT173: =VLOOKUP(M173,#REF!,3,TRUE)*(BR173/1000000) -> 
B174: 2006 | C174: Active | D174: Sage Tower 4% | E174: 115 North 24Th Street | F174: Billings | G174: 59101 | J174: Yellowstone | K174: 0.04 | L174: Non-Profit | M174: Acq/Rehab | N174: Elderly | O174: 88 | P174: 1 | Q174: 1655110 | W174: 2009-04-23 | Y174: 2009-04-23 | Z174: 2023-04-23 | AA174: 31 | AB174: =DATE(YEAR(Z174)+AA174,MONTH(Z174),DAY(Z174)) -> 2054-04-23 | AC174: SAGE TOWER PARTNERS RLLP | AD174: CHRIS DOWNS | AE174: 1732 WAZEE ST, SUITE 450 | AF174: DENVER | AG174: CO | AH174: 80202 | AJ174: 303-832-4400 | AU174: 88 | AW174: 60 | AX174: 33 | BD174: 5 | BR174: 3185329 | BS174: =VLOOKUP(M174,#REF!,2,TRUE)*(BR174/1000000) ->  | BT174: =VLOOKUP(M174,#REF!,3,TRUE)*(BR174/1000000) -> 
A175: 2006-12-13 | B175: 2006 | C175: Active | D175: Crestview Apts (resyn 2023) | E175: 103 Crestview Drive | F175: Big Fork | G175: 59911 | J175: Flathead | K175: 0.09 | L175: General | M175: Acq/Rehab | N175: Family | O175: 24 | P175: 4 | Q175: 2268600 | W175: 2008-02-12 | Y175: 2008-02-12 | Z175: 2022-02-12 | AA175: 35 | AB175: 2057-02-12 | AC175: AMERICAN COVENANT SENIOR HOUSING | AD175: PETER WASSERMAN | AE175: 4206 ZERMATT DRIVE | AF175: SMYRNA | AG175: GA | AH175: 30080 | AJ175: 404-924-6482 | AU175: 24 | AX175: 16 | AY175: 8 | BR175: 2727095 | BS175: =VLOOKUP(M175,#REF!,2,TRUE)*(BR175/1000000) ->  | BT175: =VLOOKUP(M175,#REF!,3,TRUE)*(BR175/1000000) -> 
A176: 2006-12-13 | B176: 2006 | C176: Active | D176: Union Place II | E176: 2500 Great Northern Ave | F176: Missoula | G176: 59808 | J176: Missoula | K176: 0.09 | L176: General | M176: New Const | N176: Family | O176: 33 | P176: 3 | Q176: 4925550 | W176: 2007-06-01 | Y176: 2007-06-01 | Z176: 2021-06-01 | AA176: 31 | AB176: 2052-06-01 | AC176: Sparrow Development | AD176: Tim German | AE176: 5014 ELK HILLS | AF176: MISSOULA | AG176: MT | AH176: 59803 | AJ176: 406-251-5076 | AU176: 33 | AY176: 24 | AZ176: 9 | BR176: 5671021 | BS176: =VLOOKUP(M176,#REF!,2,TRUE)*(BR176/1000000) ->  | BT176: =VLOOKUP(M176,#REF!,3,TRUE)*(BR176/1000000) -> 
B177: 2006 | C177: Active | D177: Eagles Manor III | E177: 716 Washington Street | F177: Helena | G177: 59601 | J177: Lewis and Clark | K177: 0.09 | L177: Non-Profit | M177: Acq/Rehab | N177: Elderly | O177: 30 | P177: 1 | Q177: 5075000 | W177: 2008-10-30 | Y177: 2008-10-30 | Z177: 2022-10-30 | AA177: 16 | AB177: 2038-10-30 | AC177: ROCKY MOUNTAIN DEVELOPMENT COUNCIL | AD177: GENE LEUWER | AE177: PO BOX 1717 | AF177: HELENA | AG177: MT | AH177: 59624-1717 | AJ177: 406-447-1680 | AU177: 30 | AX177: 30 | BR177: 5820571 | BS177: =VLOOKUP(M177,#REF!,2,TRUE)*(BR177/1000000) ->  | BT177: =VLOOKUP(M177,#REF!,3,TRUE)*(BR177/1000000) -> 
B178: 2006 | C178: Active | D178: Irvin Tract Rehab Project | E178: Scattered Site, Browning | F178: Browning | G178: 59417 | J178: Glacier | K178: 0.09 | L178: Tribal | M178: New Const | N178: Family | O178: 50 | P178: 30 | Q178: 5475000 | W178: 2008-07-23 | Y178: 2008-07-23 | Z178: 2022-07-23 | AA178: 31 | AB178: 2053-07-23 | AC178: BLACKFEET HOUSING | AD178: RAY WILSON | AE178: PO BOX 449 | AF178: BROWNIG | AG178: MT | AH178: 59417 | AJ178: 406-338-7942 | AU178: 50 | AX178: 6 | AY178: 10 | AZ178: 24 | BA178: 10 | BR178: 5956768 | BS178: =VLOOKUP(M178,#REF!,2,TRUE)*(BR178/1000000) ->  | BT178: =VLOOKUP(M178,#REF!,3,TRUE)*(BR178/1000000) -> 
B179: 2006 | C179: Active | D179: Fort Belknap Housing III | E179: Scattered Harlem 59526 | F179: Fort Belknap | G179: 59526 | J179: Blaine | K179: 0.09 | L179: Tribal | M179: New Const | N179: Family | O179: 24 | P179: 24 | Q179: 4428220 | W179: 2007-08-03 | Y179: 2007-08-03 | Z179: 2021-08-03 | AA179: 15 | AB179: 2036-08-03 | AC179: FORT BELKNAP INDIAN COMMUNITY | AD179: TRACEY KING, PRESIDENT | AE179: RR1, BOX 66 | AF179: HARLEM | AG179: MT | AH179: 59526 | AJ179: 406-353-2265 | AU179: 24 | AZ179: 24 | BR179: 4442243 | BS179: =VLOOKUP(M179,#REF!,2,TRUE)*(BR179/1000000) ->  | BT179: =VLOOKUP(M179,#REF!,3,TRUE)*(BR179/1000000) -> 
A180: 2006-12-13 | B180: 2006 | C180: Active | D180: Cornerstone Apartments | E180: 310 North Jordon | F180: Miles City | G180: 59301 | J180: Custer | K180: 0.09 | L180: Non-Profit | M180: Acq/Rehab | N180: Family | O180: 21 | P180: 1 | Q180: 2293280 | W180: 2007-10-31 | Y180: 2007-10-31 | Z180: 2021-10-31 | AA180: 31 | AB180: 2052-10-31 | AC180: Miles City Housing Authority | AD180: Melissa Hartman | AE180: 310 NORTH JORDAN | AF180: MILES CITY | AG180: MT | AH180: 59301 | AJ180: 406-234-3433 | AU180: 21 | AX180: 3 | AY180: 6 | AZ180: 12 | BR180: 4001476 | BS180: =VLOOKUP(M180,#REF!,2,TRUE)*(BR180/1000000) ->  | BT180: =VLOOKUP(M180,#REF!,3,TRUE)*(BR180/1000000) -> 
A181: 2006-12-13 | B181: 2006 | C181: Active | D181: Southern Lights | E181: 801 South 28Th Street | F181: Billings | G181: 59101 | H181: 45.77349 | I181: -108.49686 | J181: Yellowstone | K181: 0.09 | L181: Non-Profit | M181: New Const | N181: Family | O181: 20 | P181: 2 | Q181: 4500000 | W181: 2007-10-01 | Y181: 2007-10-01 | Z181: 2021-10-01 | AA181: 31 | AB181: 2052-10-01 | AC181: homeWORD | AD181: ANDREA DAVIS | AE181: 127 N. HIGGINS, #307 | AF181: MISSOULA | AG181: MT | AH181: 59802 | AJ181: 406-532-4663 | AU181: 20 | BR181: 4691000 | BS181: =VLOOKUP(M181,#REF!,2,TRUE)*(BR181/1000000) ->  | BT181: =VLOOKUP(M181,#REF!,3,TRUE)*(BR181/1000000) -> 
B182: 2006 | C182: Active | D182: Fraser Tower 4% | E182: 715 South 28Th Street | F182: Billings | G182: 59101 | J182: Yellowstone | K182: 0.04 | L182: Non-Profit | M182: Acq/Rehab | N182: Elderly | O182: 64 | P182: 1 | Q182: 1105400 | W182: 2006-02-08 | Y182: 2006-02-08 | Z182: 2020-02-08 | AA182: 15 | AB182: 2035-02-08 | AC182: FRASER TOWER PARTNERS RLLP | AD182: CHRIS DOWNS | AE182: 1743 WAZEE ST, SUITE 450 | AF182: DENVER | AG182: CO | AH182: 80202 | AJ182: 303-832-4400 | AU182: 64 | AX182: 58 | AY182: 6 | BR182: 3558624 | BS182: =VLOOKUP(M182,#REF!,2,TRUE)*(BR182/1000000) ->  | BT182: =VLOOKUP(M182,#REF!,3,TRUE)*(BR182/1000000) -> 
A183: 2005-12-23 | B183: 2005 | C183: Active | D183: Baxter Apartments | E183: 2635 Tradewind Lane | F183: Bozeman | G183: 59718 | J183: Gallatin | K183: 0.09 | L183: General | M183: New Const | N183: Family | O183: 48 | P183: 5 | Q183: 5185000 | W183: 2006-06-13 | Y183: 2006-06-13 | Z183: 2020-06-13 | AA183: 16 | AB183: 2036-06-13 | AC183: FARMHOUSE PARTNERS-BAXTER LP | AD183: WILLIAM C DABNEY | AE183: 2555 W COLLEGE STE B | AF183: BOZEMAN | AG183: MT | AH183: 59718 | AJ183: 406-585-9808 | AU183: 48 | AX183: 18 | AY183: 29 | BE183: 1 | BR183: 5969176 | BS183: =VLOOKUP(M183,#REF!,2,TRUE)*(BR183/1000000) ->  | BT183: =VLOOKUP(M183,#REF!,3,TRUE)*(BR183/1000000) -> 
A184: 2005-11-28 | B184: 2005 | C184: Active | D184: Mountain View Apartments II | E184: Stonegate Drive | F184: Hamilton | G184: 59840 | J184: Ravalli | K184: 0.09 | L184: General | M184: New Const | N184: Family | O184: 28 | P184: 3 | Q184: 3136250 | W184: 2006-05-31 | Y184: 2006-05-31 | Z184: 2020-05-31 | AA184: 16 | AB184: 2036-05-31 | AC184: MOUNTAIN VIEW ASSOCIATES II LP | AD184: Patrick Klier | AE184: 283 W FRONT ST STE 1 | AF184: MISSOULA | AG184: MT | AH184: 59802 | AJ184: 406-541-0999 | AU184: 28 | AY184: 12 | AZ184: 16 | BR184: 3459738 | BS184: =VLOOKUP(M184,#REF!,2,TRUE)*(BR184/1000000) ->  | BT184: =VLOOKUP(M184,#REF!,3,TRUE)*(BR184/1000000) -> 
B185: 2005 | C185: Returned | D185: Lincoln Springs - returned credits | E185: Lincoln Lane | F185: Billings | G185: 59101 | J185: Yellowstone | K185: 0.09 | L185: Non-Profit | M185: New Const | N185: Family | Y185: 00:00:00 | AC185: Community Development, Inc. | AD185: Fred Free | AE185: 4110 EATON AVE #A | AF185: CALDWELL | AG185: ID | AH185: 83607-1780 | AJ185: 208-459-8522 | AU185: 0 | AY185: 28 | AZ185: 18 | BA185: 2 | BE185: 1 | BS185: =VLOOKUP(M185,#REF!,2,TRUE)*(BR185/1000000) ->  | BT185: =VLOOKUP(M185,#REF!,3,TRUE)*(BR185/1000000) -> 
B186: 2005 | C186: Returned | D186: Old Holy Rosary Hospital Apartments - returned credits | E186: 2101 Clark St | F186: Miles City | G186: 59301 | J186: Custer | K186: 0.09 | L186: Non-Profit | M186: Acq/Rehab | N186: Family | Y186: 00:00:00 | AC186: Miles City Housing Authority | AD186: Melissa Hartman | AE186: 210 SOUTH WINCHESTER | AF186: MILES CITY | AG186: MT | AH186: 59301 | AJ186: 406-234-3433 | AU186: 0 | AX186: 3 | AY186: 7 | AZ186: 11 | BS186: =VLOOKUP(M186,#REF!,2,TRUE)*(BR186/1000000) ->  | BT186: =VLOOKUP(M186,#REF!,3,TRUE)*(BR186/1000000) -> 
B187: 2005 | C187: Active | D187: Fort Belknap II Renovation Project | E187: Scattered, Harlem 59526 | F187: Fort Belknap | G187: 59526 | J187: Blaine | K187: 0.09 | L187: Tribal | M187: New Const | N187: Family | O187: 52 | P187: 49 | Q187: 4515620 | W187: 2006-08-01 | Y187: 2006-08-01 | Z187: 2020-08-01 | AA187: 31 | AB187: =DATE(YEAR(Z187)+AA187,MONTH(Z187),DAY(Z187)) -> 2051-08-01 | AC187: FORT BELKNAP INDIAN COMMUNITY | AD187: TRACEY KING, PRESIDENT | AE187: RR 1 BOX 66 | AF187: HARLEM | AG187: MT | AH187: 59526 | AJ187: 406-353-2601 | AU187: 52 | AY187: 4 | AZ187: 40 | BA187: 4 | BB187: 4 | BR187: 5956768 | BS187: =VLOOKUP(M187,#REF!,2,TRUE)*(BR187/1000000) ->  | BT187: =VLOOKUP(M187,#REF!,3,TRUE)*(BR187/1000000) -> 
A188: 2004-12-23 | B188: 2005 | C188: Active | D188: North Country Estates | E188: Browing/Heart Butte | F188: Browning | G188: 59417 | J188: Glacier | K188: 0.09 | L188: Tribal | M188: New Const | N188: Family | O188: 25 | P188: 25 | Q188: 3059280 | W188: 2007-05-09 | Y188: 2007-05-09 | Z188: 2021-05-09 | AA188: 31 | AB188: 2052-05-09 | AC188: Blackfeet Housing | AD188: Ray Wilson | AE188: PO BOX 449 | AF188: BROWNING | AG188: MT | AH188: 59417 | AJ188: 406-338-7942 | AU188: 23 | AZ188: 8 | BA188: 15 | BR188: 4066005 | BS188: =VLOOKUP(M188,#REF!,2,TRUE)*(BR188/1000000) ->  | BT188: =VLOOKUP(M188,#REF!,3,TRUE)*(BR188/1000000) -> 
A189: 2004-11-22 | B189: 2004 | C189: Active | D189: Rose Park Plaza 4% | E189: 2325 Avenue C | F189: Billings | G189: 59102 | J189: Yellowstone | K189: 0.04 | M189: Acq/Rehab | N189: Family | O189: 112 | P189: 12 | Q189: 2314310 | W189: 2005-03-07 | Y189: 2005-03-07 | Z189: 2019-03-07 | AA189: 5 | AB189: 2024-03-07 | AC189: ROSE PARK PLAZA PARTNERS, LTD, RLLLP | AD189: CHRISTOPHER F. DOWNS, PRESIDENT | AE189: 1743 WAZEE ST STE 450 | AF189: DENVER | AG189: CO | AH189: 80202 | AJ189: 303-832-4400 | BR189: 6542294 | BS189: =VLOOKUP(M189,#REF!,2,TRUE)*(BR189/1000000) ->  | BT189: =VLOOKUP(M189,#REF!,3,TRUE)*(BR189/1000000) -> 
A190: 2004-12-23 | B190: 2004 | C190: Active | D190: Wilder Apartments | E190: 1600 Block Wilder | F190: Helena | G190: 59601 | J190: Lewis and Clark | K190: 0.09 | L190: non-profit | M190: New Const | N190: Family | O190: 31 | P190: 5 | Q190: 2345000 | W190: 2005-06-01 | Y190: 2005-06-01 | Z190: 2019-06-01 | AA190: 16 | AB190: 2035-06-01 | AC190: HELENA HOUSING AUTHORITY | AD190: COLLEEN MCCARTHY | AE190: 812 ABBEY ST | AF190: HELENA | AG190: MT | AH190: 59601 | AJ190: 406.442.7970 FAX.406-442-0574 | AU190: 31 | AX190: 23 | AY190: 8 | BR190: 2921650 | BS190: =VLOOKUP(M190,#REF!,2,TRUE)*(BR190/1000000) ->  | BT190: =VLOOKUP(M190,#REF!,3,TRUE)*(BR190/1000000) -> 
A191: 2004-12-23 | B191: 2004 | C191: Active | D191: Union Place | E191: 2500 Great Northern Avenue | F191: Missoula | G191: 59808 | J191: Missoula | K191: 0.09 | M191: New Const | N191: Family | O191: 30 | P191: 3 | Q191: 4639000 | W191: 2005-08-01 | Y191: 2005-08-01 | Z191: 2019-08-01 | AA191: 16 | AB191: 2035-08-01 | AC191: GNA ASSOCIATES, LP | AD191: TIM GERMAN | AE191: 619 SW Higgins Ste D | AF191: MISSOULA | AG191: MT | AH191: 59803 | AJ191: 406-251-5076 | AU191: 31 | AY191: 16 | AZ191: 15 | BR191: 5098539 | BS191: =VLOOKUP(M191,#REF!,2,TRUE)*(BR191/1000000) ->  | BT191: =VLOOKUP(M191,#REF!,3,TRUE)*(BR191/1000000) -> 
A192: 2004-12-23 | B192: 2004 | C192: Active | D192: Maclay Commons | E192: Lots 1,2,3 Orchard Promenade | F192: Missoula | G192: 59801 | J192: Missoula | K192: 0.09 | L192: non-profit | M192: New Const | N192: Family | O192: 16 | P192: 8 | Q192: 2150000 | W192: 2006-01-19 | Y192: 2006-01-19 | Z192: 2020-01-19 | AA192: 16 | AB192: 2036-01-19 | AC192: MACLAY COMMONS ASSOCIATES LP | AD192: LORI DAVIDSON | AE192: 1235 34TH ST | AF192: MISSOULA | AG192: MT | AH192: 59801 | AJ192: 406-549-4113 X105 | AU192: 16 | AY192: 8 | AZ192: 8 | BR192: 3461654 | BS192: =VLOOKUP(M192,#REF!,2,TRUE)*(BR192/1000000) ->  | BT192: =VLOOKUP(M192,#REF!,3,TRUE)*(BR192/1000000) -> 
B193: 2004 | C193: Returned | D193: Bridger Court Apts - returned credits | E193: Oak St & Future 15Th | F193: Bozeman | G193: 59715 | J193: Gallatin | K193: 0.09 | L193: non-profit | M193: New Const | N193: Elderly | Y193: 00:00:00 | BS193: =VLOOKUP(M193,#REF!,2,TRUE)*(BR193/1000000) ->  | BT193: =VLOOKUP(M193,#REF!,3,TRUE)*(BR193/1000000) -> 
B194: 2004 | C194: Returned | D194: Pattee Street - returned credits | E194: 315 N Pattee Street | F194: Missoula | G194: 59801 | J194: Missoula | K194: 0.09 | L194: small | M194: Acq/Rehab | N194: Family | Y194: 00:00:00 | BS194: =VLOOKUP(M194,#REF!,2,TRUE)*(BR194/1000000) ->  | BT194: =VLOOKUP(M194,#REF!,3,TRUE)*(BR194/1000000) -> 
A195: 2004-12-23 | B195: 2004 | C195: Active | D195: Felsman North & East | E195: Old Hwy 93 & Joe Dog Drive | F195: Pablo | G195: 59855 | J195: Lake | K195: 0.09 | L195: Tribal | M195: New Const | N195: Family | O195: 12 | P195: 6 | Q195: 775360 | W195: 2006-08-08 | Y195: 2006-08-08 | Z195: 2020-08-08 | AA195: 16 | AB195: =DATE(YEAR(Z195)+AA195,MONTH(Z195),DAY(Z195)) -> 2036-08-08 | AC195: SALISH & KOOTENAI HOUSING AUTHORITY | AD195: JASON ADAMS | AE195: PO BOX 38 | AF195: PABLO | AG195: MT | AH195: 59855 | AJ195: 406-675-4495 | AU195: 12 | AY195: 12 | BR195: 1444506 | BS195: =VLOOKUP(M195,#REF!,2,TRUE)*(BR195/1000000) ->  | BT195: =VLOOKUP(M195,#REF!,3,TRUE)*(BR195/1000000) -> 
A196: 2004-12-23 | B196: 2004 | C196: Active | D196: Orchard Garden | E196: 218 S Grove | F196: Missoula | G196: 59801 | J196: Missoula | K196: 0.09 | L196: non-profit | M196: New Const | N196: Family | O196: 35 | P196: 4 | Q196: 4777960 | W196: 2005-12-01 | Y196: 2005-12-01 | Z196: 2019-12-01 | AA196: 20 | AB196: =DATE(YEAR(Z196)+AA196,MONTH(Z196),DAY(Z196)) -> 2039-12-01 | AC196: ORCHARD GARDENS LP | AD196: ANDREA DAVIS | AE196: 127 N HIGGINS # 307 | AF196: MISSOULA | AG196: MT | AH196: 59802 | AJ196: 406-532-4663 | AU196: 35 | AX196: 18 | AY196: 12 | AZ196: 5 | BR196: 6757322 | BS196: =VLOOKUP(M196,#REF!,2,TRUE)*(BR196/1000000) ->  | BT196: =VLOOKUP(M196,#REF!,3,TRUE)*(BR196/1000000) -> 
A197: 2004-12-23 | B197: 2004 | C197: Active | D197: Bridger Apartments II | E197: 2500 Block West College | F197: Bozeman | G197: 59715 | J197: Gallatin | K197: 0.09 | M197: New Const | N197: Family | O197: 46 | P197: 3 | Q197: 5187500 | W197: 2005-06-01 | Y197: 2005-06-01 | Z197: 2019-06-01 | AA197: 16 | AB197: =DATE(YEAR(Z197)+AA197,MONTH(Z197),DAY(Z197)) -> 2035-06-01 | AC197: FARMHOUSE PARTNERS | AD197: WILLIAM C DABNEY III | AE197: 2555 W COLLEGE STE B | AF197: BOZEMAN | AG197: MT | AH197: 59718 | AJ197: 406-585-9808 | AU197: 46 | AX197: 18 | AY197: 28 | BR197: 5238586 | BS197: =VLOOKUP(M197,#REF!,2,TRUE)*(BR197/1000000) ->  | BT197: =VLOOKUP(M197,#REF!,3,TRUE)*(BR197/1000000) -> 
A198: 2004-12-23 | B198: 2004 | C198: Active | D198: Georgetown Commons | E198: 215 E. Pennsylvania Ave | F198: Anaconda | J198: Deer Lodge | K198: 0.09 | L198: small | M198: New Const | N198: Family | O198: 10 | P198: 1 | Q198: 1122130 | W198: 2006-12-31 | Y198: 2006-12-31 | Z198: 2020-12-31 | AA198: 16 | AB198: =DATE(YEAR(Z198)+AA198,MONTH(Z198),DAY(Z198)) -> 2036-12-31 | AC198: COMMUNITY DEVELOPMENT INC | AD198: FRED CORNFORTH | AE198: 4110 EATON AVENUE, STE A | AF198: CALDWELL | AG198: ID | AH198: 83607 | AJ198: 208-459-8522 | AU198: 10 | AY198: 4 | AZ198: 6 | BR198: 1024463 | BS198: =VLOOKUP(M198,#REF!,2,TRUE)*(BR198/1000000) ->  | BT198: =VLOOKUP(M198,#REF!,3,TRUE)*(BR198/1000000) -> 
B199: 2004 | C199: Returned | D199: Nicole Court - retuned credits | E199: Gov Lot1 , Parcel B, Cos 466881-Tfr | F199: Stevensville | J199: Ravalli | K199: 0.09 | L199: small | M199: New Const | N199: Family | Y199: 00:00:00 | AC199: ALEX BURKHALTER | AE199: PO BOX 1030 | AF199: MISSOULA | AG199: MT | AH199: 59806-1030 | AJ199: 406-548-8988 | AU199: 0 | AZ199: 8 | BS199: =VLOOKUP(M199,#REF!,2,TRUE)*(BR199/1000000) ->  | BT199: =VLOOKUP(M199,#REF!,3,TRUE)*(BR199/1000000) -> 
A200: 2003-12-19 | B200: 2003 | C200: Active | D200: Snowcrest Apartments | E200: 124 Skihi Street | F200: Dillon | G200: 59725 | J200: Beaverhead | K200: 0.09 | L200: non-profit | M200: New Const | N200: Family | O200: 24 | P200: 4 | Q200: 1905390 | W200: 2005-11-04 | Y200: 2005-11-04 | Z200: 2019-11-04 | AA200: 16 | AB200: =DATE(YEAR(Z200)+AA200,MONTH(Z200),DAY(Z200)) -> 2035-11-04 | AC200: SNOWCREST LIMITED PARTNERSHIP | AD200: FRED CORNFORTH | AE200: 4110 EATON AVE #A | AF200: CALDWELL | AG200: ID | AH200: 83607-1780 | AJ200: 208-459-8522 FAX 208-459-9692 | AU200: 24 | AY200: 15 | AZ200: 9 | BR200: 2087831 | BS200: =VLOOKUP(M200,#REF!,2,TRUE)*(BR200/1000000) ->  | BT200: =VLOOKUP(M200,#REF!,3,TRUE)*(BR200/1000000) -> 
A201: 1219/2003 | B201: 2003 | C201: Active | D201: Acme (see orig 2002 credits) | E201: 109 N Broadway | F201: Billings | G201: 59101 | J201: Yellowstone | K201: 0.09 | L201: non-profit | M201: Acq/Rehab | N201: Family | Q201: 1106860 | W201: 2004-10-18 | Y201: 2004-10-18 | Z201: 2018-10-18 | AA201: 16 | AB201: 2034-10-18 | AC201: HOMEWORD | AD201: HEATHER MCMILAN/ ANDREA DAVIS | AE201: 127 N HIGGINS, STE 307 | AF201: MISSOULA | AG201: MT | AH201: 59802 | AJ201: 406-532-4663 | AU201: 19 | AW201: 4 | AX201: 12 | AY201: 3 | BR201: 3466959 | BS201: =VLOOKUP(M201,#REF!,2,TRUE)*(BR201/1000000) ->  | BT201: =VLOOKUP(M201,#REF!,3,TRUE)*(BR201/1000000) -> 
... 362 more rows
